{"text_format":"1","workbook":"xlsx","n_sheets":44,"sheets":["Plan des comptes","Notice","Identification","Page de garde","Sommaire","Balance ","Donnees comptables","Bilan d'ensemble Actif ","Bilan d'ensemble Passif","Compte de resultat d'ensemble","Annexe Principes et ref.","Annexe Methodes","Perimetre 434-1","Perimetre suite 434-1","Etat sur l'actif 435-1","Determination des ecarts 435-2","Reevaluation des ecarts 435-3","Titres de participation 435-4","Liste des prets octroyes 435-5","Stocks 435-6","Creances 435-7","Provisions 435-8","Pensions et retraites 435-9","Passifs 435-10","Dettes 435-11","Emprunts souscrits 435-12","Aide publique 435-13","Dons et cotisations 435-14","Contributions 435-15","Facturation 435-16","Frais de campagne 435-17","Contributions partis 435-18","Contributions HP 435-19","Contributions org. HP 435-20","Concours en nature 435-21","Autres informations","Effectifs 436-1","Engagements financiers 436-2","Redevances 436-3","Remunerations dirigeants 436-4","Remunerations mandataires 436-5","Honoraires CAC 436-6","Prets 436-7","Emprunts 436-8"],"not_rendered":{"charts":0,"images":0,"macros":1,"external_links":1,"defined_names":92,"comments":0,"pivot_tables":0},"unopened":[],"bounds":{"document_bytes":16777216,"sheet_cells":100000,"rows_first":2000,"rows_last":500,"rows_between":2000,"halvings":0,"cell_chars":16384,"cell_head_chars":4096},"cells_cut":0,"cells_raw":0,"read":"whole","date_system":"1900"}

{"sheet":"Plan des comptes","index":0,"n_rows":905,"n_cols":6,"rows_kept":905,"cut":false,"hidden":false,"merged":[]}
[]
["COMPTES","INTITULES COMPTES","PCG 4","PCG 3","PCG 2","INTITULES COMPTES"]
[1011,"Capital souscrit - non appelé",{"$f":"LEFT(A3,4)","v":"1011"},{"$f":"+LEFT(A3,3)","v":"101"},{"$f":"+LEFT(A3,2)","v":"10"},"Capital souscrit - non appelé"]
[1012,"Capital souscrit - appelé, non versé",{"$f":"LEFT(A4,4)","v":"1012"},{"$f":"+LEFT(A4,3)","v":"101"},{"$f":"+LEFT(A4,2)","v":"10"},"Capital souscrit - appelé, non versé"]
[1013,"Capital souscrit - appelé, versé","1013","101","10","Capital souscrit - appelé, versé"]
[10131,"Capital non amorti","1013","101","10","Capital non amorti"]
[10132,"Capital amorti","1013","101","10","Capital amorti"]
[1018,"Capital souscrit soumis à des réglementations particulières","1018","101","10","Capital souscrit soumis à des réglementations particulières"]
[1020,"Fonds fiduciaires","1020","102","10","Fonds fiduciaires"]
[1021,"Valeur du patrimoine intègré","1021","102","10","Valeur du patrimoine intègré"]
[1022,"Fonds statutaires (à éclater en fonction des statuts) ",{"$f":"LEFT(A11,4)","v":"1022"},{"$f":"+LEFT(A11,3)","v":"102"},{"$f":"+LEFT(A11,2)","v":"10"},"Fonds statutaires (à éclater en fonction des statuts) "]
[1024,"Apports sans droit de reprise",{"$f":"LEFT(A12,4)","v":"1024"},{"$f":"+LEFT(A12,3)","v":"102"},{"$f":"+LEFT(A12,2)","v":"10"},"Apports sans droit de reprise"]
[1025,"Legs et donation avec contrepartie d'actifs immobilisés","1025","102","10","Legs et donation avec contrepartie d'actifs immobilisés"]
[1026,"Subvention d'investissements afféctés à des biens renouvelables","1026","102","10","Subvention d'investissements afféctés à des biens renouvelables"]
[1041,"Primes d'émission",{"$f":"LEFT(A15,4)","v":"1041"},{"$f":"+LEFT(A15,3)","v":"104"},{"$f":"+LEFT(A15,2)","v":"10"},"Primes d'émission"]
[1042,"Primes de fusion","1042","104","10","Primes de fusion"]
[1043,"Primes d'apport","1043","104","10","Primes d'apport"]
[1044,"Primes de conversion d'obligations en actions","1044","104","10","Primes de conversion d'obligations en actions"]
[1045,"Bons de souscription d'actions","1045","104","10","Bons de souscription d'actions"]
[1051,"Réserve spéciale de réévaluation","1051","105","10","Réserve spéciale de réévaluation"]
[1052,"Écart de réévaluation libre","1052","105","10","Écart de réévaluation libre"]
[1053,"Réserve de réévaluation","1053","105","10","Réserve de réévaluation"]
[1055,"Écarts de réévaluation (autres opérations légales)","1055","105","10","Écarts de réévaluation (autres opérations légales)"]
[1057,"Autres écarts de réévaluation en France","1057","105","10","Autres écarts de réévaluation en France"]
[1058,"Autres écarts de réévaluation à l'étranger","1058","105","10","Autres écarts de réévaluation à l'étranger"]
[1060,"Réserves","1060","106","10","Réserves"]
[1061,"Ecart d'ouverture du premier bilan","1061","106","10","Ecart d'ouverture du premier bilan"]
[1062,"Réserves libres","1062","106","10","Réserves libres"]
[1063,"Réserves pour frais de campagnes électorales","1063","106","10","Réserves pour frais de campagnes électorales"]
[1064,"Réserves réglementées","1064","106","10","Réserves réglementées"]
[10641,"Plus-values nettes à long terme","1064","106","10","Plus-values nettes à long terme"]
[10643,"Réserves consécutives à l'octroi de subventions d'investissement","1064","106","10","Réserves consécutives à l'octroi de subventions d'investissement"]
[10648,"Autres réserves réglementées","1064","106","10","Autres réserves réglementées"]
[1065,"Réserves - Intérêts des tiers ",{"$f":"LEFT(A34,4)","v":"1065"},{"$f":"+LEFT(A34,3)","v":"106"},{"$f":"+LEFT(A34,2)","v":"10"}]
[1066,"Réserves pour frais de manifestations","1066","106","10","Réserves pour frais de manifestations"]
[1068,"Autres réserves","1068","106","10","Autres réserves"]
[1070,"Ecarts d'équivalence",{"$f":"LEFT(A37,4)","v":"1070"},{"$f":"+LEFT(A37,3)","v":"107"},{"$f":"+LEFT(A37,2)","v":"10"},"Ecarts d'équivalence"]
[1080,"Compte de l'exploitant",{"$f":"LEFT(A38,4)","v":"1080"},{"$f":"+LEFT(A38,3)","v":"108"},{"$f":"+LEFT(A38,2)","v":"10"},"Compte de l'exploitant"]
[1090,"Actionnaires : capital souscrit non appelé",{"$f":"LEFT(A39,4)","v":"1090"},{"$f":"+LEFT(A39,3)","v":"109"},{"$f":"+LEFT(A39,2)","v":"10"},"Actionnaires : capital souscrit non appelé"]
[1100,"Report à nouveau (solde créditeur)","1100","110","11","Report à nouveau (solde créditeur)"]
[1190,"Report à nouveau (solde débiteur)","1190","119","11","Report à nouveau (solde débiteur)"]
[1200,"Résultat de l'exercice (bénéfice)","1200","120","12","Résultat de l'exercice (bénéfice)"]
[1250,"Résultat - intérêts des tiers","1250","125","12","Résultat - intérêts des tiers"]
[1290,"Résultat de l'exercice (perte)","1290","129","12","Résultat de l'exercice (perte)"]
[1310,"Subventions d'investissement",1310,{"$f":"+LEFT(A45,3)","v":"131"},{"$f":"+LEFT(A45,2)","v":"13"},"Subventions d'investissement"]
[1380,"Autres subventions d'investisement",1380,"138","13","Autres subventions d'investisement"]
[1391,"Subventions d'équipement inscrites au compte de résultat",1391,"139","13","Subventions d'équipement inscrites au compte de résultat"]
[1398,"Autres subventions d'investissement inscrites au compte de résultat",1398,"139","13","Autres subventions d'investissement inscrites au compte de résultat"]
[1420,"Provisions réglementées relatives aux immobilisations",1420,"142","14","Provisions réglementées relatives aux immobilisations"]
[1440,"Provisions réglementées relatives aux autres éléments de l'actif",1440,"144","14","Provisions réglementées relatives aux autres éléments de l'actif"]
[1450,"Amortissements dérogatoires",1450,"145","14","Amortissements dérogatoires"]
[1460,"Provision spéciale de réévaluation",1460,"146","14","Provision spéciale de réévaluation"]
[1510,"Provisions pour risques","1510","151","15","Provisions pour risques"]
[1511,"Provisions pour litiges","1511","151","15","Provisions pour litiges"]
[1512,"Provisions pour garanties données aux clients","1512","151","15","Provisions pour garanties données aux clients"]
[1513,"Provisions pour pertes sur marchés à terme","1513","151","15","Provisions pour pertes sur marchés à terme"]
[1514,"Provisions pour amendes et pénalités","1514","151","15","Provisions pour amendes et pénalités"]
[1515,"Provisions pour pertes de change","1515","151","15","Provisions pour pertes de change"]
[1516,"Provisions pour pertes sur contrats","1516","151","15","Provisions pour pertes sur contrats"]
[1518,"Autres provisions pour risques","1518","151","15","Autres provisions pour risques"]
[1530,"Provisions pour pensions et obligations similaires","1530","153","15","Provisions pour pensions et obligations similaires"]
[1531,"Provisions pour pensions et obligations similaires","1531","153","15","Provisions pour pensions et obligations similaires"]
[1532,"Provisions pour pensions et obligations similaires","1532","153","15","Provisions pour pensions et obligations similaires"]
[1533,"Provisions pour pensions et obligations similaires","1533","153","15","Provisions pour pensions et obligations similaires"]
[1534,"Provisions pour pensions et obligations similaires","1534","153","15","Provisions pour pensions et obligations similaires"]
[1540,"Provisions pour restructurations","1540","154","15","Provisions pour restructurations"]
[1550,"Provisions pour impôts","1550","155","15","Provisions pour impôts"]
[1560,"Provisions pour renouvellement des immobilisations (entreprises concessionnaires)","1560","156","15","Provisions pour renouvellement des immobilisations (entreprises concessionnaires)"]
[1570,"Provisions pour charges à répartir sur plusieurs exercices","1570","157","15","Provisions pour charges à répartir sur plusieurs exercices"]
[1572,"Provisions pour gros entretien ou grandes révisions","1572","157","15","Provisions pour gros entretien ou grandes révisions"]
[1580,"Autres provisions pour charges","1580","158","15","Autres provisions pour charges"]
[1581,"Provisions pour remises en état","1581","158","15","Provisions pour remises en état"]
[1610,"Emprunts auprès des personnes physiques à taux préférentiel","1610","161","16","Emprunts auprès des personnes physiques à taux préférentiel"]
[1611,"Emprunts auprès des personnes physiques à taux préférentiel","1611","161","16","Emprunts auprès des personnes physiques à taux préférentiel"]
[1620,"Autres emprunts auprès des personnes physiques","1620","162","16","Autres emprunts auprès des personnes physiques"]
[1621,"Autres emprunts auprès des personnes physiques","1621","162","16","Autres emprunts auprès des personnes physiques"]
[1630,"Emprunts auprès des partis ou groupements politiques","1630","163","16","Emprunts auprès des partis ou groupements politiques"]
[1631,"Emprunts auprès des partis ou groupements politiques","1631","163","16","Emprunts auprès des partis ou groupements politiques"]
[1640,"Emprunts auprès des établissements de crédit","1640","164","16","Emprunts auprès des établissements de crédit"]
[1641,"Emprunts auprès des établissements de crédit","1641","164","16","Emprunts auprès des établissements de crédit"]
[1650,"Dépôts et cautionnements reçus","1650","165","16","Dépôts et cautionnements reçus"]
[1651,"Dépôts",{"$f":"LEFT(A82,4)","v":"1651"},{"$f":"+LEFT(A82,3)","v":"165"},{"$f":"+LEFT(A82,2)","v":"16"},"Dépôts"]
[1655,"Cautionnements","1655","165","16","Cautionnements"]
[1660,"Participation des salariés aux résultats","1660","166","16","Participation des salariés aux résultats"]
[1661,"Comptes bloqués","1661","166","16","Comptes bloqués"]
[1662,"Fonds de participation","1662","166","16","Fonds de participation"]
[1670,"Emprunts et dettes assortis de conditions particulières","1670","167","16","Emprunts et dettes assortis de conditions particulières"]
[1671,"Emissions de titres participatifs","1671","167","16","Emissions de titres participatifs"]
[1674,"Avances conditionnées de l'Etat","1674","167","16","Avances conditionnées de l'Etat"]
[1675,"Emprunts participatifs","1675","167","16","Emprunts participatifs"]
[1680,"Autres emprunts et dettes assimilées","1680","168","16","Autres emprunts et dettes assimilées"]
[1681,"Autres emprunts","1681","168","16","Autres emprunts"]
[1685,"Rentes viagères capitalisées","1685","168","16","Rentes viagères capitalisées"]
[1687,"Autres dettes","1687","168","16","Autres dettes"]
[1688,"Intérêts courus","1688","168","16","Intérêts courus"]
[16881,"sur emprunts obligataires convertibles","1688","168","16","sur emprunts obligataires convertibles"]
[168821,"sur emprunts auprès des personnes physiques à taux préférentiel",{"$f":"LEFT(A97,4)","v":"1688"},{"$f":"+LEFT(A97,3)","v":"168"},{"$f":"+LEFT(A97,2)","v":"16"},"sur emprunts auprès des personnes physiques à taux préférentiel"]
[168822,"sur emprunts auprès des personnes physiques",{"$f":"LEFT(A98,4)","v":"1688"},{"$f":"+LEFT(A98,3)","v":"168"},{"$f":"+LEFT(A98,2)","v":"16"},"sur emprunts auprès des personnes physiques"]
[16883,"sur autres emprunts obligataires","1688","168","16","sur autres emprunts obligataires"]
[16884,"sur emprunts auprès des établissements de crédit","1688","168","16","sur emprunts auprès des établissements de crédit"]
[16885,"sur dépôts et cautionnements reçus","1688","168","16","sur dépôts et cautionnements reçus"]
[16886,"sur participation des salariés aux résultats","1688","168","16","sur participation des salariés aux résultats"]
[16887,"sur emprunts et dettes assortis de conditions particulières","1688","168","16","sur emprunts et dettes assortis de conditions particulières"]
[16888,"sur autres emprunts et dettes assimilées","1688","168","16","sur autres emprunts et dettes assimilées"]
[16889,"sur emprunts auprès des partis et groupements politiques",{"$f":"LEFT(A105,4)","v":"1688"},{"$f":"+LEFT(A105,3)","v":"168"},{"$f":"+LEFT(A105,2)","v":"16"},"sur autres emprunts et dettes assimilées"]
[1690,"Primes de remboursement des obligations",{"$f":"LEFT(A106,4)","v":"1690"},{"$f":"+LEFT(A106,3)","v":"169"},{"$f":"+LEFT(A106,2)","v":"16"},"Primes de remboursement des obligations"]
[2010,"Frais d'établissement","2010","201","20","Frais d'établissement"]
[2011,"Frais de constitution","2011","201","20","Frais de constitution"]
[2012,"Frais de premier établissement","2012","201","20","Frais de premier établissement"]
[2013,"Frais d'augmentation de capital et d'opérations diverses (fusions, scissions, transformations)","2013","201","20","Frais d'augmentation de capital et d'opérations diverses (fusions, scissions, transformations)"]
[2030,"Frais de recherche et de développement","2030","203","20","Frais de recherche et de développement"]
[2050,"Concessions et droits similaires, brevets, licences, marques, procédés, logiciels, droits et valeurs similaires","2050","205","20","Concessions et droits similaires, brevets, licences, marques, procédés, logiciels, droits et valeurs similaires"]
[2060,"Droit au bail","2060","206","20","Droit au bail"]
[2070,"Fonds commercial","2070","207","20","Fonds commercial"]
[2073,"Ecarts d'acquisition","2073","207","20","Ecarts d'acquisition"]
[2080,"Autres immobilisations incorporelles","2080","208","20","Autres immobilisations incorporelles"]
[2110,"Terrains","2110","211","21","Terrains"]
[2111,"Terrains nus","2111","211","21","Terrains nus"]
[2112,"Terrains aménagés","2112","211","21","Terrains aménagés"]
[2113,"Sous-sols et sur-sols","2113","211","21","Sous-sols et sur-sols"]
[2114,"Terrains de gisement","2114","211","21","Terrains de gisement"]
[2115,"Terrains bâtis","2115","211","21","Terrains bâtis"]
[2116,"Compte d'ordre sur immobilisations (art: 6 du décret n° 78-737 du 11 juillet 1978)","2116","211","21","Compte d'ordre sur immobilisations (art: 6 du décret n° 78-737 du 11 juillet 1978)"]
[2120,"Agencements et aménagements de terrains (même ventilation que celle du compte 211)","2120","212","21","Agencements et aménagements de terrains (même ventilation que celle du compte 211)"]
[2130,"Constructions","2130","213","21","Constructions"]
[2131,"Bâtiments","2131","213","21","Bâtiments"]
[2135,"Installations générales - agencements - aménagements des constructions (même ventilation que celle du compte 2131)","2135","213","21","Installations générales - agencements - aménagements des constructions (même ventilation que celle du compte 2131)"]
[2138,"Ouvrages d'infrastructure","2138","213","21","Ouvrages d'infrastructure"]
[2140,"Constructions sur sol d'autrui (même ventilation que celle du compte 213)","2140","214","21","Constructions sur sol d'autrui (même ventilation que celle du compte 213)"]
[2150,"Installations techniques, matériels et outillage industriels","2150","215","21","Installations techniques, matériels et outillage industriels"]
[2151,"Installations complexes spécialisées","2151","215","21","Installations complexes spécialisées"]
[2153,"Installations à caractère spécifique","2153","215","21","Installations à caractère spécifique"]
[2154,"Matériel industriel","2154","215","21","Matériel industriel"]
[2155,"Outillage industriel","2155","215","21","Outillage industriel"]
[2157,"Agencements et aménagements de matériel et outillage industriels","2157","215","21","Agencements et aménagements de matériel et outillage industriels"]
[2180,"Autres immobilisations corporelles","2180","218","21","Autres immobilisations corporelles"]
[2181,"Installations générales, agencements, aménagements divers","2181","218","21","Installations générales, agencements, aménagements divers"]
[2182,"Matériel de transport","2182","218","21","Matériel de transport"]
[2183,"Matériel de bureau et matériel informatique","2183","218","21","Matériel de bureau et matériel informatique"]
[2184,"Mobilier","2184","218","21","Mobilier"]
[2185,"Cheptel","2185","218","21","Cheptel"]
[2186,"Emballages récupérables","2186","218","21","Emballages récupérables"]
[2310,"Immobilisations corporelles en cours","2310","231","23","Immobilisations corporelles en cours"]
[2312,"Terrains","2312","231","23","Terrains"]
[2313,"Constructions","2313","231","23","Constructions"]
[2315,"Installations techniques, matériel et outillage industriels","2315","231","23","Installations techniques, matériel et outillage industriels"]
[2318,"Autres immobilisations corporelles","2318","231","23","Autres immobilisations corporelles"]
[2320,"Immobilisations incorporelles en cours","2320","232","23","Immobilisations incorporelles en cours"]
[2370,"Avances et acomptes versés sur immobilisations incorporelles",{"$f":"LEFT(A149,4)","v":"2370"},{"$f":"+LEFT(A149,3)","v":"237"},{"$f":"+LEFT(A149,2)","v":"23"},"Avances et acomptes versés sur immobilisations incorporelles"]
[2380,"Avances et acomptes versés sur commandes d'immobilisations corporelles","2380","238","23","Avances et acomptes versés sur commandes d'immobilisations corporelles"]
[2382,"Terrains","2382","238","23","Terrains"]
[2383,"Constructions","2383","238","23","Constructions"]
[2385,"Installations techniques, matériel et outillage industriels","2385","238","23","Installations techniques, matériel et outillage industriels"]
[2388,"Autres immobilisations corporelles","2388","238","23","Autres immobilisations corporelles"]
[2610,"Titres de participation","2610","261","26","Titres de participation"]
[2611,"Actions","2611","261","26","Actions"]
[2618,"Autres titres","2618","261","26","Autres titres"]
[2660,"Autres formes de participation","2660","266","26","Autres formes de participation"]
[2670,"Créances rattachées à des participations","2670","267","26","Créances rattachées à des participations"]
[2671,"Créances rattachées à des participations (groupe)","2671","267","26","Créances rattachées à des participations (groupe)"]
[2674,"Créances rattachées à des participations (hors groupe)","2674","267","26","Créances rattachées à des participations (hors groupe)"]
[2675,"Versements représentatifs d'apports non capitalisés (appel de fonds)","2675","267","26","Versements représentatifs d'apports non capitalisés (appel de fonds)"]
[2676,"Avances consolidables","2676","267","26","Avances consolidables"]
[2677,"Autres créances rattachées à des participations","2677","267","26","Autres créances rattachées à des participations"]
[2678,"Intérêts courus","2678","267","26","Intérêts courus"]
[2680,"Créances rattachées à des sociétés en participation","2680","268","26","Créances rattachées à des sociétés en participation"]
[2681,"Principal","2681","268","26","Principal"]
[2688,"Intérêts courus","2688","268","26","Intérêts courus"]
[2690,"Versements restant à effectuer sur titres de participation non libérés","2690","269","26","Versements restant à effectuer sur titres de participation non libérés"]
[2710,"Titres immobilisés autres que les titres immobilisés de l'activité de portefeuille (droit de propriété)","2710","271","27","Titres immobilisés autres que les titres immobilisés de l'activité de portefeuille (droit de propriété)"]
[2711,"Actions","2711","271","27","Actions"]
[2718,"Autres titres","2718","271","27","Autres titres"]
[2720,"Titres immobilisés (droit de créance)","2720","272","27","Titres immobilisés (droit de créance)"]
[2721,"Obligations","2721","272","27","Obligations"]
[2722,"Bons","2722","272","27","Bons"]
[2730,"Titres immobilisés de l'activité de portefeuille","2730","273","27","Titres immobilisés de l'activité de portefeuille"]
[2741,"Prêts à des partis ou groupements politiques","2741","274","27","Prêts à des partis ou groupements politiques"]
[2742,"Prêts aux candidats","2742","274","27","Prêts aux candidats"]
[2743,"Prêts aux organisations territoriales ou spécialisées du parti","2743","274","27","Prêts aux organisations territoriales ou spécialisées du parti"]
[2744,"Prêts à d'autres organismes","2744","274","27","Prêts à d'autres organismes"]
[2745,"Prêts au personnel","2745","274","27","Prêts au personnel"]
[2748,"Autres prêts","2748","274","27","Autres prêts"]
[2750,"Dépôts et cautionnements versés","2750","275","27","Dépôts et cautionnements versés"]
[2751,"Dépôts","2751","275","27","Dépôts"]
[2755,"Cautionnements","2755","275","27","Cautionnements"]
[2760,"Autres créances immobilisées","2760","276","27","Autres créances immobilisées"]
[2761,"Créances diverses","2761","276","27","Créances diverses"]
[2768,"Intérêts courus","2768","276","27","Intérêts courus"]
[2770,"(Actions propres ou parts propres)","2770","277","27","(Actions propres ou parts propres)"]
[2771,"Actions propres ou parts propres","2771","277","27","Actions propres ou parts propres"]
[2772,"Actions propres ou parts propres en voie d’annulation","2772","277","27","Actions propres ou parts propres en voie d’annulation"]
[2790,"Versements restant à effectuer sur titres immobilisés non libérés","2790","279","27","Versements restant à effectuer sur titres immobilisés non libérés"]
[2800,"Amortissements des immobilisations incorporelles","2800","280","28","Amortissements des immobilisations incorporelles"]
[2801,"Frais d'établissement (même ventilation que celle du compte 201)","2801","280","28","Frais d'établissement (même ventilation que celle du compte 201)"]
[2803,"Frais de recherche et de développement","2803","280","28","Frais de recherche et de développement"]
[2805,"Concessions et droits similaires, brevets, licences, logiciels, droits et valeurs similaires","2805","280","28","Concessions et droits similaires, brevets, licences, logiciels, droits et valeurs similaires"]
[2807,"Fonds commercial","2807","280","28","Fonds commercial"]
[2808,"Autres immobilisations incorporelles","2808","280","28","Autres immobilisations incorporelles"]
[2810,"Amortissements des immobilisations corporelles","2810","281","28","Amortissements des immobilisations corporelles"]
[2811,"Terrains de gisement","2811","281","28","Terrains de gisement"]
[2812,"Agencements, aménagements de terrains (même ventilation que celle du compte 212)","2812","281","28","Agencements, aménagements de terrains (même ventilation que celle du compte 212)"]
[2813,"Constructions (même ventilation que celle du compte 213)","2813","281","28","Constructions (même ventilation que celle du compte 213)"]
[2814,"Constructions sur sol d'autrui (même ventilation que celle du compte 214)","2814","281","28","Constructions sur sol d'autrui (même ventilation que celle du compte 214)"]
[2815,"Installations, matériel et outillage industriels (même ventilation que celle du compte 215)","2815","281","28","Installations, matériel et outillage industriels (même ventilation que celle du compte 215)"]
[2818,"Autres immobilisations corporelles (même ventilation que celle du compte 218)","2818","281","28","Autres immobilisations corporelles (même ventilation que celle du compte 218)"]
[2820,"Amortissements des immobilisations mises en concession","2820","282","28","Amortissements des immobilisations mises en concession"]
[2900,"Dépréciations des immobilisations incorporelles","2900","290","29","Dépréciations des immobilisations incorporelles"]
[2905,"Marques, procédés, droits et valeurs similaires","2905","290","29","Marques, procédés, droits et valeurs similaires"]
[2906,"Droit au bail","2906","290","29","Droit au bail"]
[2907,"Fonds commercial","2907","290","29","Fonds commercial"]
[29073,"Amortissment écarts d'acquisition","2907","290","29","Amortissment écarts d'acquisition"]
[2908,"Autres immobilisations incorporelles","2908","290","29","Autres immobilisations incorporelles"]
[2910,"Dépréciations des immobilisations corporelles (même ventilation que celle du compte 21)",{"$f":"LEFT(A213,4)","v":"2910"},{"$f":"+LEFT(A213,3)","v":"291"},{"$f":"+LEFT(A213,2)","v":"29"},"Dépréciations des immobilisations corporelles (même ventilation que celle du compte 21)"]
[2911,"Terrains (autres que terrains de gisement)","2911","291","29","Terrains (autres que terrains de gisement)"]
[2920,"Dépréciations des immobilisations mises en concession","2920","292","29","Dépréciations des immobilisations mises en concession"]
[2930,"Dépréciations des immobilisations en cours","2930","293","29","Dépréciations des immobilisations en cours"]
[2931,"Immobilisations corporelles en cours","2931","293","29","Immobilisations corporelles en cours"]
[2932,"Immobilisations incorporelles en cours","2932","293","29","Immobilisations incorporelles en cours"]
[2960,"Dépréciations des participations et créances rattachées à des participations","2960","296","29","Dépréciations des participations et créances rattachées à des participations"]
[2961,"Titres de participation","2961","296","29","Titres de participation"]
[2966,"Autres formes de participation","2966","296","29","Autres formes de participation"]
[2967,"Créances rattachées à des participations (même ventilation que celle du compte 267)","2967","296","29","Créances rattachées à des participations (même ventilation que celle du compte 267)"]
[2968,"Créances rattachées à des sociétés en participation (même ventilation que celle du compte 268)","2968","296","29","Créances rattachées à des sociétés en participation (même ventilation que celle du compte 268)"]
[2970,"Dépréciations des autres immobilisations financières","2970","297","29","Dépréciations des autres immobilisations financières"]
[2971,"Titres immobilisés autres que les titres immobilisés de l'activité de portefeuille - droit de propriété (même ventilation que celle du compte 271)","2971","297","29","Titres immobilisés autres que les titres immobilisés de l'activité de portefeuille - droit de propriété (même ventilation que celle du compte 271)"]
[2972,"Titres immobilisés - droit de créance (même ventilation que celle du compte 272)","2972","297","29","Titres immobilisés - droit de créance (même ventilation que celle du compte 272)"]
[2973,"Titres immobilisés de l'activité de portefeuille","2973","297","29","Titres immobilisés de l'activité de portefeuille"]
[2974,"Prêts (même ventilation que celle du compte 274)","2974","297","29","Prêts (même ventilation que celle du compte 274)"]
[29741,"Prêts (même ventilation que celle du compte 274)","2974","297","29","Prêts (même ventilation que celle du compte 274)"]
[29742,"Prêts (même ventilation que celle du compte 274)","2974","297","29","Prêts (même ventilation que celle du compte 274)"]
[29743,"Prêts (même ventilation que celle du compte 274)","2974","297","29","Prêts (même ventilation que celle du compte 274)"]
[29744,"Prêts (même ventilation que celle du compte 274)","2974","297","29","Prêts (même ventilation que celle du compte 274)"]
[29745,"Prêts (même ventilation que celle du compte 274)","2974","297","29","Prêts (même ventilation que celle du compte 274)"]
[29748,"Prêts (même ventilation que celle du compte 274)","2974","297","29","Prêts (même ventilation que celle du compte 274)"]
[2975,"Dépôts et cautionnements versés (même ventilation que celle du compte 275)","2975","297","29","Dépôts et cautionnements versés (même ventilation que celle du compte 275)"]
[2976,"Autres créances immobilisées (même ventilation que celle du compte 276)","2976","297","29","Autres créances immobilisées (même ventilation que celle du compte 276)"]
[3170,"Fournitures A, B, C,","3170","317","31","Fournitures A, B, C,"]
[3210,"Matières consommables","3210","321","32","Matières consommables"]
[3211,"Matières (ou groupe) C","3211","321","32","Matières (ou groupe) C"]
[3212,"Matières (ou groupe) D","3212","321","32","Matières (ou groupe) D"]
[3220,"Fournitures consommables","3220","322","32","Fournitures consommables"]
[3700,"Marchandises","3700","370","37","Marchandises"]
[3917,"Fournitures A, B, C,","3917","391","39","Fournitures A, B, C,"]
[3920,"Dépréciations des autres approvisionnements","3920","392","39","Dépréciations des autres approvisionnements"]
[3970,"Dépréciations des stocks de marchandises","3970","397","39","Dépréciations des stocks de marchandises"]
[4000,"Fournisseurs et Comptes rattachés","4000","400","40","Fournisseurs et Comptes rattachés"]
[4010,"Fournisseurs","4010","401","40","Fournisseurs"]
[4011,"Fournisseurs - Achats de biens et prestations de services","4011","401","40","Fournisseurs - Achats de biens et prestations de services"]
[4017,"Fournisseurs - Retenues de garantie","4017","401","40","Fournisseurs - Retenues de garantie"]
[4030,"Fournisseurs - Effets à payer","4030","403","40","Fournisseurs - Effets à payer"]
[4040,"Fournisseurs d'immobilisations","4040","404","40","Fournisseurs d'immobilisations"]
[4041,"Fournisseurs - Achats d'immobilisations","4041","404","40","Fournisseurs - Achats d'immobilisations"]
[4047,"Fournisseurs d'immobilisations - Retenues de garantie","4047","404","40","Fournisseurs d'immobilisations - Retenues de garantie"]
[4050,"Fournisseurs d'immobilisations - Effets à payer","4050","405","40","Fournisseurs d'immobilisations - Effets à payer"]
[4080,"Fournisseurs - Factures non parvenues","4080","408","40","Fournisseurs - Factures non parvenues"]
[4081,"Fournisseurs","4081","408","40","Fournisseurs"]
[4084,"Fournisseurs d'immobilisations","4084","408","40","Fournisseurs d'immobilisations"]
[4088,"Fournisseurs - Intérêts courus","4088","408","40","Fournisseurs - Intérêts courus"]
[4090,"Fournisseurs débiteurs",{"$f":"LEFT(A259,4)","v":"4090"},{"$f":"+LEFT(A259,3)","v":"409"},{"$f":"+LEFT(A259,2)","v":"40"},"Fournisseurs débiteurs"]
[4091,"Fournisseurs - Avances et acomptes versés sur commandes","4091","409","40","Fournisseurs - Avances et acomptes versés sur commandes"]
[4096,"Fournisseurs - Créances pour emballages et matériel à rendre","4096","409","40","Fournisseurs - Créances pour emballages et matériel à rendre"]
[4097,"Fournisseurs - Autres avoirs","4097","409","40","Fournisseurs - Autres avoirs"]
[40971,"Fournisseurs d'exploitation","4097","409","40","Fournisseurs d'exploitation"]
[40974,"Fournisseurs d'immobilisations","4097","409","40","Fournisseurs d'immobilisations"]
[4098,"Rabais, remises, ristournes à obtenir et autres avoirs non encore reçus",{"$f":"LEFT(A265,4)","v":"4098"},{"$f":"+LEFT(A265,3)","v":"409"},{"$f":"+LEFT(A265,2)","v":"40"},"Rabais, remises, ristournes à obtenir et autres avoirs non encore reçus"]
[4100,"Clients et comptes rattachés","4100","410","41","Clients et comptes rattachés"]
[4110,"Clients","4110","411","41","Clients"]
[4111,"Clients - Ventes de biens ou de prestations de services","4111","411","41","Clients - Ventes de biens ou de prestations de services"]
[4117,"Clients - Retenues de garantie","4117","411","41","Clients - Retenues de garantie"]
[4130,"Clients - Effets à recevoir","4130","413","41","Clients - Effets à recevoir"]
[4160,"Clients douteux ou litigieux","4160","416","41","Clients douteux ou litigieux"]
[4180,"Clients - Produits non encore facturés","4180","418","41","Clients - Produits non encore facturés"]
[4181,"Clients - Factures à établir","4181","418","41","Clients - Factures à établir"]
[4188,"Clients - Intérêts courus","4188","418","41","Clients - Intérêts courus"]
[4190,"Clients créditeurs",{"$f":"LEFT(A275,4)","v":"4190"},{"$f":"+LEFT(A275,3)","v":"419"},{"$f":"+LEFT(A275,2)","v":"41"},"Clients créditeurs"]
[4191,"Clients - Avances et acomptes reçus sur commandes","4191","419","41","Clients - Avances et acomptes reçus sur commandes"]
[4196,"Clients - Dettes sur emballages et matériels consignés",{"$f":"LEFT(A277,4)","v":"4196"},{"$f":"+LEFT(A277,3)","v":"419"},{"$f":"+LEFT(A277,2)","v":"41"},"Clients - Dettes sur emballages et matériels consignés"]
[4197,"Clients - Autres avoirs","4197","419","41","Clients - Autres avoirs"]
[4198,"Rabais, remises, ristournes à accorder et autres avoirs à établir","4198","419","41","Rabais, remises, ristournes à accorder et autres avoirs à établir"]
[4210,"Personnel - Rémunérations dues",{"$f":"LEFT(A280,4)","v":"4210"},{"$f":"+LEFT(A280,3)","v":"421"},{"$f":"+LEFT(A280,2)","v":"42"},"Personnel - Rémunérations dues"]
[4211,"Personnel - Rémunérations dues","4211","421","42","Personnel - Rémunérations dues"]
[4220,"Comités d'entreprises, d'établissement, ...","4220","422","42","Comités d'entreprises, d'établissement, ..."]
[4240,"Participation des salariés aux résultats","4240","424","42","Participation des salariés aux résultats"]
[4246,"Réserve spéciale (art: L: 442-2 du code du travail)","4246","424","42","Réserve spéciale (art: L: 442-2 du code du travail)"]
[4248,"Comptes courants","4248","424","42","Comptes courants"]
[4250,"Personnel - Avances et acomptes","4250","425","42","Personnel - Avances et acomptes"]
[4260,"Personnel - Dépôts","4260","426","42","Personnel - Dépôts"]
[4270,"Personnel - Oppositions","4270","427","42","Personnel - Oppositions"]
[4280,"Personnel - Charges à payer et produits à recevoir","4280","428","42","Personnel - Charges à payer et produits à recevoir"]
[4282,"Dettes provisionnées pour congés à payer","4282","428","42","Dettes provisionnées pour congés à payer"]
[4284,"Dettes provisionnées pour participation des salariés aux résultats","4284","428","42","Dettes provisionnées pour participation des salariés aux résultats"]
[4286,"Autres charges à payer","4286","428","42","Autres charges à payer"]
[4287,"Produits à recevoir","4287","428","42","Produits à recevoir"]
[4310,"Sécurité sociale","4310","431","43","Sécurité sociale"]
[4311,"Sécurité sociale","4311","431","43","Sécurité sociale"]
[4370,"Autres organismes sociaux","4370","437","43","Autres organismes sociaux"]
[4371,"Autres organismes sociaux","4371","437","43","Autres organismes sociaux"]
[4372,"Autres organismes sociaux","4372","437","43","Autres organismes sociaux"]
[4373,"Autres organismes sociaux","4373","437","43","Autres organismes sociaux"]
[4374,"Autres organismes sociaux","4374","437","43","Autres organismes sociaux"]
[4375,"Autres organismes sociaux","4375","437",{"$f":"+LEFT(A301,2)","v":"43"},"Autres organismes sociaux"]
[4376,"Autres organismes sociaux","4376","437","43","Autres organismes sociaux"]
[4377,"Autres organismes sociaux","4377","437","43","Autres organismes sociaux"]
[4380,"Organismes sociaux - Charges à payer et produits à recevoir","4380","438","43","Organismes sociaux - Charges à payer et produits à recevoir"]
[4382,"Charges sociales sur congés à payer","4382","438","43","Charges sociales sur congés à payer"]
[4386,"Autres charges à payer","4386","438","43","Autres charges à payer"]
[4387,"Produits à recevoir","4387","438","43","Produits à recevoir"]
[4410,"État - Aides publiques à recevoir","4410","441","44","État - Aides publiques à recevoir"]
[4411,"Aides publiques d'investissement","4411","441","44","Aides publiques d'investissement"]
[4417,"Aides publiques d'exploitation ","4417","441","44","Aides publiques d'exploitation "]
[4418,"Aides publiques d'équilibre","4418","441","44","Aides publiques d'équilibre"]
[4419,"Avances sur aides publiques","4419","441","44","Avances sur aides publiques"]
[4420,"Etat - Impôts et taxes recouvrables sur des tiers","4420","442","44","Etat - Impôts et taxes recouvrables sur des tiers"]
[4424,"Obligataires","4424","442","44","Obligataires"]
[4425,"Associés","4425","442","44","Associés"]
[4430,"Opérations particulières avec l'Etat, les collectivités publiques, les organismes internationaux","4430","443","44","Opérations particulières avec l'Etat, les collectivités publiques, les organismes internationaux"]
[4431,"Créances sur l'Etat résultant de la suppression de la règle du décalage d'un mois en matière de T.V.A.","4431","443","44","Créances sur l'Etat résultant de la suppression de la règle du décalage d'un mois en matière de T.V.A."]
[4438,"Intérêts courus sur créances figurant au compte 4431","4438","443","44","Intérêts courus sur créances figurant au compte 4431"]
[4440,"Etat - Impôts sur les bénéfices","4440","444","44","Etat - Impôts sur les bénéfices"]
[4450,"Etat - Taxes sur le chiffre d'affaires","4450","445","44","Etat - Taxes sur le chiffre d'affaires"]
[4452,"T.V.A due intracommunautaire","4452","445","44","T.V.A due intracommunautaire"]
[4455,"Taxes sur le chiffre d'affaires à décaisser","4455","445","44","Taxes sur le chiffre d'affaires à décaisser"]
[44551,"T.V.A à décaisser",{"$f":"LEFT(A323,4)","v":"4455"},{"$f":"+LEFT(A323,3)","v":"445"},{"$f":"+LEFT(A323,2)","v":"44"},"T.V.A à décaisser"]
[44558,"Taxes assimilées à la T.V.A.",{"$f":"LEFT(A324,4)","v":"4455"},{"$f":"+LEFT(A324,3)","v":"445"},{"$f":"+LEFT(A324,2)","v":"44"},"Taxes assimilées à la T.V.A."]
[4456,"Taxes sur le chiffre d'affaires déductibles","4456","445","44","Taxes sur le chiffre d'affaires déductibles"]
[44562,"T.V.A sur immobilisations",{"$f":"LEFT(A326,4)","v":"4456"},{"$f":"+LEFT(A326,3)","v":"445"},{"$f":"+LEFT(A326,2)","v":"44"},"T.V.A sur immobilisations"]
[44563,"T.V.A transférée par d'autres entreprises",{"$f":"LEFT(A327,4)","v":"4456"},{"$f":"+LEFT(A327,3)","v":"445"},{"$f":"+LEFT(A327,2)","v":"44"},"T.V.A transférée par d'autres entreprises"]
[44566,"T.V.A sur autres biens et services",{"$f":"LEFT(A328,4)","v":"4456"},{"$f":"+LEFT(A328,3)","v":"445"},{"$f":"+LEFT(A328,2)","v":"44"},"T.V.A sur autres biens et services"]
[44567,"Crédit de T.V.A à reporter",{"$f":"LEFT(A329,4)","v":"4456"},{"$f":"+LEFT(A329,3)","v":"445"},{"$f":"+LEFT(A329,2)","v":"44"},"Crédit de T.V.A à reporter"]
[44568,"Taxes assimilées à la T.V.A.",{"$f":"LEFT(A330,4)","v":"4456"},{"$f":"+LEFT(A330,3)","v":"445"},{"$f":"+LEFT(A330,2)","v":"44"},"Taxes assimilées à la T.V.A."]
[4457,"Taxes sur le chiffre d'affaires collectées par l'entreprise","4457","445","44","Taxes sur le chiffre d'affaires collectées par l'entreprise"]
[44571,"T.V.A collectée",{"$f":"LEFT(A332,4)","v":"4457"},{"$f":"+LEFT(A332,3)","v":"445"},{"$f":"+LEFT(A332,2)","v":"44"},"T.V.A collectée"]
[44578,"Taxes assimilées à la T.V.A.",{"$f":"LEFT(A333,4)","v":"4457"},{"$f":"+LEFT(A333,3)","v":"445"},{"$f":"+LEFT(A333,2)","v":"44"},"Taxes assimilées à la T.V.A."]
[4458,"Taxes sur le chiffre d'affaires à régulariser ou en attente","4458","445","44","Taxes sur le chiffre d'affaires à régulariser ou en attente"]
[44581,"Acomptes - Régime simplifié d'imposition","4458","445","44","Acomptes - Régime simplifié d'imposition"]
[44582,"Acomptes - Régime du forfait",{"$f":"LEFT(A336,4)","v":"4458"},{"$f":"+LEFT(A336,3)","v":"445"},{"$f":"+LEFT(A336,2)","v":"44"},"Acomptes - Régime du forfait"]
[44583,"Remboursement de taxes sur le chiffre d'affaires demandé","4458","445","44","Remboursement de taxes sur le chiffre d'affaires demandé"]
[44584,"T.V.A récupérée d'avance","4458","445","44","T.V.A récupérée d'avance"]
[44586,"Taxes sur le chiffre d'affaires sur factures non parvenues","4458","445","44","Taxes sur le chiffre d'affaires sur factures non parvenues"]
[44587,"Taxes sur le chiffre d'affaires sur factures à établir","4458","445","44","Taxes sur le chiffre d'affaires sur factures à établir"]
[4460,"Obligations cautionnées","4460","446","44","Obligations cautionnées"]
[4470,"Autres impôts, taxes et versements assimilés","4470","447","44","Autres impôts, taxes et versements assimilés"]
[4471,"Autres impôts, taxes et versements assimilés",{"$f":"LEFT(A343,4)","v":"4471"},{"$f":"+LEFT(A343,3)","v":"447"},{"$f":"+LEFT(A343,2)","v":"44"},"Autres impôts, taxes et versements assimilés"]
[4480,"Etat - Charges à payer et produits à recevoir","4480","448","44","Etat - Charges à payer et produits à recevoir"]
[4482,"Charges fiscales sur congés à payer","4482","448","44","Charges fiscales sur congés à payer"]
[4486,"Charges à payer","4486","448","44","Charges à payer"]
[4487,"Produits à recevoir","4487","448","44","Produits à recevoir"]
[4490,"Quotas d'émission à restituer à l'Etat","4490","449","44","Quotas d'émission à restituer à l'Etat"]
[4500,"Associations de financement, mandataires financiers, fédérations et autres structures locales","4500","450","45","Associations de financement, mandataires financiers, fédérations et autres structures locales"]
[4501,"Associations de financement, mandataires financiers, fédérations et autres structures locales","4501","450","45","Associations de financement, mandataires financiers, fédérations et autres structures locales"]
[4502,"Associations de financement, mandataires financiers, fédérations et autres structures locales","4502","450","45","Associations de financement, mandataires financiers, fédérations et autres structures locales"]
[4503,"Associations de financement, mandataires financiers, fédérations et autres structures locales","4503","450","45","Associations de financement, mandataires financiers, fédérations et autres structures locales"]
[4504,"Associations de financement, mandataires financiers, fédérations et autres structures locales","4504","450","45","Associations de financement, mandataires financiers, fédérations et autres structures locales"]
[4510,"Associations de financement, mandataires financiers, fédérations et autres structures locales","4510","451","45","Associations de financement, mandataires financiers, fédérations et autres structures locales"]
[4511,"Associations de financement, mandataires financiers, fédérations et autres structures locales","4511","451","45","Associations de financement, mandataires financiers, fédérations et autres structures locales"]
[4530,"comptes courants des structures territoriales (sections) ","4530","453","45","comptes courants des structures territoriales (sections) "]
[4531,"comptes courants des structures territoriales (sections) ","4531","453","45","comptes courants des structures territoriales (sections) "]
[4532,"Dettes et Créances fédérations / sections","4532","453","45","Dettes et Créances fédérations / sections"]
[4533,"Dettes et Créances fédérations / sections","4533","453","45","Dettes et Créances fédérations / sections"]
[4534,"Dettes et Créances fédérations / sections","4534","453","45","Dettes et Créances fédérations / sections"]
[4535,"Dettes et Créances fédérations / sections","4535","453","45","Dettes et Créances fédérations / sections"]
[4536,"Dettes et Créances fédérations / sections","4536","453","45","Dettes et Créances fédérations / sections"]
[4537,"Dettes et Créances fédérations / sections","4537","453","45","Dettes et Créances fédérations / sections"]
[4550,"Associés - Comptes courants","4550","455","45","Associés - Comptes courants"]
[4551,"Principal","4551","455","45","Principal"]
[4558,"Intérêts courus","4558","455","45","Intérêts courus"]
[4560,"Associés - Opérations sur le capital","4560","456","45","Associés - Opérations sur le capital"]
[4561,"Associés - Comptes d'apport en société","4561","456","45","Associés - Comptes d'apport en société"]
[45611,"Apports en nature","4561","456","45","Apports en nature"]
[45615,"Apports en numéraire","4561","456","45","Apports en numéraire"]
[4562,"Apporteurs - Capital appelé, non versé","4562","456","45","Apporteurs - Capital appelé, non versé"]
[45621,"Actionnaires - Capital souscrit et appelé, non versé","4562","456","45","Actionnaires - Capital souscrit et appelé, non versé"]
[45625,"Associés - Capital appelé, non versé","4562","456","45","Associés - Capital appelé, non versé"]
[4563,"Associés - Versements reçus sur augmentation de capital","4563","456","45","Associés - Versements reçus sur augmentation de capital"]
[4564,"Associés - Versements anticipés","4564","456","45","Associés - Versements anticipés"]
[4566,"Actionnaires défaillants","4566","456","45","Actionnaires défaillants"]
[4567,"Associés - Capital à rembourser","4567","456","45","Associés - Capital à rembourser"]
[4570,"Associés - Dividendes à payer","4570","457","45","Associés - Dividendes à payer"]
[4580,"Associés - Opérations faites en commun et en G.I.E.","4580","458","45","Associés - Opérations faites en commun et en G.I.E."]
[4581,"Opérations courantes","4581","458","45","Opérations courantes"]
[4588,"Intérêts courus","4588","458","45","Intérêts courus"]
[4610,"Créances auprès de partis ou groupements politiques","4610","461","46","Créances auprès de partis ou groupements politiques"]
[4620,"Créances sur cessions d'immobilisations","4620","462","46","Créances sur cessions d'immobilisations"]
[4630,"Dettes diverses","4630","463","46","Dettes diverses"]
[4631,"Dettes envers des partis ou groupements politiques","4631","463","46","Dettes envers des partis ou groupements politiques"]
[4632,"Dettes envers les candidats","4632","463","46","Dettes envers les candidats"]
[4633,"Dettes envers les organisations territoriales ou spécialisées du parti","4633","463","46","Dettes envers les organisations territoriales ou spécialisées du parti"]
[4634,"Dettes envers d'autres organismes","4634","463","46","Dettes envers d'autres organismes"]
[4635,"Dettes envers les donateurs et cotisants","4635","463","46","Dettes envers les donateurs et cotisants"]
[4640,"Dettes sur acquisitions de valeurs mobilières de placement","4640","464","46","Dettes sur acquisitions de valeurs mobilières de placement"]
[4650,"Créances sur cessions de valeurs mobilières de placement","4650","465","46","Créances sur cessions de valeurs mobilières de placement"]
[4670,"Autres comptes débiteurs ou créditeurs","4670","467","46","Autres comptes débiteurs ou créditeurs"]
[4671,"Actifs des entités non significatives","4671","467","46","Actifs des entités non significatives"]
[4672,"Passifs des entités non significatives","4672","467","46","Passifs des entités non significatives"]
[4673,"Autres comptes débiteurs ou créditeurs","4673","467","46","Autres comptes débiteurs ou créditeurs"]
[4674,"Autres comptes débiteurs ou créditeurs","4674","467","46","Autres comptes débiteurs ou créditeurs"]
[4675,"Autres comptes débiteurs ou créditeurs","4675","467","46","Autres comptes débiteurs ou créditeurs"]
[4676,"Autres comptes débiteurs ou créditeurs","4676","467","46","Autres comptes débiteurs ou créditeurs"]
[4677,"Autres comptes débiteurs ou créditeurs","4677","467","46","Autres comptes débiteurs ou créditeurs"]
[4678,"Autres comptes débiteurs ou créditeurs","4678","467","46","Autres comptes débiteurs ou créditeurs"]
[4679,"Autres comptes débiteurs ou créditeurs",{"$f":"LEFT(A401,4)","v":"4679"},{"$f":"+LEFT(A401,3)","v":"467"},{"$f":"+LEFT(A401,2)","v":"46"},"Autres comptes débiteurs ou créditeurs"]
[4680,"Divers - Charges à payer et produits à recevoir","4680","468","46","Divers - Charges à payer et produits à recevoir"]
[4686,"Charges à payer","4686","468","46","Charges à payer"]
[4687,"Produits à recevoir","4687","468","46","Produits à recevoir"]
[4710,"Comptes d'attente","4710","471","47","Comptes d'attente"]
[4720,"Comptes d'attente","4720","472","47","Comptes d'attente"]
[4730,"Comptes d'attente","4730","473","47","Comptes d'attente"]
[4740,"Comptes d'attente","4740","474","47","Comptes d'attente"]
[4750,"Comptes d'attente","4750","475","47","Comptes d'attente"]
[4760,"Différence de conversion - Actif","4760","476","47","Différence de conversion - Actif"]
[4761,"Diminution des créances","4761","476","47","Diminution des créances"]
[4762,"Augmentation des dettes","4762","476","47","Augmentation des dettes"]
[4768,"Différences compensées par couverture de change","4768","476","47","Différences compensées par couverture de change"]
[4770,"Différences de conversion - Passif","4770","477","47","Différences de conversion - Passif"]
[4771,"Augmentation des créances","4771","477","47","Augmentation des créances"]
[4772,"Diminution des dettes","4772","477","47","Diminution des dettes"]
[4778,"Différences compensées par couverture de change","4778","477","47","Différences compensées par couverture de change"]
[4780,"Autres comptes transitoires","4780","478","47","Autres comptes transitoires"]
[4810,"Charges à répartir sur plusieurs exercices","4810","481","48","Charges à répartir sur plusieurs exercices"]
[4816,"Frais d'émission des emprunts","4816","481","48","Frais d'émission des emprunts"]
[4860,"Charges constatées d'avance","4860","486","48","Charges constatées d'avance"]
[4870,"Produits constatés d'avance","4870","487","48","Produits constatés d'avance"]
[4880,"Comptes de répartition périodique des charges et des produits","4880","488","48","Comptes de répartition périodique des charges et des produits"]
[4886,"Charges","4886","488","48","Charges"]
[4887,"Produits","4887","488","48","Produits"]
[4909,"Dépréc. Avances et acomptes versés sur commande ","4909","490","49","Dépréc. Avances et acomptes versés sur commande "]
[4910,"Dépréciations des comptes de clients","4910","491","49","Dépréciations des comptes de clients"]
[4950,"Dépréciations des comptes du groupe et des associés","4950","495","49","Dépréciations des comptes du groupe et des associés"]
[4951,"Comptes du groupe","4951","495","49","Comptes du groupe"]
[4955,"Comptes courants des associés","4955","495","49","Comptes courants des associés"]
[4958,"Opérations faites en commun et en G.I.E.","4958","495","49","Opérations faites en commun et en G.I.E."]
[4960,"Dépréciations des comptes de débiteurs divers","4960","496","49","Dépréciations des comptes de débiteurs divers"]
[49610,"Dépréc. Créances auprès de partis ou groupements politiques ","4961","496","49","Dépréc. Créances auprès de partis ou groupements politiques "]
[49671,"Actifs des entités non significatives (amortissements et dépréciations) ","4967","496","49","Actifs des entités non significatives (amortissements et dépréciations) "]
[4962,"Créances sur cessions d'immobilisations","4962","496","49","Créances sur cessions d'immobilisations"]
[4965,"Créances sur cessions de valeurs mobilières de placement","4965","496","49","Créances sur cessions de valeurs mobilières de placement"]
[4967,"Autres comptes débiteurs","4967","496","49","Autres comptes débiteurs"]
[5010,"Parts dans des entreprises liées","5010","501","50","Parts dans des entreprises liées"]
[5020,"Actions propres","5020","502","50","Actions propres"]
[5030,"Actions","5030","503","50","Actions"]
[5031,"Titres cotés","5031","503","50","Titres cotés"]
[5035,"Titres non cotés","5035","503","50","Titres non cotés"]
[5040,"Autres titres conférant un droit de propriété","5040","504","50","Autres titres conférant un droit de propriété"]
[5050,"Obligations et bons émis par la société et rachetés par elle","5050","505","50","Obligations et bons émis par la société et rachetés par elle"]
[5060,"Obligations","5060","506","50","Obligations"]
[5061,"Titres cotés","5061","506","50","Titres cotés"]
[5065,"Titres non cotés","5065","506","50","Titres non cotés"]
[5070,"Bons du Trésor et bons de caisse à court terme","5070","507","50","Bons du Trésor et bons de caisse à court terme"]
[5080,"Autres valeurs mobilières de placement et autres créances assimilées","5080","508","50","Autres valeurs mobilières de placement et autres créances assimilées"]
[5081,"Autres valeurs mobilières","5081","508","50","Autres valeurs mobilières"]
[5082,"Bons de souscription","5082","508","50","Bons de souscription"]
[5088,"Intérêts courus sur obligations, bons et valeurs assimilés","5088","508","50","Intérêts courus sur obligations, bons et valeurs assimilés"]
[5090,"Versements restant à effectuer sur valeurs mobilières de placement non libérées","5090","509","50","Versements restant à effectuer sur valeurs mobilières de placement non libérées"]
[5110,"Valeurs à l'encaissement","5110","511","51","Valeurs à l'encaissement"]
[5111,"Coupons échus à l'encaissement","5111","511","51","Coupons échus à l'encaissement"]
[5112,"Chèques à encaisser","5112","511","51","Chèques à encaisser"]
[5113,"Effets à l'encaissement","5113","511","51","Effets à l'encaissement"]
[5114,"Effets à l'escompte","5114","511","51","Effets à l'escompte"]
[5120,"Banques","5120","512","51","Banques"]
[5121,"Comptes en monnaie nationale","5121","512","51","Comptes en monnaie nationale"]
[5122,"Comptes en monnaie nationale","5122","512","51","Comptes en monnaie nationale"]
[5123,"Comptes en monnaie nationale","5123","512","51","Comptes en monnaie nationale"]
[5124,"Comptes en monnaie nationale","5124","512","51","Comptes en monnaie nationale"]
[5125,"Comptes en monnaie nationale",{"$f":"LEFT(A464,4)","v":"5125"},{"$f":"+LEFT(A464,3)","v":"512"},{"$f":"+LEFT(A464,2)","v":"51"},"Comptes en monnaie nationale"]
[5126,"Comptes en monnaie nationale","5126","512","51","Comptes en monnaie nationale"]
[5127,"Comptes en monnaie nationale","5127","512","51","Comptes en monnaie nationale"]
[5128,"Comptes en monnaie nationale","5128","512","51","Comptes en monnaie nationale"]
[5129,"Comptes en monnaie nationale","5129","512","51","Comptes en monnaie nationale"]
[5130,"Comptes en devises","5130","513","51","Comptes en devises"]
[5140,"Chèques postaux","5140","514","51","Chèques postaux"]
[5150,"Caisses du Trésor et des établissements publics","5150","515","51","Caisses du Trésor et des établissements publics"]
[5160,"Sociétés de bourse","5160","516","51","Sociétés de bourse"]
[5170,"Autres organismes financiers","5170","517","51","Autres organismes financiers"]
[5180,"Intérêts courus","5180","518","51","Intérêts courus"]
[5181,"Intérêts courus à payer","5181","518","51","Intérêts courus à payer"]
[5188,"Intérêts courus à recevoir","5188","518","51","Intérêts courus à recevoir"]
[5190,"Concours bancaires courants","5190","519","51","Concours bancaires courants"]
[5191,"Crédit de mobilisation de créances commerciales (CMCC)","5191","519","51","Crédit de mobilisation de créances commerciales (CMCC)"]
[5193,"Mobilisation de créances nées à l'étranger","5193","519","51","Mobilisation de créances nées à l'étranger"]
[5198,"Intérêts courus sur concours bancaires courants","5198","519","51","Intérêts courus sur concours bancaires courants"]
[5300,"Caisse siège social","5300","530","53","Caisse siège social"]
[5310,"Caisse siège social","5310","531","53","Caisse siège social"]
[5311,"Caisse en monnaie nationale","5311","531","53","Caisse en monnaie nationale"]
[5314,"Caisse en devises","5314","531","53","Caisse en devises"]
[5320,"Caisse succursale (ou usine) A","5320","532","53","Caisse succursale (ou usine) A"]
[5330,"Caisse succursale (ou usine) B","5330","533","53","Caisse succursale (ou usine) B"]
[5800,"Virement interne",{"$f":"LEFT(A487,4)","v":"5800"},{"$f":"+LEFT(A487,3)","v":"580"},{"$f":"+LEFT(A487,2)","v":"58"},"Dépréciations des valeurs mobilières de placement"]
[5900,"Dépréciations des valeurs mobilières de placement","5900","590","59","Dépréciations des valeurs mobilières de placement"]
[5903,"Actions","5903","590","59","Actions"]
[5904,"Autres titres conférant un droit de propriété","5904","590","59","Autres titres conférant un droit de propriété"]
[5906,"Obligations","5906","590","59","Obligations"]
[5908,"Autres valeurs mobilières de placement et créances assimilées","5908","590","59","Autres valeurs mobilières de placement et créances assimilées"]
[6010,"Achats stockés - Matières premières (et fournitures)","6010","601","60","Achats stockés - Matières premières (et fournitures)"]
[6011,"Matières (ou groupe) A","6011","601","60","Matières (ou groupe) A"]
[6012,"Matières (ou groupe) B","6012","601","60","Matières (ou groupe) B"]
[6017,"Fournitures A, B, C, ...","6017","601","60","Fournitures A, B, C, ..."]
[6020,"Achats stockés - Autres approvisionnements",{"$f":"LEFT(A497,4)","v":"6020"},{"$f":"+LEFT(A497,3)","v":"602"},{"$f":"+LEFT(A497,2)","v":"60"},"Achats stockés - Autres approvisionnements"]
[6021,"Achats stockés - Autres approvisionnements",{"$f":"LEFT(A498,4)","v":"6021"},{"$f":"+LEFT(A498,3)","v":"602"},{"$f":"+LEFT(A498,2)","v":"60"},"Achats stockés - Autres approvisionnements"]
[6022,"Achats stockés - Autres approvisionnements","6022","602","60","Achats stockés - Autres approvisionnements"]
[6030,"Variations des stocks (approvisionnements et marchandises)","6030","603","60","Variations des stocks (approvisionnements et marchandises)"]
[6031,"Variations des stocks (approvisionnements et marchandises)",{"$f":"LEFT(A501,4)","v":"6031"},{"$f":"+LEFT(A501,3)","v":"603"},{"$f":"+LEFT(A501,2)","v":"60"},"Variations des stocks (approvisionnements et marchandises)"]
[6032,"Variations des stocks (approvisionnements et marchandises)",{"$f":"LEFT(A502,4)","v":"6032"},{"$f":"+LEFT(A502,3)","v":"603"},{"$f":"+LEFT(A502,2)","v":"60"},"Variations des stocks (approvisionnements et marchandises)"]
[6037,"Variations des stocks (approvisionnements et marchandises)","6037","603","60","Variations des stocks (approvisionnements et marchandises)"]
[6040,"Achats d'études et prestations de services","6040","604","60","Achats d'études et prestations de services"]
[6050,"Achats de matériel, équipements et travaux","6050","605","60","Achats de matériel, équipements et travaux"]
[6061,"Fournitures non stockables (eau, énergie)","6061","606","60","Fournitures non stockables (eau, énergie)"]
[6063,"Fournitures d'entretien et de petit équipement","6063","606","60","Fournitures d'entretien et de petit équipement"]
[6064,"Fournitures administratives","6064","606","60","Fournitures administratives"]
[6068,"Autres matières et fournitures","6068","606","60","Autres matières et fournitures"]
[6070,"Achats de marchandises","6070","607","60","Achats de marchandises"]
[6071,"Achats de marchandises","6071","607","60","Achats de marchandises"]
[6072,"Achats de marchandises","6072","607","60","Achats de marchandises"]
[6073,"Achats de marchandises","6073","607","60","Achats de marchandises"]
[6074,"Achats de marchandises","6074","607","60","Achats de marchandises"]
[6075,"Achats de marchandises","6075","607","60","Achats de marchandises"]
[6080,"Frais accessoires incorporés aux achats","6080","608","60","Frais accessoires incorporés aux achats"]
[6091,"R.R.R obtenus sur ach de matières premières",{"$f":"LEFT(A517,4)","v":"6091"},{"$f":"+LEFT(A517,3)","v":"609"},{"$f":"+LEFT(A517,2)","v":"60"},"R.R.R obtenus sur ach de matières premières"]
[6092,"R.R.R obtenus sur ach autres approvt. Stockés","6092","609","60","R.R.R obtenus sur ach autres approvt. Stockés"]
[6094,"R.R.R obtenus sur études et prestations de services ","6094","609","60","R.R.R obtenus sur études et prestations de services "]
[6095,"R.R.R obtenus sur ach de matériel, equipement et travaux","6095","609","60","R.R.R obtenus sur ach de matériel, equipement et travaux"]
[6096,"R.R.R obtenus sur ach. d'approvisionnement non stockés","6096","609","60","R.R.R obtenus sur ach. d'approvisionnement non stockés"]
[6097,"R.R.R obtenus sur ach de marchandises","6097","609","60","R.R.R obtenus sur ach de marchandises"]
[6098,"R.R.R non affectés","6098","609","60","R.R.R non affectés"]
[6110,"Sous-traitance générale","6110","611","61","Sous-traitance générale"]
[6120,"Redevances de crédit-bail","6120","612","61","Redevances de crédit-bail"]
[6122,"Crédit-bail mobilier","6122","612","61","Crédit-bail mobilier"]
[6125,"Crédit-bail immobilier","6125","612","61","Crédit-bail immobilier"]
[6130,"Locations","6130","613","61","Locations"]
[6132,"Locations immobilières","6132","613","61","Locations immobilières"]
[6135,"Locations mobilières","6135","613","61","Locations mobilières"]
[6136,"Malis sur emballages","6136","613","61","Malis sur emballages"]
[6140,"Charges locatives et de copropriété","6140","614","61","Charges locatives et de copropriété"]
[6141,"Charges locatives et de copropriété","6141","614","61","Charges locatives et de copropriété"]
[6150,"Entretien et réparations","6150","615","61","Entretien et réparations"]
[6152,"Sur biens immobiliers","6152","615","61","Sur biens immobiliers"]
[6155,"Sur biens mobiliers","6155","615","61","Sur biens mobiliers"]
[6156,"Maintenance","6156","615","61","Maintenance"]
[6160,"Primes d'assurances","6160","616","61","Primes d'assurances"]
[6161,"Multirisques","6161","616","61","Multirisques"]
[6162,"Assurance obligatoire dommage construction","6162","616","61","Assurance obligatoire dommage construction"]
[6163,"Assurance-transport","6163","616","61","Assurance-transport"]
[61636,"sur achats",{"$f":"LEFT(A542,4)","v":"6163"},{"$f":"+LEFT(A542,3)","v":"616"},{"$f":"+LEFT(A542,2)","v":"61"},"sur achats"]
[61637,"sur ventes","6163","616","61","sur ventes"]
[61638,"sur autres biens","6163","616","61","sur autres biens"]
[6164,"Risques d'exploitation","6164","616","61","Risques d'exploitation"]
[6165,"Insolvabilité clients","6165","616","61","Insolvabilité clients"]
[6170,"Etudes et recherches","6170","617","61","Etudes et recherches"]
[6180,"Divers","6180","618","61","Divers"]
[6181,"Documentation générale","6181","618","61","Documentation générale"]
[6183,"Documentation technique","6183","618","61","Documentation technique"]
[6185,"Frais de colloques, séminaires, conférences","6185","618","61","Frais de colloques, séminaires, conférences"]
[6190,"Rabais, remises et ristournes obtenus sur services extérieurs","6190","619","61","Rabais, remises et ristournes obtenus sur services extérieurs"]
[6210,"Personnel extérieur à l'entreprise","6210","621","62","Personnel extérieur à l'entreprise"]
[6211,"Personnel intérimaire","6211","621","62","Personnel intérimaire"]
[6214,"Personnel détaché ou prêté à l'entreprise","6214","621","62","Personnel détaché ou prêté à l'entreprise"]
[6220,"Rémunérations d'intermédiaires et honoraires","6220","622","62","Rémunérations d'intermédiaires et honoraires"]
[6221,"Commissions et courtages sur achats","6221","622","62","Commissions et courtages sur achats"]
[6222,"Commissions et courtages sur ventes","6222","622","62","Commissions et courtages sur ventes"]
[6224,"Rémunérations des transitaires","6224","622","62","Rémunérations des transitaires"]
[6225,"Rémunérations d'affacturage","6225","622","62","Rémunérations d'affacturage"]
[6226,"Honoraires","6226","622","62","Honoraires"]
[6227,"Frais d'actes et de contentieux","6227","622","62","Frais d'actes et de contentieux"]
[6228,"Divers","6228","622","62","Divers"]
[6230,"Propagande et communication","6230","623","62","Propagande et communication"]
[6231,"Presse, publications, télévisions et espaces publicitaires","6231","623","62","Presse, publications, télévisions et espaces publicitaires"]
[6232,"Annonces et insertions","6232","623","62","Annonces et insertions"]
[6233,"Congrès, manifestations et universités","6233","623","62","Congrès, manifestations et universités"]
[6234,"Cadeaux à la clientèle","6234","623","62","Cadeaux à la clientèle"]
[6235,"Primes","6235","623","62","Primes"]
[6236,"Catalogues et imprimés","6236","623","62","Catalogues et imprimés"]
[6237,"Publications","6237","623","62","Publications"]
[6238,"Divers (pourboires, dont courant)","6238","623","62","Divers (pourboires, dont courant)"]
[6240,"Transports de biens et transports collectifs du personnel","6240","624","62","Transports de biens et transports collectifs du personnel"]
[6241,"Transports sur achats","6241","624","62","Transports sur achats"]
[6242,"Transports sur ventes","6242","624","62","Transports sur ventes"]
[6243,"Transports entre établissements ou chantiers","6243","624","62","Transports entre établissements ou chantiers"]
[6244,"Transports administratifs",{"$f":"LEFT(A577,4)","v":"6244"},{"$f":"+LEFT(A577,3)","v":"624"},{"$f":"+LEFT(A577,2)","v":"62"},"Transports administratifs"]
[6247,"Transports collectifs du personnel",{"$f":"LEFT(A578,4)","v":"6247"},{"$f":"+LEFT(A578,3)","v":"624"},{"$f":"+LEFT(A578,2)","v":"62"},"Transports collectifs du personnel"]
[6248,"Divers","6248","624","62","Divers"]
[6250,"Déplacements, missions et réceptions","6250","625","62","Déplacements, missions et réceptions"]
[6251,"Voyages et déplacements","6251","625","62","Voyages et déplacements"]
[6255,"Frais de déménagement","6255","625","62","Frais de déménagement"]
[6256,"Missions",{"$f":"LEFT(A583,4)","v":"6256"},{"$f":"+LEFT(A583,3)","v":"625"},{"$f":"+LEFT(A583,2)","v":"62"},"Missions"]
[6257,"Réceptions",{"$f":"LEFT(A584,4)","v":"6257"},{"$f":"+LEFT(A584,3)","v":"625"},{"$f":"+LEFT(A584,2)","v":"62"},"Réceptions"]
[6260,"Frais postaux et de télécommunications","6260","626","62","Frais postaux et de télécommunications"]
[6261,"Frais postaux et de télécommunications","6261","626","62","Frais postaux et de télécommunications"]
[6262,"Frais postaux et de télécommunications","6262","626","62","Frais postaux et de télécommunications"]
[6263,"Frais postaux et de télécommunications","6263","626","62","Frais postaux et de télécommunications"]
[6267,"Frais postaux et de télécommunications","6267","626","62","Frais postaux et de télécommunications"]
[6270,"Services bancaires et assimilés","6270","627","62","Services bancaires et assimilés"]
[6271,"Frais sur titres (achat, vente, garde)","6271","627","62","Frais sur titres (achat, vente, garde)"]
[6272,"Commissions et frais sur émission d'emprunts","6272","627","62","Commissions et frais sur émission d'emprunts"]
[6275,"Frais sur effets","6275","627","62","Frais sur effets"]
[6276,"Location de coffres","6276","627","62","Location de coffres"]
[6278,"Autres frais et commissions sur prestations de services","6278","627","62","Autres frais et commissions sur prestations de services"]
[6280,"Divers","6280","628","62","Divers"]
[6281,"Concours divers (cotisations)","6281","628","62","Concours divers (cotisations)"]
[6282,"Concours divers (cotisations)","6282","628","62","Concours divers (cotisations)"]
[6284,"Frais de recrutement de personnel","6284","628","62","Frais de recrutement de personnel"]
[6288,"Autres charges diverses","6288","628","62","Autres charges diverses"]
[6290,"Rabais, remises et ristournes obtenus sur autres services extérieurs","6290","629","62","Rabais, remises et ristournes obtenus sur autres services extérieurs"]
[6310,"Impôts, taxes et versements assimilés sur rémunérations (administrations des impôts)","6310","631","63","Impôts, taxes et versements assimilés sur rémunérations (administrations des impôts)"]
[6311,"Taxe sur les salaires","6311","631","63","Taxe sur les salaires"]
[6312,"Taxe d'apprentissage","6312","631","63","Taxe d'apprentissage"]
[6313,"Participation des employeurs à la formation professionnelle continue","6313","631","63","Participation des employeurs à la formation professionnelle continue"]
[6314,"Cotisation pour défaut d'investissement obligatoire dans la construction",{"$f":"LEFT(A606,4)","v":"6314"},{"$f":"+LEFT(A606,3)","v":"631"},{"$f":"+LEFT(A606,2)","v":"63"},"Cotisation pour défaut d'investissement obligatoire dans la construction"]
[6318,"Autres","6318","631","63","Autres"]
[6330,"Impôts, taxes et versements assimilés sur rémunérations (autres organismes)","6330","633","63","Impôts, taxes et versements assimilés sur rémunérations (autres organismes)"]
[6331,"Versement de transport","6331","633","63","Versement de transport"]
[6332,"Allocations logement","6332","633","63","Allocations logement"]
[6333,"Participation des employeurs à la formation professionnelle continue",{"$f":"LEFT(A611,4)","v":"6333"},{"$f":"+LEFT(A611,3)","v":"633"},{"$f":"+LEFT(A611,2)","v":"63"},"Participation des employeurs à la formation professionnelle continue"]
[6334,"Participation des employeurs à l'effort de construction",{"$f":"LEFT(A612,4)","v":"6334"},{"$f":"+LEFT(A612,3)","v":"633"},{"$f":"+LEFT(A612,2)","v":"63"},"Participation des employeurs à l'effort de construction"]
[6335,"Versements libératoires ouvrant droit à l'exonération de la taxe d'apprentissage","6335","633","63","Versements libératoires ouvrant droit à l'exonération de la taxe d'apprentissage"]
[6338,"Autres","6338","633","63","Autres"]
[6350,"Autres impôts, taxes et versements assimilés (administrations des impôts)","6350","635","63","Autres impôts, taxes et versements assimilés (administrations des impôts)"]
[6351,"Impôts directs (sauf impôts sur les bénéfices)",{"$f":"LEFT(A616,4)","v":"6351"},{"$f":"+LEFT(A616,3)","v":"635"},{"$f":"+LEFT(A616,2)","v":"63"},"Impôts directs (sauf impôts sur les bénéfices)"]
[63511,"Taxe professionnelle",{"$f":"LEFT(A617,4)","v":"6351"},{"$f":"+LEFT(A617,3)","v":"635"},{"$f":"+LEFT(A617,2)","v":"63"},"Taxe professionnelle"]
[63512,"Taxes foncières","6351","635","63","Taxes foncières"]
[63513,"Autres impôts locaux",{"$f":"LEFT(A619,4)","v":"6351"},{"$f":"+LEFT(A619,3)","v":"635"},{"$f":"+LEFT(A619,2)","v":"63"},"Autres impôts locaux"]
[63514,"Taxe sur les véhicules des sociétés",{"$f":"LEFT(A620,4)","v":"6351"},{"$f":"+LEFT(A620,3)","v":"635"},{"$f":"+LEFT(A620,2)","v":"63"},"Taxe sur les véhicules des sociétés"]
[6352,"Taxe sur le chiffre d'affaires non récupérables","6352","635","63","Taxe sur le chiffre d'affaires non récupérables"]
[6353,"Impôts indirects","6353","635","63","Impôts indirects"]
[6354,"Droits d'enregistrement et de timbre","6354","635","63","Droits d'enregistrement et de timbre"]
[63541,"Droits de mutation","6354","635","63","Droits de mutation"]
[6358,"Autres droits",{"$f":"LEFT(A625,4)","v":"6358"},{"$f":"+LEFT(A625,3)","v":"635"},{"$f":"+LEFT(A625,2)","v":"63"},"Autres droits"]
[6370,"Autres impôts, taxes et versements assimilés (autres organismes)",{"$f":"LEFT(A626,4)","v":"6370"},{"$f":"+LEFT(A626,3)","v":"637"},{"$f":"+LEFT(A626,2)","v":"63"},"Autres impôts, taxes et versements assimilés (autres organismes)"]
[6371,"Contribution sociale de solidarité à la charge des sociétés","6371","637","63","Contribution sociale de solidarité à la charge des sociétés"]
[6372,"Taxes perçues par les organismes publics internationaux","6372","637","63","Taxes perçues par les organismes publics internationaux"]
[6374,"Impôts et taxes exigibles à l'étranger","6374","637","63","Impôts et taxes exigibles à l'étranger"]
[6378,"Taxes diverses","6378","637","63","Taxes diverses"]
[6410,"Rémunérations du personnel","6410","641","64","Rémunérations du personnel"]
[6411,"Salaires, appointements","6411","641","64","Salaires, appointements"]
[6412,"Congés payés","6412","641","64","Congés payés"]
[6413,"Primes et gratifications","6413","641","64","Primes et gratifications"]
[6414,"Indemnités et avantages divers","6414","641","64","Indemnités et avantages divers"]
[6415,"Supplément familial","6415","641","64","Supplément familial"]
[6440,"Rémunération du travail de l'exploitant","6440","644","64","Rémunération du travail de l'exploitant"]
[6450,"Charges de sécurité sociale et de prévoyance","6450","645","64","Charges de sécurité sociale et de prévoyance"]
[6451,"Cotisations à l'URSSAF","6451","645","64","Cotisations à l'URSSAF"]
[6452,"Cotisations aux mutuelles","6452","645","64","Cotisations aux mutuelles"]
[6453,"Cotisations aux caisses de retraites","6453","645","64","Cotisations aux caisses de retraites"]
[6454,"Cotisations aux ASSEDIC","6454","645","64","Cotisations aux ASSEDIC"]
[6455,"Charges sociales CESU","6455","645","64","Charges sociales CESU"]
[6457,"Cotisations aux autres organismes sociaux","6457","645","64","Cotisations aux autres organismes sociaux"]
[6458,"Cotisations aux autres organismes sociaux","6458","645","64","Cotisations aux autres organismes sociaux"]
[6459,"Cotisations aux autres organismes sociaux","6459","645","64","Cotisations aux autres organismes sociaux"]
[6460,"Cotisations sociales personnelles de l'exploitant","6460","646","64","Cotisations sociales personnelles de l'exploitant"]
[6470,"Autres charges sociales","6470","647","64","Autres charges sociales"]
[6471,"Prestations directes","6471","647","64","Prestations directes"]
[6472,"Versements aux comités d'entreprise et d'établissement","6472","647","64","Versements aux comités d'entreprise et d'établissement"]
[6473,"Versements aux comités d'hygiène et de sécurité","6473","647","64","Versements aux comités d'hygiène et de sécurité"]
[6474,"Versements aux autres œuvres sociales","6474","647","64","Versements aux autres œuvres sociales"]
[6475,"Médecine du travail, pharmacie","6475","647","64","Médecine du travail, pharmacie"]
[6480,"Autres charges de personnel","6480","648","64","Autres charges de personnel"]
[6481,"Autres charges de personnel","6481","648","64","Autres charges de personnel"]
[6510,"Redevances pour concessions, brevets, licences, marques, procédés, logiciels, droits et valeurs similaires","6510","651","65","Redevances pour concessions, brevets, licences, marques, procédés, logiciels, droits et valeurs similaires"]
[6511,"Redevances pour concessions, brevets, licences, marques, procédés, logiciels","6511","651","65","Redevances pour concessions, brevets, licences, marques, procédés, logiciels"]
[6516,"Droits d'auteur et de reproduction","6516","651","65","Droits d'auteur et de reproduction"]
[6518,"Autres droits et valeurs similaires",{"$f":"LEFT(A659,4)","v":"6518"},{"$f":"+LEFT(A659,3)","v":"651"},{"$f":"+LEFT(A659,2)","v":"65"},"Autres droits et valeurs similaires"]
[6530,"Contributions financières",{"$f":"LEFT(A660,4)","v":"6530"},{"$f":"+LEFT(A660,3)","v":"653"},{"$f":"+LEFT(A660,2)","v":"65"},"Contributions financières"]
[6531,"Contributions aux candidats tenus de déposer un compte de campagne","6531","653","65","Contributions aux candidats tenus de déposer un compte de campagne"]
[6532,"Contributions aux candidats non tenus de déposer un compte de campagne","6532","653","65","Contributions aux candidats non tenus de déposer un compte de campagne"]
[6533,"Prises en charge directes de dépenses électorales","6533","653","65","Prises en charge directes de dépenses électorales"]
[6534,"Contributions aux organisations territoriales ou spécialisées","6534","653","65","Contributions aux organisations territoriales ou spécialisées"]
[6535,"Contributions à d'autres partis ou groupements politiques","6535","653","65","Contributions à d'autres partis ou groupements politiques"]
[6536,"Contributions à d'autres organismes","6536","653","65","Contributions à d'autres organismes"]
[6540,"Pertes sur créances irrécouvrables","6540","654","65","Pertes sur créances irrécouvrables"]
[6541,"Créances de l'exercice","6541","654","65","Créances de l'exercice"]
[6544,"Créances des exercices antérieurs","6544","654","65","Créances des exercices antérieurs"]
[6550,"Quote-part de résultat sur opérations faites en commun","6550","655","65","Quote-part de résultat sur opérations faites en commun"]
[6551,"Quote-part de bénéfice transférée (comptabilité du gérant)","6551","655","65","Quote-part de bénéfice transférée (comptabilité du gérant)"]
[6555,"Quote-part de perte supportée (comptabilité des associés non gérants)",{"$f":"LEFT(A672,4)","v":"6555"},{"$f":"+LEFT(A672,3)","v":"655"},{"$f":"+LEFT(A672,2)","v":"65"},"Quote-part de perte supportée (comptabilité des associés non gérants)"]
[6560,"Pertes de change sur créances et dettes commerciales",{"$f":"LEFT(A673,4)","v":"6560"},{"$f":"+LEFT(A673,3)","v":"656"},{"$f":"+LEFT(A673,2)","v":"65"},"Pertes de change sur créances et dettes commerciales"]
[6580,"Charges diverses de gestion courante","6580","658","65","Charges diverses de gestion courante"]
[6581,"Charges des entités non significatives","6581","658","65","Charges des entités non significatives"]
[6586,"Autres charges diverses de gestion",{"$f":"LEFT(A676,4)","v":"6586"},{"$f":"+LEFT(A676,3)","v":"658"},{"$f":"+LEFT(A676,2)","v":"65"},"Autres charges diverses de gestion"]
[6587,"Autres charges diverses de gestion",{"$f":"LEFT(A677,4)","v":"6587"},{"$f":"+LEFT(A677,3)","v":"658"},{"$f":"+LEFT(A677,2)","v":"65"},"Autres charges diverses de gestion"]
[6588,"Autres charges diverses de gestion","6588","658","65","Autres charges diverses de gestion"]
[6610,"Charges d'intérêts","6610","661","66","Charges d'intérêts"]
[6611,"Intérêts des emprunts et dettes","6611","661","66","Intérêts des emprunts et dettes"]
[66116,"des emprunts et dettes assimilées","6611","661","66","des emprunts et dettes assimilées"]
[66117,"des dettes rattachées à des participations","6611","661","66","des dettes rattachées à des participations"]
[6615,"Intérêts des comptes courants et des dépôts créditeurs","6615","661","66","Intérêts des comptes courants et des dépôts créditeurs"]
[6616,"Intérêts bancaires et sur opérations de financement (escompte,...)","6616","661","66","Intérêts bancaires et sur opérations de financement (escompte,...)"]
[6617,"Intérêts des obligations cautionnées","6617","661","66","Intérêts des obligations cautionnées"]
[6618,"Intérêts des autres dettes","6618","661","66","Intérêts des autres dettes"]
[66181,"des dettes commerciales","6618","661","66","des dettes commerciales"]
[66188,"des dettes diverses","6618","661","66","des dettes diverses"]
[6640,"Pertes sur créances liées à des participations","6640","664","66","Pertes sur créances liées à des participations"]
[6650,"Escomptes accordés","6650","665","66","Escomptes accordés"]
[6660,"Pertes de change","6660","666","66","Pertes de change"]
[6670,"Charges nettes sur cessions de valeurs mobilières de placement","6670","667","66","Charges nettes sur cessions de valeurs mobilières de placement"]
[6680,"Autres charges financières","6680","668","66","Autres charges financières"]
[6688,"Autres charges financières","6688","668","66","Autres charges financières"]
[6700,"Charges exceptionnelles sur opérations de gestion","6700","670","67","Charges exceptionnelles sur opérations de gestion"]
[6710,"Charges exceptionnelles sur opérations de gestion","6710","671","67","Charges exceptionnelles sur opérations de gestion"]
[6711,"Pénalités sur marchés (et dédits payés sur achats et ventes)","6711","671","67","Pénalités sur marchés (et dédits payés sur achats et ventes)"]
[6712,"Pénalités, amendes fiscales et pénales","6712","671","67","Pénalités, amendes fiscales et pénales"]
[6713,"Dons, libéralités","6713","671","67","Dons, libéralités"]
[6714,"Créances devenues irrécouvrables dans l'exercice","6714","671","67","Créances devenues irrécouvrables dans l'exercice"]
[6715,"Subventions accordées",{"$f":"LEFT(A701,4)","v":"6715"},{"$f":"+LEFT(A701,3)","v":"671"},{"$f":"+LEFT(A701,2)","v":"67"},"Subventions accordées"]
[6717,"Rappel d'impôts (autres qu'impôts sur les bénéfices)",{"$f":"LEFT(A702,4)","v":"6717"},{"$f":"+LEFT(A702,3)","v":"671"},{"$f":"+LEFT(A702,2)","v":"67"},"Rappel d'impôts (autres qu'impôts sur les bénéfices)"]
[6718,"Autres charges exceptionnelles sur opérations de gestion",{"$f":"LEFT(A703,4)","v":"6718"},{"$f":"+LEFT(A703,3)","v":"671"},{"$f":"+LEFT(A703,2)","v":"67"},"Autres charges exceptionnelles sur opérations de gestion"]
[6720,"Compte à la disposition des entités pour enregistrer, en cours d'exercice, les charges sur exercices antérieurs","6720","672","67","Compte à la disposition des entités pour enregistrer, en cours d'exercice, les charges sur exercices antérieurs"]
[6740,"Opérations de constitution ou liquidation des fiducies",{"$f":"LEFT(A705,4)","v":"6740"},{"$f":"+LEFT(A705,3)","v":"674"},{"$f":"+LEFT(A705,2)","v":"67"},"Opérations de constitution ou liquidation des fiducies"]
[6750,"Valeurs comptables des éléments d'actif cédés","6750","675","67","Valeurs comptables des éléments d'actif cédés"]
[6751,"Immobilisations incorporelles",{"$f":"LEFT(A707,4)","v":"6751"},{"$f":"+LEFT(A707,3)","v":"675"},{"$f":"+LEFT(A707,2)","v":"67"},"Immobilisations incorporelles"]
[6752,"Immobilisations corporelles",{"$f":"LEFT(A708,4)","v":"6752"},{"$f":"+LEFT(A708,3)","v":"675"},{"$f":"+LEFT(A708,2)","v":"67"},"Immobilisations corporelles"]
[6756,"Immobilisations financières","6756","675","67","Immobilisations financières"]
[6758,"Autres éléments d'actif",{"$f":"LEFT(A710,4)","v":"6758"},{"$f":"+LEFT(A710,3)","v":"675"},{"$f":"+LEFT(A710,2)","v":"67"},"Autres éléments d'actif"]
[6780,"Autres charges exceptionnelles",{"$f":"LEFT(A711,4)","v":"6780"},{"$f":"+LEFT(A711,3)","v":"678"},{"$f":"+LEFT(A711,2)","v":"67"},"Autres charges exceptionnelles"]
[6781,"Malis provenant de clauses d'indexation","6781","678","67","Malis provenant de clauses d'indexation"]
[6782,"Lots",{"$f":"LEFT(A713,4)","v":"6782"},{"$f":"+LEFT(A713,3)","v":"678"},{"$f":"+LEFT(A713,2)","v":"67"},"Lots"]
[6783,"Malis provenant du rachat par l'entreprise d'actions et obligations émises par elle-même",{"$f":"LEFT(A714,4)","v":"6783"},{"$f":"+LEFT(A714,3)","v":"678"},{"$f":"+LEFT(A714,2)","v":"67"},"Malis provenant du rachat par l'entreprise d'actions et obligations émises par elle-même"]
[6788,"Charges exceptionnelles diverses","6788","678","67","Charges exceptionnelles diverses"]
[6810,"Dotations aux amortissements, aux dépréciations et aux provisions - Charges d'exploitation",{"$f":"LEFT(A716,4)","v":"6810"},{"$f":"+LEFT(A716,3)","v":"681"},{"$f":"+LEFT(A716,2)","v":"68"},"Dotations aux amortissements, aux dépréciations et aux provisions - Charges d'exploitation"]
[6811,"Dotations aux amortissements sur immobilisations incorporelles et corporelles",{"$f":"LEFT(A717,4)","v":"6811"},{"$f":"+LEFT(A717,3)","v":"681"},{"$f":"+LEFT(A717,2)","v":"68"},"Dotations aux amortissements sur immobilisations incorporelles et corporelles"]
[68111,"Immobilisations incorporelles","6811","681","68","Immobilisations incorporelles"]
[68112,"Immobilisations corporelles","6811","681","68","Immobilisations corporelles"]
[6812,"Dotations aux amortissements des charges d'exploitation à répartir","6812","681","68","Dotations aux amortissements des charges d'exploitation à répartir"]
[6815,"Dotations aux provisions d'exploitation",{"$f":"LEFT(A721,4)","v":"6815"},{"$f":"+LEFT(A721,3)","v":"681"},{"$f":"+LEFT(A721,2)","v":"68"},"Dotations aux provisions d'exploitation"]
[6816,"Dotations aux dépréciations des immobilisations incorporelles et corporelles",{"$f":"LEFT(A722,4)","v":"6816"},{"$f":"+LEFT(A722,3)","v":"681"},{"$f":"+LEFT(A722,2)","v":"68"},"Dotations aux dépréciations des immobilisations incorporelles et corporelles"]
[68161,"Dotations aux dépréciations des écarts d'acquisition",{"$f":"LEFT(A723,4)","v":"6816"},{"$f":"+LEFT(A723,3)","v":"681"},{"$f":"+LEFT(A723,2)","v":"68"},"Dotations aux dépréciations des immobilisations incorporelles"]
[68162,"Dotations aux dépréciations des immobilisations corporelles","6816","681","68","Dotations aux dépréciations des immobilisations corporelles"]
[68163,"Dotations aux dépréciations des immobilisations incorporelles",{"$f":"LEFT(A725,4)","v":"6816"},{"$f":"+LEFT(A725,3)","v":"681"},{"$f":"+LEFT(A725,2)","v":"68"},"Dotations aux dépréciations des immobilisations incorporelles"]
[6817,"Dotations aux dépréciation des actifs circulants",{"$f":"LEFT(A726,4)","v":"6817"},{"$f":"+LEFT(A726,3)","v":"681"},{"$f":"+LEFT(A726,2)","v":"68"},"Dotations aux dépréciation des actifs circulants"]
[68173,"Stocks et en-cours",{"$f":"LEFT(A727,4)","v":"6817"},{"$f":"+LEFT(A727,3)","v":"681"},{"$f":"+LEFT(A727,2)","v":"68"},"Stocks et en-cours"]
[68174,"Créances",{"$f":"LEFT(A728,4)","v":"6817"},{"$f":"+LEFT(A728,3)","v":"681"},{"$f":"+LEFT(A728,2)","v":"68"},"Créances"]
[6860,"Dotations aux amortissements, aux dépréciations et aux provisions - Charges financières","6860","686","68","Dotations aux amortissements, aux dépréciations et aux provisions - Charges financières"]
[6861,"Dotations aux amortissements des primes de remboursement des obligations",{"$f":"LEFT(A730,4)","v":"6861"},{"$f":"+LEFT(A730,3)","v":"686"},{"$f":"+LEFT(A730,2)","v":"68"},"Dotations aux amortissements des primes de remboursement des obligations"]
[6865,"Dotations aux provisions financières",{"$f":"LEFT(A731,4)","v":"6865"},{"$f":"+LEFT(A731,3)","v":"686"},{"$f":"+LEFT(A731,2)","v":"68"},"Dotations aux provisions financières"]
[6866,"Dotations aux dépréciations des éléments financiers","6866","686","68","Dotations aux dépréciations des éléments financiers"]
[68662,"Immobilisations financières","6866","686","68","Immobilisations financières"]
[68665,"Valeurs mobilières de placement","6866","686","68","Valeurs mobilières de placement"]
[6868,"Autres dotations","6868","686","68","Autres dotations"]
[6870,"Dotations aux amortissements, aux dépréciations et aux provisions - Charges exceptionnelles","6870","687","68","Dotations aux amortissements, aux dépréciations et aux provisions - Charges exceptionnelles"]
[6871,"Dotations aux amortissements exceptionnels des immobilisations","6871","687","68","Dotations aux amortissements exceptionnels des immobilisations"]
[6872,"Dotations aux provisions réglementées (immobilisations)","6872","687","68","Dotations aux provisions réglementées (immobilisations)"]
[68725,"Amortissements dérogatoires","6872","687","68","Amortissements dérogatoires"]
[6873,"Dotations aux provisions réglementées (stocks)","6873","687","68","Dotations aux provisions réglementées (stocks)"]
[6874,"Dotations aux autres provisions réglementées","6874","687","68","Dotations aux autres provisions réglementées"]
[6875,"Dotations aux provisions exceptionnelles","6875","687","68","Dotations aux provisions exceptionnelles"]
[6876,"Dotations aux dépréciations exceptionnelles","6876","687","68","Dotations aux dépréciations exceptionnelles"]
[6910,"Participation des salariés aux résultats","6910","691","69","Participation des salariés aux résultats"]
[6950,"Impôts sur les bénéfices",{"$f":"LEFT(A745,4)","v":"6950"},{"$f":"+LEFT(A745,3)","v":"695"},{"$f":"+LEFT(A745,2)","v":"69"},"Impôts sur les bénéfices"]
[6951,"Impôts dus en France",{"$f":"LEFT(A746,4)","v":"6951"},{"$f":"+LEFT(A746,3)","v":"695"},{"$f":"+LEFT(A746,2)","v":"69"},"Impôts dus en France"]
[6952,"Contribution additionnelle à l'impôt sur les bénéfices",{"$f":"LEFT(A747,4)","v":"6952"},{"$f":"+LEFT(A747,3)","v":"695"},{"$f":"+LEFT(A747,2)","v":"69"},"Contribution additionnelle à l'impôt sur les bénéfices"]
[6954,"Impôts dus à l'étranger",{"$f":"LEFT(A748,4)","v":"6954"},{"$f":"+LEFT(A748,3)","v":"695"},{"$f":"+LEFT(A748,2)","v":"69"},"Impôts dus à l'étranger"]
[6960,"Suppléments d'impôt sur les sociétés liés aux distributions",{"$f":"LEFT(A749,4)","v":"6960"},{"$f":"+LEFT(A749,3)","v":"696"},{"$f":"+LEFT(A749,2)","v":"69"},"Suppléments d'impôt sur les sociétés liés aux distributions"]
[6970,"Imposition forfaitaire annuelle des sociétés","6970","697","69","Imposition forfaitaire annuelle des sociétés"]
[6980,"Intégration fiscale","6980","698","69","Intégration fiscale"]
[6981,"Intégration fiscale - Charges","6981","698","69","Intégration fiscale - Charges"]
[6989,"Intégration fiscale - Produits","6989","698","69","Intégration fiscale - Produits"]
[6990,"Produits - Reports en arrière des déficits","6990","699","69","Produits - Reports en arrière des déficits"]
[7010,"Ventes de produits finis","7010","701","70","Ventes de produits finis"]
[7011,"Produits finis (ou groupe) A","7011","701","70","Produits finis (ou groupe) A"]
[7012,"Produits finis (ou groupe) B","7012","701","70","Produits finis (ou groupe) B"]
[7020,"Ventes de produits intermédiaires",{"$f":"LEFT(A758,4)","v":"7020"},{"$f":"+LEFT(A758,3)","v":"702"},{"$f":"+LEFT(A758,2)","v":"70"},"Ventes de produits intermédiaires"]
[7021,"Ventes de produits intermédiaires",{"$f":"LEFT(A759,4)","v":"7021"},{"$f":"+LEFT(A759,3)","v":"702"},{"$f":"+LEFT(A759,2)","v":"70"},"Ventes de produits intermédiaires"]
[7030,"Ventes de produits résiduels","7030","703","70","Ventes de produits résiduels"]
[7031,"Ventes de produits résiduels","7031","703","70","Ventes de produits résiduels"]
[7040,"Travaux",{"$f":"LEFT(A762,4)","v":"7040"},{"$f":"+LEFT(A762,3)","v":"704"},{"$f":"+LEFT(A762,2)","v":"70"},"Travaux"]
[7041,"Travaux de catégorie (ou activité) A",{"$f":"LEFT(A763,4)","v":"7041"},{"$f":"+LEFT(A763,3)","v":"704"},{"$f":"+LEFT(A763,2)","v":"70"},"Travaux de catégorie (ou activité) A"]
[7042,"Travaux de catégorie (ou activité) B","7042","704","70","Travaux de catégorie (ou activité) B"]
[7050,"Etudes",{"$f":"LEFT(A765,4)","v":"7050"},{"$f":"+LEFT(A765,3)","v":"705"},{"$f":"+LEFT(A765,2)","v":"70"},"Etudes"]
[7051,"Etudes",{"$f":"LEFT(A766,4)","v":"7051"},{"$f":"+LEFT(A766,3)","v":"705"},{"$f":"+LEFT(A766,2)","v":"70"},"Etudes"]
[7060,"Prestations de services","7060","706","70","Prestations de services"]
[7061,"Manifestations et colloques","7061","706","70","Manifestations et colloques"]
[7062,"Prestations de services aux candidats","7062","706","70","Prestations de services aux candidats"]
[70621,"Prestations de services aux candidats tenus de déposer un compte de campagne",{"$f":"LEFT(A770,4)","v":"7062"},{"$f":"+LEFT(A770,3)","v":"706"},{"$f":"+LEFT(A770,2)","v":"70"},"Prestations de services aux candidats tenus de déposer un compte de campagne"]
[70622,"Prestations de services aux candidats non tenus de déposer un compte de campagne","7062","706","70","Prestations de services aux candidats non tenus de déposer un compte de campagne"]
[7063,"Autres prestations de services","7063","706","70","Autres prestations de services"]
[7064,"Autres prestations de services","7064","706","70","Autres prestations de services"]
[7065,"Autres prestations de services","7065","706","70","Autres prestations de services"]
[7066,"Autres prestations de services","7066","706","70","Autres prestations de services"]
[7068,"Autres prestations de services","7068","706","70","Autres prestations de services"]
[7070,"Ventes de marchandises","7070","707","70","Ventes de marchandises"]
[7071,"Goodies","7071","707","70","Marchandises (ou groupe) A"]
[7072,"Livres","7072","707","70","Marchandises (ou groupe) B"]
[7073,"Autres ventes de marchandises","7073","707","70","Marchandises (ou groupe) B"]
[7074,"Ventes de cartes","7074","707","70","Ventes de cartes"]
[7080,"Produits des activités annexes","7080","708","70","Produits des activités annexes"]
[7081,"Produits des services exploités dans l'intérêt du personnel","7081","708","70","Produits des services exploités dans l'intérêt du personnel"]
[7082,"Commissions et courtages","7082","708","70","Commissions et courtages"]
[7083,"Locations diverses","7083","708","70","Locations diverses"]
[7084,"Mise à disposition de personnel facturée",{"$f":"LEFT(A786,4)","v":"7084"},{"$f":"+LEFT(A786,3)","v":"708"},{"$f":"+LEFT(A786,2)","v":"70"},"Mise à disposition de personnel facturée"]
[7085,"Ports et frais accessoires facturés","7085","708","70","Ports et frais accessoires facturés"]
[7086,"Bonis sur reprises d'emballages consignés","7086","708","70","Bonis sur reprises d'emballages consignés"]
[7087,"Bonifications obtenues des clients et primes sur ventes","7087","708","70","Bonifications obtenues des clients et primes sur ventes"]
[7088,"Autres produits d'activités annexes",{"$f":"LEFT(A790,4)","v":"7088"},{"$f":"+LEFT(A790,3)","v":"708"},{"$f":"+LEFT(A790,2)","v":"70"},"Autres produits d'activités annexes (cessions d'approvisionnements)"]
[7090,"Rabais, remises et ristournes accordés par l'entreprise","7090","709","70","Rabais, remises et ristournes accordés par l'entreprise"]
[7091,"sur ventes de produits finis","7091","709","70","sur ventes de produits finis"]
[7092,"sur ventes de produits intermédiaires","7092","709","70","sur ventes de produits intermédiaires"]
[7094,"sur travaux","7094","709","70","sur travaux"]
[7095,"sur études","7095","709","70","sur études"]
[7096,"sur prestations de services","7096","709","70","sur prestations de services"]
[7097,"sur ventes de marchandises","7097","709","70","sur ventes de marchandises"]
[7098,"sur produits des activités annexes","7098","709","70","sur produits des activités annexes"]
[7130,"Variation des stocks (en-cours de production, produits)","7130","713","71","Variation des stocks (en-cours de production, produits)"]
[7133,"Variation des en-cours de production de biens","7133","713","71","Variation des en-cours de production de biens"]
[71331,"Produits en cours","7133","713","71","Produits en cours"]
[71335,"Travaux en cours","7133","713","71","Travaux en cours"]
[7134,"Variation des en-cours de production de services","7134","713","71","Variation des en-cours de production de services"]
[71341,"Etudes en cours","7134","713","71","Etudes en cours"]
[71345,"Prestations de services en cours","7134","713","71","Prestations de services en cours"]
[7135,"Variation des stocks de produits","7135","713","71","Variation des stocks de produits"]
[71351,"Produits intermédiaires","7135","713","71","Produits intermédiaires"]
[71355,"Produits finis","7135","713","71","Produits finis"]
[71358,"Produits résiduels","7135","713","71","Produits résiduels"]
[7210,"Immobilisations incorporelles","7210","721","72","Immobilisations incorporelles"]
[7220,"Immobilisations corporelles","7220","722","72","Immobilisations corporelles"]
[7410,"Aide publique 1ère fraction","7410","741","74","Aide publique 1ère fraction"]
[7420,"Aide publique 2ème fraction","7420","742","74","Aide publique 2ème fraction"]
[7480,"Autres aides publiques","7480","748","74","Autres aides publiques"]
[7510,"Redevances pour concessions, brevets, licences, marques, procédés, logiciels, droits et valeurs similaires","7510","751","75","Redevances pour concessions, brevets, licences, marques, procédés, logiciels, droits et valeurs similaires"]
[7511,"Redevances pour concessions, brevets, licences, marques, procédés, logiciels","7511","751","75","Redevances pour concessions, brevets, licences, marques, procédés, logiciels"]
[7516,"Droits d'auteur et de reproduction","7516","751","75","Droits d'auteur et de reproduction"]
[7518,"Autres droits et valeurs similaires","7518","751","75","Autres droits et valeurs similaires"]
[7520,"Revenus des immeubles non affectés à des activités professionnelles","7520","752","75","Revenus des immeubles non affectés à des activités professionnelles"]
[7530,"Dévolutions","7530","753","75","Dévolutions"]
[7531,"Dévolutions de comptes de campagne","7531","753","75","Dévolutions de comptes de campagne"]
[7532,"Dévolutions de partis ou groupements politiques","7532","753","75","Dévolutions de partis ou groupements politiques"]
[7540,"Dons de personnes physiques","7540","754","75","Dons de personnes physiques"]
[7541,"Dons de personnes physiques au mandataire","7541","754","75","Dons de personnes physiques au mandataire"]
[7542,"Collectes ","7542","754","75","Collectes "]
[7550,"Contributions financières de partis  ou groupements politiques","7550","755","75","Contributions financières de partis  ou groupements politiques"]
[7551,"Quote-part de perte transférée (comptabilité du gérant)","7551","755","75","Quote-part de perte transférée (comptabilité du gérant)"]
[7552,"Contributions financières de partis  ou groupements politiques","7552","755","75","Contributions financières de partis  ou groupements politiques"]
[7553,"Contributions financières de partis  ou groupements politiques","7553","755","75","Contributions financières de partis  ou groupements politiques"]
[7554,"Contributions financières de partis  ou groupements politiques","7554","755","75","Contributions financières de partis  ou groupements politiques"]
[7555,"Quote-part de bénéfice attribuée (comptabilité des associés non-gérants)","7555","755","75","Quote-part de bénéfice attribuée (comptabilité des associés non-gérants)"]
[7561,"Cotisations des adhérents","7561","756","75","Cotisations des adhérents"]
[7562,"Cotisations des élus","7562","756","75","Cotisations des élus"]
[7580,"Produits divers de gestion courante","7580","758","75","Produits divers de gestion courante"]
[7581,"Produits des entités non significatives","7581","758","75","Produits des entités non significatives"]
[7610,"Produits de participations","7610","761","76","Produits de participations"]
[7611,"Revenus des titres de participation","7611","761","76","Revenus des titres de participation"]
[7616,"Revenus sur autres formes de participation","7616","761","76","Revenus sur autres formes de participation"]
[7617,"Revenus des créances rattachées à des participations","7617","761","76","Revenus des créances rattachées à des participations"]
[7620,"Produits des autres immobilisations financières","7620","762","76","Produits des autres immobilisations financières"]
[7621,"Revenus des titres immobilisés","7621","762","76","Revenus des titres immobilisés"]
[7626,"Revenus des prêts","7626","762","76","Revenus des prêts"]
[7627,"Revenus des créances immobilisées","7627","762","76","Revenus des créances immobilisées"]
[7630,"Revenus des autres créances","7630","763","76","Revenus des autres créances"]
[7631,"Revenus des créances commerciales","7631","763","76","Revenus des créances commerciales"]
[7638,"Revenus des créances diverses","7638","763","76","Revenus des créances diverses"]
[7640,"Revenus des valeurs mobilières de placement","7640","764","76","Revenus des valeurs mobilières de placement"]
[7643,"Revenus des valeurs mobilières de placement","7643","764","76","Revenus des valeurs mobilières de placement"]
[7644,"Revenus des valeurs mobilières de placement","7644","764","76","Revenus des valeurs mobilières de placement"]
[7645,"Revenus des valeurs mobilières de placement","7645","764","76","Revenus des valeurs mobilières de placement"]
[7650,"Escomptes obtenus","7650","765","76","Escomptes obtenus"]
[7660,"Gains de change","7660","766","76","Gains de change"]
[7661,"Produits financiers",{"$f":"LEFT(A853,4)","v":"7661"},{"$f":"+LEFT(A853,3)","v":"766"},{"$f":"+LEFT(A853,2)","v":"76"},"Produits financiers"]
[7670,"Produits nets sur cessions de valeurs mobilières de placement","7670","767","76","Produits nets sur cessions de valeurs mobilières de placement"]
[7680,"Autres produits financiers","7680","768","76","Autres produits financiers"]
[7681,"Autres produits financiers","7681","768","76","Autres produits financiers"]
[7710,"Produits exceptionnels sur opérations de gestion","7710","771","77","Produits exceptionnels sur opérations de gestion"]
[7711,"Dédits et pénalités perçus sur achats et sur ventes","7711","771","77","Dédits et pénalités perçus sur achats et sur ventes"]
[7713,"Libéralités reçues","7713","771","77","Libéralités reçues"]
[7714,"Rentrées sur créances amorties","7714","771","77","Rentrées sur créances amorties"]
[7715,"Subventions d'équilibre","7715","771","77","Subventions d'équilibre"]
[7717,"Dégrèvements d'impôts autres qu'impôts sur les bénéfices","7717","771","77","Dégrèvements d'impôts autres qu'impôts sur les bénéfices"]
[7718,"Autres produits exceptionnels sur opérations de gestion","7718","771","77","Autres produits exceptionnels sur opérations de gestion"]
[7720,"(Compte à la disposition des entités pour enregistrer, en cours d'exercice, les produits sur exercices antérieurs)","7720","772","77","(Compte à la disposition des entités pour enregistrer, en cours d'exercice, les produits sur exercices antérieurs)"]
[7750,"Produits des cessions d'éléments d'actif","7750","775","77","Produits des cessions d'éléments d'actif"]
[7751,"Immobilisations incorporelles","7751","775","77","Immobilisations incorporelles"]
[7752,"Immobilisations corporelles","7752","775","77","Immobilisations corporelles"]
[7756,"Immobilisations financières","7756","775","77","Immobilisations financières"]
[7758,"Autres éléments d'actif","7758","775","77","Autres éléments d'actif"]
[7770,"Quote-part des subventions d'investissement virée au résultat de l'exercice","7770","777","77","Quote-part des subventions d'investissement virée au résultat de l'exercice"]
[7780,"Autres produits exceptionnels","7780","778","77","Autres produits exceptionnels"]
[7781,"Bonis provenant de clauses d'indexation","7781","778","77","Bonis provenant de clauses d'indexation"]
[7782,"Lots","7782","778","77","Lots"]
[7783,"Bonis provenant du rachat par l'entreprise d'actions et d'obligations émises par elle-même","7783","778","77","Bonis provenant du rachat par l'entreprise d'actions et d'obligations émises par elle-même"]
[7788,"Produits exceptionnels divers","7788","778","77","Produits exceptionnels divers"]
[7810,"Reprises sur amortissements, dépréciations et provisions (à inscrire dans les produits d'exploitation)","7810","781","78","Reprises sur amortissements, dépréciations et provisions (à inscrire dans les produits d'exploitation)"]
[7811,"Reprises sur amortissements des immobilisations incorporelles et corporelles","7811","781","78","Reprises sur amortissements des immobilisations incorporelles et corporelles"]
[78111,"Immobilisations incorporelles","7811","781","78","Immobilisations incorporelles"]
[78112,"Immobilisations corporelles","7811","781","78","Immobilisations corporelles"]
[7815,"Reprises sur provisions d'exploitation","7815","781","78","Reprises sur provisions d'exploitation"]
[7816,"Reprises sur dépréciations des immobilisations incorporelles et corporelles","7816","781","78","Reprises sur dépréciations des immobilisations incorporelles et corporelles"]
[78161,"Immobilisations incorporelles","7816","781","78","Immobilisations incorporelles"]
[78162,"Immobilisations corporelles","7816","781","78","Immobilisations corporelles"]
[7817,"Reprises sur dépréciations des actifs circulants","7817","781","78","Reprises sur dépréciations des actifs circulants"]
[78173,"Stocks et en-cours","7817","781","78","Stocks et en-cours"]
[78174,"Créances","7817","781","78","Créances"]
[7860,"Reprises sur dépréciations et provisions (à inscrire dans les produits financiers)","7860","786","78","Reprises sur dépréciations et provisions (à inscrire dans les produits financiers)"]
[7865,"Reprises sur provisions financières","7865","786","78","Reprises sur provisions financières"]
[7866,"Reprises sur dépréciations des éléments financiers","7866","786","78","Reprises sur dépréciations des éléments financiers"]
[78662,"Immobilisations financières","7866","786","78","Immobilisations financières"]
[78665,"Valeurs mobilières de placements","7866","786","78","Valeurs mobilières de placements"]
[7870,"Reprises sur dépréciations et provisions (à inscrire dans les produits exceptionnels)","7870","787","78","Reprises sur dépréciations et provisions (à inscrire dans les produits exceptionnels)"]
[7872,"Reprises sur provisions réglementées (immobilisations)","7872","787","78","Reprises sur provisions réglementées (immobilisations)"]
[78725,"Amortissements dérogatoires","7872","787","78","Amortissements dérogatoires"]
[78726,"Provision spéciale de réévaluation","7872","787","78","Provision spéciale de réévaluation"]
[78727,"Plus-values réinvesties","7872","787","78","Plus-values réinvesties"]
[7873,"Reprises sur provisions réglementées (stocks)","7873","787","78","Reprises sur provisions réglementées (stocks)"]
[7874,"Reprises sur autres provisions réglementées","7874","787","78","Reprises sur autres provisions réglementées"]
[7875,"Reprises sur provisions exceptionnelles","7875","787","78","Reprises sur provisions exceptionnelles"]
[7876,"Reprises sur dépréciations exceptionnelles","7876","787","78","Reprises sur dépréciations exceptionnelles"]
[7910,"Transferts de charges d'exploitation","7910","791","79","Transferts de charges d'exploitation"]
[7911,"Transferts de charges d'exploitation",{"$f":"LEFT(A902,4)","v":"7911"},{"$f":"+LEFT(A902,3)","v":"791"},{"$f":"+LEFT(A902,2)","v":"79"},"Transferts de charges d'exploitation"]
[7950,"Intérêts des tiers",{"$f":"LEFT(A903,4)","v":"7950"},{"$f":"+LEFT(A903,3)","v":"795"},{"$f":"+LEFT(A903,2)","v":"79"},"Intérêts des tiers"]
[7960,"Transferts de charges financières",{"$f":"LEFT(A904,4)","v":"7960"},{"$f":"+LEFT(A904,3)","v":"796"},{"$f":"+LEFT(A904,2)","v":"79"},"Transferts de charges financières"]
[7970,"Transferts de charges exceptionnelles",{"$f":"LEFT(A905,4)","v":"7970"},{"$f":"+LEFT(A905,3)","v":"797"},{"$f":"+LEFT(A905,2)","v":"79"},"Transferts de charges exceptionnelles"]

{"sheet":"Notice","index":1,"n_rows":0,"n_cols":0,"rows_kept":0,"cut":false,"hidden":false,"merged":[]}

{"sheet":"Identification","index":2,"n_rows":47,"n_cols":2,"rows_kept":47,"cut":false,"hidden":false,"merged":[[24,1,24,7],[25,1,25,3],[25,4,25,7],[27,4,27,7],[28,4,28,7],[27,1,27,3],[28,1,28,3],[26,1,26,3],[26,4,26,7],[5,1,5,3],[5,4,5,7],[2,1,2,7],[3,1,3,3],[3,4,3,7],[4,1,4,3],[4,4,4,7],[6,1,6,3],[6,4,6,7],[7,1,7,3],[7,4,7,7],[8,1,8,3],[8,4,8,7],[10,1,10,3],[10,4,10,7],[11,1,11,3],[11,4,11,7],[12,1,12,3],[12,4,12,7],[13,1,13,3],[13,4,13,7],[14,1,14,3],[14,4,14,7],[15,1,15,3],[15,4,15,7],[17,1,17,3],[17,4,17,7],[18,1,18,3],[18,4,18,7],[19,1,19,3],[19,4,19,7],[20,1,20,3],[20,4,20,7],[21,1,21,3],[21,4,21,7],[22,1,22,3],[22,4,22,7],[30,1,30,3],[30,4,30,7],[31,1,31,3],[31,4,31,7],[32,1,32,3],[32,4,32,7],[33,1,33,3],[33,4,33,7],[34,1,34,3],[34,4,34,7],[35,1,35,3],[35,4,35,7],[36,1,36,3],[36,4,36,7],[37,1,37,3],[37,4,37,7],[39,1,39,3],[39,4,39,7],[40,1,40,3],[40,4,40,7],[41,1,41,3],[41,4,41,7],[42,1,42,3],[42,4,42,7],[46,1,46,3],[46,4,46,7],[43,1,43,3],[43,4,43,7],[44,1,44,3],[44,4,44,7],[45,1,45,3],[45,4,45,7]]}
[]
[]
[null,"Veuillez compléter les informations suivantes :"]
[null,"Dénomination du parti politique"]
[null,"Adresse"]
[null,"Code postal"]
[null,"Ville"]
[null,"Tél."]
[null,"Courriel"]
[]
[null,"Nom et prénom du dirigeant"]
[null,"Adresse"]
[null,"Code postal"]
[null,"Ville"]
[null,"Tél."]
[null,"Courriel"]
[]
[null,"Nom et prénom du trésorier"]
[null,"Adresse"]
[null,"Code postal"]
[null,"Ville"]
[null,"Tél."]
[null,"Courriel"]
[]
[null,"Les lettres de la CNCCFP relatives aux comptes déposés sont adressées à l'attention du dirigeant du parti. Ce dernier peut cependant désigner une personne (membre du parti, mandataire, expert-comptable) pouvant être contactée sur des points non substantiels par écrit ou oralement  par la CNCCFP avant l'engagement éventuel d'une procédure contradictoire écrite avec le parti politique concerné."]
[null,"Nom et prénom de la personne désignée"]
[null,"Qualité"]
[null,"Tél."]
[null,"Courriel"]
[]
[null,"Nom et prénom du CAC"]
[null,"Société"]
[null,"Adresse"]
[null,"Code postal"]
[null,"Ville"]
[null,"Tél."]
[null,"Courriel"]
[null,"Date de nomination"]
[]
[null,"Nom et prénom du CAC"]
[null,"Société"]
[null,"Adresse"]
[null,"Code postal"]
[null,"Ville"]
[null,"Tél."]
[null,"Courriel"]
[null,"Date de nomination"]

{"sheet":"Page de garde","index":3,"n_rows":16,"n_cols":1,"rows_kept":16,"cut":false,"hidden":false,"merged":[[3,0,3,6],[6,0,6,6],[8,0,8,6],[13,0,13,6],[15,0,15,6]]}
[]
[]
[]
["Exercice 2025"]
[]
[]
["Documents de synthèse d'ensemble"]
[]
["(Bilan, compte de résultat et annexe)"]
[]
[]
[]
[]
["Indiquez le nom de la formation politique"]
[]
["Indiquez l'adresse de la formation politique"]

{"sheet":"Sommaire","index":4,"n_rows":91,"n_cols":11,"rows_kept":91,"cut":false,"hidden":false,"merged":[[82,5,82,9],[84,5,84,9],[86,5,86,9],[88,5,88,9],[90,5,90,9],[52,5,52,9],[54,5,54,9],[80,5,80,9],[78,5,78,9],[56,5,56,9],[58,5,58,9],[60,5,60,9],[62,5,62,9],[64,5,64,9],[66,5,66,9],[68,5,68,9],[70,5,70,9],[72,5,72,9],[74,4,74,9],[76,5,76,9],[46,5,46,9],[48,5,48,9],[50,5,50,9],[42,5,42,9],[44,5,44,9],[14,4,14,9],[16,4,16,9],[18,4,18,9],[38,5,38,9],[40,5,40,9],[30,4,30,9],[32,5,32,9],[34,5,34,9],[36,5,36,9],[20,4,20,9],[22,5,22,9],[24,5,24,9],[26,5,26,9],[28,5,28,9],[10,2,10,9],[12,3,12,9],[1,2,1,10],[2,2,2,9],[4,2,4,9],[6,2,6,9],[8,2,8,9]]}
[]
[]
[null,null,"SOMMAIRE",null,null,null,null,null,null,null,"Aller à"]
[]
[null,null,"1. Page de garde"]
[]
[null,null,"2. Bilan d'ensemble art. 421-1"]
[]
[null,null,"3. Compte de résultat d'ensemble art. 422-2"]
[]
[null,null,"4. Annexe aux comptes d'ensemble"]
[]
[null,null,null,"4. 1. Règles et méthodes comptables"]
[]
[null,null,null,null,"4. 1. 1. Principes généraux art. 431-1"]
[]
[null,null,null,null,"4. 1. 2. Référentiel comptable art. 432-1"]
[]
[null,null,null,null,"4. 1. 3. Méthodes comptables art. 433-1"]
[]
[null,null,null,null,"4. 1. 4. Périmètre comptable art. 434-1"]
[]
[null,null,null,null,null,"Critères retenus pour définir le périmètre des comptes d'ensemble"]
[]
[null,null,null,null,null,"Tableau des entités intégrées dans les comptes d'ensemble"]
[]
[null,null,null,null,null,"Liste des entités exclues des comptes d'ensemble"]
[]
[null,null,null,null,null,"Variation de périmètre"]
[]
[null,null,null,null,"4. 1. 5. Informations relatives aux postes du bilan et du compte de résultat"]
[]
[null,null,null,null,null,"État sur l'actif immobilisé (art. 435-1)"]
[]
[null,null,null,null,null,"Méthodes utilisées pour la détermination des écarts d'acquisition et leurs modalités de dépréciation, d'amortissement ou de reprise (art. 435-2)"]
[]
[null,null,null,null,null,"Méthode de réévaluation utilisée, écart dégagé, incidence sur les écarts d'évaluation et d'acquisition et sur les dotations aux amortissements et aux dépréciations relatives aux biens évalués en cas de réévaluation des immobilisations corporelles et financières de toutes les entités intégrées (art. 435-3)"]
[]
[null,null,null,null,null,"Détail du poste de titres de participation (art. 435-4)"]
[]
[null,null,null,null,null,"Liste des prêts octroyés à des personnes morales ou physiques non incluses dans les comptes d'ensemble (art. 435-5)"]
[]
[null,null,null,null,null,"Principales composantes des stocks (art. 435-6)"]
[]
[null,null,null,null,null,"État des créances (art. 435-7)"]
[]
[null,null,null,null,null,"État des provisions (art. 435-8)"]
[]
[null,null,null,null,null,"Informations sur les provisions constatées dans l'exercice au titre de pensions, de compléments de retraite ou de prévoyance, d'indemnités ou d'allocation en raison de départ à la retraite ou d'avantages similaires (art.435-9)"]
[]
[null,null,null,null,null,"État des passifs éventuels (art. 435-10)"]
[]
[null,null,null,null,null,"État des dettes à moins d'un an (art. 435-11)"]
[]
[null,null,null,null,null,"États des emprunts souscrits (art. 435-12) "]
[]
[null,null,null,null,null,"Calcul du montant de la diminution de la première fraction de l'aide publique (art. 435-13)"]
[]
[null,null,null,null,null,"Modalités de comptabilisation retenues pour les dons et les cotisations (art. 435-14)"]
[]
[null,null,null,null,null,"État des contributions financières octroyées par des partis politiques hors périmètre des comptes d'ensemble (art. 435-15)"]
[]
[null,null,null,null,null,"État des prestations de services facturées aux candidats (art. 435-16)"]
[]
[null,null,null,null,null,"État des contributions et des prises en charge de frais de campagnes électorales (art. 435-17)"]
[]
[null,null,null,null,null,"État des contributions octroyées à des partis politiques hors périmètre des comptes d'ensemble (art. 435-18)"]
[]
[null,null,null,null,null,"État des contributions octroyées à des organisations territoriales ou spécialisées du parti hors périmètre des comptes (art. 435-19)"]
[]
[null,null,null,null,null,"État des contributions octroyées à d'autres organismes hors périmètre des comptes (art. 435-20)"]
[]
[null,null,null,null,null,"Estimation globale des concours en nature dont les entités intégrés ont bénéficié de la part de personnes physiques ou d'autres partis ou groupements politiques (art. 435-21)"]
[]
[null,null,null,null,"4. 1. 6. Autres informations"]
[]
[null,null,null,null,null,"Effectifs moyens globaux par catégorie de toutes les entités intégrées (art. 436-1)"]
[]
[null,null,null,null,null,"Montant des engagements financiers suivants (art. 436-2)"]
[]
[null,null,null,null,null,"Redevances restant à payer et prix d'achat résiduel des biens pris en location-financement pour les contrats de location financement non comptabilisés à l'actif (art. 436-3)"]
[]
[null,null,null,null,null,"Rémunérations allouées aux dirigeants non-salariés du parti ayant un pouvoir d'administration, de direction ou de surveillance ; remboursement des frais ; avantages en nature (art. 436-4)"]
[]
[null,null,null,null,null,"Rémunérations ou honoraires alloués aux mandataires du parti et des ses organisations territoriales ou spécialisées (art. 436-5)"]
[]
[null,null,null,null,null,"Honoraires de chaque commissaire aux comptes (art. 436-6)"]
[]
[null,null,null,null,null,"Conditions d'octroi des prêts consentis par le parti ou par les entités intégrées (art. 436-7)"]
[]
[null,null,null,null,null,"Conditions d'octroi des emprunts souscrits par le parti ou par les entités intégrées (art. 436-8)"]

{"sheet":"Balance ","index":5,"n_rows":142,"n_cols":6,"rows_kept":142,"cut":false,"hidden":false,"merged":[[3,5,7,5]]}
["INTITULES","SOLDE N","SOLDE N-1",null,"signe :","(+) Actif ; Charges"]
["ACTIF IMMOBILISE ",0,0,null,null,"(-) Passif ; Produits"]
["Écarts d'acquisition (brut) "]
["Écarts d'acquisition (amortissements et dépréciations) ",null,null,null,"NB :","Les dotations aux amortissements et de dépréciations doivent être saisies avec le signe (-)"]
["Immobilisations incorporelles (brut) "]
["Immobilisations incorporelles (amortissements et dépréciations) "]
["Immobilisations corporelles ",0]
["Terrains et constructions (brut) "]
["Terrains et constructions (amortissements et dépréciations) "]
["Autres immobilisations corporelles (brut) "]
["Autres immobilisations corporelles (amortissements et dépréciations) "]
["Immobilisations financières ",0]
["Participations et créances rattachées (brut) "]
["Participations et créances rattachées (amortissements et dépréciations) "]
["Autres titres immobilisés (brut) "]
["Autres titres immobilisés (amortissements et dépréciations) "]
["Prêts hors périmètre ",0]
["Prêts à des partis ou groupements politiques (brut) "]
["Prêts à des partis ou groupements politiques (amortissements et dépréciations) "]
["Prêts aux candidats (brut) "]
["Prêts aux candidats (amortissements et dépréciations) "]
["Prêts aux organisations territoriales ou spécialisées du parti (brut) "]
["Prêts aux organisations territoriales ou spécialisées du parti (amortissements et dépréciations) "]
["Prêts à d'autres organismes (brut) "]
["Prêts à d'autres organismes (amortissements et dépréciations) "]
["Autres prêts (brut) "]
["Autres prêts (amortissements et dépréciations) "]
["Autres immobilisations financières (brut) "]
["Autres immobilisations financières (amortissements et dépréciations) "]
["ACTIF CIRCULANT ",0]
["Stocks et en-cours (brut) "]
["Stocks et en-cours (amortissements et dépréciations) "]
["Avances et acomptes versés sur commande (brut) "]
["Avances et acomptes versés sur commande (amortissements et dépréciations) "]
["Créances clients et comptes rattachés (brut) "]
["Créances clients et comptes rattachés (amortissements et dépréciations) "]
["Créances auprès de partis ou groupements politiques (brut) "]
["Créances auprès de partis ou groupements politiques (amortissements et dépréciations) "]
["Autres créances (brut) "]
["Autres créances (amortissements et dépréciations) "]
["Charges constatées d'avance (brut) "]
["Valeurs mobilières de placement (brut) "]
["Valeurs mobilières de placement (amortissements et dépréciations) "]
["Disponibilités (brut) "]
["Actifs des entités non significatives (III) (brut) "]
["Actifs des entités non significatives (III) (amortissements et dépréciations) "]
["TOTAL ACTIF",{"$f":"SUM(B2:B46)","v":0},{"$f":"SUM(C2:C46)","v":0}]
["FONDS PROPRES ",0]
["Réserves d'ensemble ",0]
["Réserves "]
["Réserves pour frais de campagnes électorales "]
["Réserves pour frais de manifestation "]
["Report à nouveau "]
["Excédent ou déficit de l'exercice "]
["Autres fonds propres "]
["Intérêt des tiers "]
["PROVISIONS ",0]
["Provisions pour risques "]
["Provisions pour charges "]
["DETTES  ",0]
["EMPRUNTS",0]
["Emprunts et dettes auprès d'établissement de crédit "]
["Emprunts et dettes auprès de personnes physiques à taux préférentiel "]
["Autres emprunts et dettes auprès de personnes physiques "]
["Emprunts et dettes auprès de partis ou groupements politiques "]
["Dettes fournisseurs et comptes rattachés "]
["Dettes fiscales et sociales "]
["Dettes envers les candidats "]
["Dettes envers les organisations territoriales et spécialisées "]
["Autres dettes "]
["Produits constatés d'avance "]
["Passifs des entités non significatives (IV) "]
["TOTAL PASSIF",{"$f":"SUM(B48:B72)","v":0},{"$f":"SUM(C48:C72)","v":0}]
["PRODUITS D'EXPLOITATION  ",0]
["Cotisations des adhérents "]
["Cotisations des élus "]
["Aides publiques ",0]
["Aide publique 1ère fraction "]
["Aide publique 2nde fraction "]
["Autres aides publiques "]
["Dons de personnes physiques "]
["Dévolutions de l'excédent des comptes de campagne "]
["Dévolutions de partis ou groupements politiques "]
["Contributions financières de partis ou groupements politiques "]
["Prestations de services (manifestations et colloques) "]
["Prestations de services aux candidats "]
["Reprise sur amortissements, dépréciations, provisions "]
["Ventes de marchandises, productions vendue (biens et services), production stockée et production immobilisée "]
["Produits des entités non significatives "]
["Produits des cessions d'immobilisations incorporelles et corporelles"]
["Autres produits "]
["CHARGES D'EXPLOITATION ",0]
["Contributions aux candidats ",0]
["Contributions versées aux candidats "]
["Prises en charge de dépenses électorales "]
["Autres contributions à des entités hors périmètre ",0]
["Contributions à des partis ou groupements politiques "]
["Contributions à des organisations territoriales ou spécialisées du parti "]
["Contributions à d'autres organismes "]
["Achats de marchandises et variation de stocks "]
["Propagande et communication ",0]
["Congrès, manifestation et université "]
["Communication (presse, publications, télévisions, publicité, sites internet, réseaux sociaux) "]
["Autres achats et charges externes ",0]
["Locations, redevances de crédit-bail et charges locatives "]
["Déplacements, missions et réceptions "]
["Honoraires "]
["Personnels extérieurs "]
["Autres achats et autres charges externes "]
["Impôts et taxes "]
["Salaires et traitements "]
["Charges sociales "]
["Dotations aux amortissements et dépréciations sur immobilisations "]
["Dotations aux dépréciations sur actif circulant "]
["Dotations aux provisions "]
["Charges des entités non significatives "]
["Valeurs comptables des immobilisations incorporelles et corporelles cédées"]
["Autres charges "]
["PRODUITS FINANCIERS ",0]
["Produits de participation "]
["Produits des autres immobilisations financières "]
["Autres intérêts et produits assimilés "]
["Reprises sur provisions, dépréciations"]
["Produits des cessions d'immobilisations financières"]
["Produits nets sur cessions de valeurs mobilières de placement et d'instruments de trésorerie"]
["CHARGES FINANCIERES  ",0]
["Dotations aux amortissements, aux dépréciations et aux provisions "]
["Intérêts et charges assimilées "]
["Valeurs comptables des immobilisations financières cédées"]
["Charges nettes sur cessions de valeurs mobilières de placement et d'instruments de trésorerie"]
["PRODUITS EXCEPTIONNELS  ",0]
["Produits exceptionnels   "]
["CHARGES EXCEPTIONNELLES : ",0]
["Charges exceptionnelles  "]
["AUTRES OPERATIONS NON COURANTES",0]
["Impôts sur les bénéfices (VII) "]
["Dotations aux amortissements des écarts d'acquisition (VIII) "]
["Intérêts des tiers (IX) "]
["EXCEDENT OU DEFICIT D'ENSEMBLE ",{"$f":"SUM(B74:B138)","v":0},{"$f":"SUM(C74:C138)","v":0}]
["Contrôle Résultat",{"$f":"+B139-B54","v":0},{"$f":"+C139-C54","v":0}]
["Contrôle Balance",{"$f":"B47+B73","v":0},{"$f":"C47+C73","v":0}]
["Contrôle données comptables",{"$f":"+B139+'Donnees comptables'!FH4","v":0}]

{"sheet":"Donnees comptables","index":6,"n_rows":4,"n_cols":164,"rows_kept":4,"cut":false,"hidden":false,"merged":[[0,85,0,89]]}
["Unité monétaire",null,"ACTIF IMMOBILISÉ",null,null,null,null,null,null,null,null,null,null,null,null,null,null,null,null,null,null,null,null,null,null,null,null,null,null,null,null,null,null,null,null,null,null,null,null,null,null,"ACTIF CIRCULANT",null,null,null,null,null,null,null,null,null,null,null,null,null,null,null,null,null,null,null,null,null,null,null,null,null,null,null,null,null,null,null,null,"FONDS PROPRES",null,null,null,null,null,null,null,"PROVISIONS",null,null,"DETTES",null,null,null,null,null,null,null,null,null,null,null,null,"PRODUITS D'EXPLOITATION",null,null,null,null,null,null,null,null,null,null,null,null,null,null,null,null,"CHARGES D'EXPLOITATION",null,null,null,null,null,null,null,null,null,null,null,null,null,null,null,null,null,null,null,null,null,null,null,"PRODUITS FINANCIERS",null,null,null,null,null,null,"CHARGES FINANCIÈRES",null,null,null,null,null,null,"PRODUITS EXCEPTIONNELS",null,"CHARGES EXCEPTIONNELLES"]
[null,null,null,null,null,null,null,null,"Immobilisations corporelles :",null,null,null,null,null,"Immobilisations financières :",null,null,null,null,null,"Prêts hors périmètre :",null,null,null,null,null,null,null,null,null,null,null,null,null,null,null,null,null,null,null,null,null,null,null,null,null,null,null,null,null,null,null,null,null,null,null,null,null,null,null,null,null,null,null,null,null,null,null,null,null,null,null,null,null,"Réserves d'ensemble :",null,null,null,null,null,null,null,null,null,null,"Emprunts :",null,null,null,null,null,null,null,null,null,null,null,null,null,null,"Aide publique :",null,null,null,null,null,null,null,null,null,null,null,null,null,null,"Contributions aux candidats :",null,"Autres contributions à des entités hors périmètre :",null,null,null,"Propagande et communication :",null,"Autres achats et charges externes :"]
[null,null,"Écarts d'acquisition (brut) ","Écarts d'acquisition (amortissements et dépréciations) ","Écarts d'acquisition (net) ","Immobilisations incorporelles (brut) ","Immobilisations incorporelles (amortissements et dépréciations) ","Immobilisations incorporelles (net) ","Terrains et constructions (brut) ","Terrains et constructions (amortissements et dépréciations) ","Terrains et constructions (net) ","Autres immobilisations corporelles (brut) ","Autres immobilisations corporelles (amortissements et dépréciations) ","Autres immobilisations corporelles (net) ","Participations et créances rattachées (brut) ","Participations et créances rattachées (amortissements et dépréciations) ","Participations et créances rattachées (net) ","Autres titres immobilisés (brut) ","Autres titres immobilisés (amortissements et dépréciations) ","Autres titres immobilisés (net) ","Prêts à des partis ou groupements politiques (brut) ","Prêts à des partis ou groupements politiques (amortissements et dépréciations) ","Prêts à des partis ou groupements politiques (net) ","Prêts aux candidats (brut) ","Prêts aux candidats (amortissements et dépréciations) ","Prêts aux candidats (net) ","Prêts aux organisations territoriales ou spécialisées du parti (brut) ","Prêts aux organisations territoriales ou spécialisées du parti (amortissements et dépréciations) ","Prêts aux organisations territoriales ou spécialisées du parti (net) ","Prêts à d'autres organismes (brut) ","Prêts à d'autres organismes (amortissements et dépréciations) ","Prêts à d'autres organismes (net) ","Autres prêts (brut) ","Autres prêts (amortissements et dépréciations) ","Autres prêts (net) ","Autres immobilisations financières (brut) ","Autres immobilisations financières (amortissements et dépréciations) ","Autres immobilisations financières (net) ","Total I (brut)","Total I (amortissements et dépréciations)","Total I (net)","Stocks et en-cours (brut) ","Stocks et en-cours (amortissements et dépréciations) ","Stocks et en-cours (net) ","Avances et acomptes versés sur commande (brut) ","Avances et acomptes versés sur commande (amortissements et dépréciations) ","Avances et acomptes versés sur commande (net) ","Créances clients et comptes rattachés (brut) ","Créances clients et comptes rattachés (amortissements et dépréciations) ","Créances clients et comptes rattachés (net) ","Créances auprès de partis ou groupements politiques (brut) ","Créances auprès de partis ou groupements politiques (amortissements et dépréciations) ","Créances auprès de partis ou groupements politiques (net) ","Autres créances (brut) ","Autres créances (amortissements et dépréciations) ","Autres créances (net) ","Charges constatées d'avance (brut) ","Charges constatées d'avance (amortissements et dépréciations) ","Charges constatées d'avance (net) ","Valeurs mobilières de placement (brut) ","Valeurs mobilières de placement (amortissements et dépréciations) ","Valeurs mobilières de placement (net) ","Disponibilités (brut) ","Disponibilités (amortissements et dépréciations) ","Disponibilités (net) ","Total II (brut)","Total II (amortissements et dépréciations)","Total II (net)","Actifs des entités non significatives (III) (brut) ","Actifs des entités non significatives (III) (amortissements et dépréciations) ","Actifs des entités non significatives (III) (net)","TOTAL GÉNÉRAL (I + II + III) (brut)","TOTAL GÉNÉRAL (I + II + III) (amortissements et dépréciations)","TOTAL GÉNÉRAL (I + II + III) (net)","Réserves ","Réserves pour frais de campagnes électorales ","Réserves pour frais de manifestation ","Report à nouveau ","Excédent ou déficit de l'exercice ","Autres fonds propres ","Intérêt des tiers ","Total I","Provisions pour risques ","Provisions pour charges ","Total II","Emprunts et dettes auprès d'établissement de crédit ","Emprunts et dettes auprès de personnes physiques à taux préférentiel ","Autres emprunts et dettes auprès de personnes physiques ","Emprunts et dettes auprès de partis ou groupements politiques ","Dettes fournisseurs et comptes rattachés ","Dettes fiscales et sociales ","Dettes envers les candidats ","Dettes envers les organisations territoriales et spécialisées ","Autres dettes ","Produits constatés d'avance ","Total III","Passifs des entités non significatives (IV) ","TOTAL GÉNÉRAL (I + II + III + IV)","Cotisations des adhérents ","Cotisations des élus ","Aide publique 1ère fraction ","Aide publique 2nde fraction ","Autres aides publiques ","Dons de personnes physiques ","Dévolutions de l'excédent des comptes de campagne ","Dévolutions de partis ou groupements politiques ","Contributions financières de partis ou groupements politiques ","Prestations de services (manifestations et colloques) ","Prestations de services aux candidats ","Reprise sur amortissements, dépréciations, provisions ","Ventes de marchandises, productions vendue (biens et services), production stockée et production immobilisée ","Produits des entités non significatives ","Produits des cessions d'immobilisations incorporelles et corporelles","Autres produits ","Total I","Contributions versées aux candidats ","Prises en charge de dépenses électorales ","Contributions à des partis ou groupements politiques ","Contributions à des organisations territoriales ou spécialisées du parti ","Contributions à d'autres organismes ","Achats de marchandises et variation de stocks ","Congrès, manifestation et université ","Communication (presse, publications, télévisions, publicité, sites internet, réseaux sociaux) ","Locations, redevances de crédit-bail et charges locatives ","Déplacements, missions et réceptions ","Honoraires ","Personnels extérieurs ","Autres achats et autres charges externes ","Impôts et taxes ","Salaires et traitements ","Charges sociales ","Dotations aux amortissements et dépréciations sur immobilisations ","Dotations aux dépréciations sur actif circulant ","Dotations aux provisions ","Charges des entités non significatives ","Valeurs comptables des immobilisations incorporelles et corporelles cédées","Autres charges ","Total II","1. RÉSULTAT DES ACTIVITÉS (I - II)","Produits de participation ","Produits des autres immobilisations financières ","Autres intérêts et produits assimilés ","Reprises sur provisions, dépréciations","Produits des cessions d'immobilisations financières","Produits nets sur cessions de valeurs mobilières de placement et d'instruments de trésorerie","Total III","Dotations aux amortissements, aux dépréciations et aux provisions ","Intérêts et charges assimilées ","Valeurs comptables des immobilisations financières cédées","Charges nettes sur cessions de valeurs mobilières de placement et d'instruments de trésorerie","Total IV","2. RÉSULTAT FINANCIER (III - IV)","3. RÉSULTAT COURANT (I - II + III - IV)","Produits exceptionnels   ","Total V","Charges exceptionnelles  ","Total VI","4. RÉSULTAT EXCEPTIONNEL (V - VI)","Impôts sur les bénéfices (VII) ","Dotations aux amortissements des écarts d'acquisition (VIII) ","Intérêts des tiers (IX) ","Total des produits (I + III + V)","Total des charges (II + IV +VI + VII + VIII + IX)","EXCÉDENT OU DÉFICIT D'ENSEMBLE"]
[null,"Montant (sans les centimes) :",{"$f":"IFERROR(VLOOKUP(C3,'Balance '!$A:$C,2,FALSE),0)","v":0},{"$f":"IFERROR(-VLOOKUP(D3,'Balance '!$A:$C,2,FALSE),0)","v":0},{"$f":"C4-D4","v":0},{"$f":"IFERROR(VLOOKUP(F3,'Balance '!$A:$C,2,FALSE),0)","v":0},{"$f":"IFERROR(-VLOOKUP(G3,'Balance '!$A:$C,2,FALSE),0)","v":0},{"$f":"F4-G4","v":0},{"$f":"IFERROR(VLOOKUP(I3,'Balance '!$A:$C,2,FALSE),0)","v":0},{"$f":"IFERROR(-VLOOKUP(J3,'Balance '!$A:$C,2,FALSE),0)","v":0},{"$f":"I4-J4","v":0},{"$f":"IFERROR(VLOOKUP(L3,'Balance '!$A:$C,2,FALSE),0)","v":0},{"$f":"IFERROR(-VLOOKUP(M3,'Balance '!$A:$C,2,FALSE),0)","v":0},{"$f":"L4-M4","v":0},{"$f":"IFERROR(VLOOKUP(O3,'Balance '!$A:$C,2,FALSE),0)","v":0},{"$f":"IFERROR(-VLOOKUP(P3,'Balance '!$A:$C,2,FALSE),0)","v":0},{"$f":"O4-P4","v":0},{"$f":"IFERROR(VLOOKUP(R3,'Balance '!$A:$C,2,FALSE),0)","v":0},{"$f":"IFERROR(-VLOOKUP(S3,'Balance '!$A:$C,2,FALSE),0)","v":0},{"$f":"R4-S4","v":0},{"$f":"IFERROR(VLOOKUP(U3,'Balance '!$A:$C,2,FALSE),0)","v":0},{"$f":"IFERROR(-VLOOKUP(V3,'Balance '!$A:$C,2,FALSE),0)","v":0},{"$f":"U4-V4","v":0},{"$f":"IFERROR(VLOOKUP(X3,'Balance '!$A:$C,2,FALSE),0)","v":0},{"$f":"IFERROR(-VLOOKUP(Y3,'Balance '!$A:$C,2,FALSE),0)","v":0},{"$f":"X4-Y4","v":0},{"$f":"IFERROR(VLOOKUP(AA3,'Balance '!$A:$C,2,FALSE),0)","v":0},{"$f":"IFERROR(-VLOOKUP(AB3,'Balance '!$A:$C,2,FALSE),0)","v":0},{"$f":"AA4-AB4","v":0},{"$f":"IFERROR(VLOOKUP(AD3,'Balance '!$A:$C,2,FALSE),0)","v":0},{"$f":"IFERROR(-VLOOKUP(AE3,'Balance '!$A:$C,2,FALSE),0)","v":0},{"$f":"AD4-AE4","v":0},{"$f":"IFERROR(VLOOKUP(AG3,'Balance '!$A:$C,2,FALSE),0)","v":0},{"$f":"IFERROR(-VLOOKUP(AH3,'Balance '!$A:$C,2,FALSE),0)","v":0},{"$f":"AG4-AH4","v":0},{"$f":"IFERROR(VLOOKUP(AJ3,'Balance '!$A:$C,2,FALSE),0)","v":0},{"$f":"IFERROR(-VLOOKUP(AK3,'Balance '!$A:$C,2,FALSE),0)","v":0},{"$f":"AJ4-AK4","v":0},{"$f":"C4+F4+I4+L4+O4+R4+U4+X4+AA4+AD4+AG4+AJ4","v":0},{"$f":"D4+G4+J4+M4+P4+S4+V4+Y4+AB4+AE4+AH4+AK4","v":0},{"$f":"E4+H4+K4+N4+Q4+T4+W4+Z4+AC4+AF4+AI4+AL4","v":0},{"$f":"IFERROR(VLOOKUP(AP3,'Balance '!$A:$C,2,FALSE),0)","v":0},{"$f":"IFERROR(-VLOOKUP(AQ3,'Balance '!$A:$C,2,FALSE),0)","v":0},{"$f":"AP4-AQ4","v":0},{"$f":"IFERROR(VLOOKUP(AS3,'Balance '!$A:$C,2,FALSE),0)","v":0},{"$f":"IFERROR(-VLOOKUP(AT3,'Balance '!$A:$C,2,FALSE),0)","v":0},{"$f":"AS4-AT4","v":0},{"$f":"IFERROR(VLOOKUP(AV3,'Balance '!$A:$C,2,FALSE),0)","v":0},{"$f":"IFERROR(-VLOOKUP(AW3,'Balance '!$A:$C,2,FALSE),0)","v":0},{"$f":"AV4-AW4","v":0},{"$f":"IFERROR(VLOOKUP(AY3,'Balance '!$A:$C,2,FALSE),0)","v":0},{"$f":"IFERROR(-VLOOKUP(AZ3,'Balance '!$A:$C,2,FALSE),0)","v":0},{"$f":"AY4-AZ4","v":0},{"$f":"IFERROR(VLOOKUP(BB3,'Balance '!$A:$C,2,FALSE),0)","v":0},{"$f":"IFERROR(-VLOOKUP(BC3,'Balance '!$A:$C,2,FALSE),0)","v":0},{"$f":"BB4-BC4","v":0},{"$f":"IFERROR(VLOOKUP(BE3,'Balance '!$A:$C,2,FALSE),0)","v":0},{"$f":"IFERROR(-VLOOKUP(BF3,'Balance '!$A:$C,2,FALSE),0)","v":0},{"$f":"BE4-BF4","v":0},{"$f":"IFERROR(VLOOKUP(BH3,'Balance '!$A:$C,2,FALSE),0)","v":0},{"$f":"IFERROR(-VLOOKUP(BI3,'Balance '!$A:$C,2,FALSE),0)","v":0},{"$f":"BH4-BI4","v":0},{"$f":"IFERROR(VLOOKUP(BK3,'Balance '!$A:$C,2,FALSE),0)","v":0},{"$f":"IFERROR(-VLOOKUP(BL3,'Balance '!$A:$C,2,FALSE),0)","v":0},{"$f":"BK4-BL4","v":0},{"$f":"AP4+AS4+AV4+AY4+BB4+BH4+BK4+BE4","v":0},{"$f":"AQ4+AT4+AW4+AZ4+BC4+BI4+BL4+BF4","v":0},{"$f":"AR4+AU4+AX4+BA4+BD4+BJ4+BM4+BG4","v":0},{"$f":"IFERROR(VLOOKUP(BQ3,'Balance '!$A:$C,2,FALSE),0)","v":0},{"$f":"IFERROR(-VLOOKUP(BR3,'Balance '!$A:$C,2,FALSE),0)","v":0},{"$f":"BQ4-BR4","v":0},{"$f":"AM4+BN4+BQ4","v":0},{"$f":"AN4+BO4+BR4","v":0},{"$f":"AO4+BP4+BS4","v":0},{"$f":"IFERROR(-VLOOKUP(BW3,'Balance '!$A:$C,2,FALSE),0)","v":0},{"$f":"IFERROR(-VLOOKUP(BX3,'Balance '!$A:$C,2,FALSE),0)","v":0},{"$f":"IFERROR(-VLOOKUP(BY3,'Balance '!$A:$C,2,FALSE),0)","v":0},{"$f":"IFERROR(-VLOOKUP(BZ3,'Balance '!$A:$C,2,FALSE),0)","v":0},{"$f":"FH4","v":0},{"$f":"IFERROR(-VLOOKUP(CB3,'Balance '!$A:$C,2,FALSE),0)","v":0},{"$f":"IFERROR(-VLOOKUP(CC3,'Balance '!$A:$C,2,FALSE),0)","v":0},{"$f":"BW4+BX4+BY4+BZ4+CA4+CB4+CC4","v":0},{"$f":"IFERROR(-VLOOKUP(CE3,'Balance '!$A:$C,2,FALSE),0)","v":0},{"$f":"IFERROR(-VLOOKUP(CF3,'Balance '!$A:$C,2,FALSE),0)","v":0},{"$f":"CE4+CF4","v":0},{"$f":"IFERROR(-VLOOKUP(CH3,'Balance '!$A:$C,2,FALSE),0)","v":0},{"$f":"IFERROR(-VLOOKUP(CI3,'Balance '!$A:$C,2,FALSE),0)","v":0},{"$f":"IFERROR(-VLOOKUP(CJ3,'Balance '!$A:$C,2,FALSE),0)","v":0},{"$f":"IFERROR(-VLOOKUP(CK3,'Balance '!$A:$C,2,FALSE),0)","v":0},{"$f":"IFERROR(-VLOOKUP(CL3,'Balance '!$A:$C,2,FALSE),0)","v":0},{"$f":"IFERROR(-VLOOKUP(CM3,'Balance '!$A:$C,2,FALSE),0)","v":0},{"$f":"IFERROR(-VLOOKUP(CN3,'Balance '!$A:$C,2,FALSE),0)","v":0},{"$f":"IFERROR(-VLOOKUP(CO3,'Balance '!$A:$C,2,FALSE),0)","v":0},{"$f":"IFERROR(-VLOOKUP(CP3,'Balance '!$A:$C,2,FALSE),0)","v":0},{"$f":"IFERROR(-VLOOKUP(CQ3,'Balance '!$A:$C,2,FALSE),0)","v":0},{"$f":"CH4+CI4+CJ4+CK4+CL4+CM4+CN4+CO4+CP4+CQ4","v":0},{"$f":"IFERROR(-VLOOKUP(CS3,'Balance '!$A:$C,2,FALSE),0)","v":0},{"$f":"CD4+CG4+CR4+CS4","v":0},{"$f":"IFERROR(-VLOOKUP(CU3,'Balance '!$A:$C,2,FALSE),0)","v":0},{"$f":"IFERROR(-VLOOKUP(CV3,'Balance '!$A:$C,2,FALSE),0)","v":0},{"$f":"IFERROR(-VLOOKUP(CW3,'Balance '!$A:$C,2,FALSE),0)","v":0},{"$f":"IFERROR(-VLOOKUP(CX3,'Balance '!$A:$C,2,FALSE),0)","v":0},{"$f":"IFERROR(-VLOOKUP(CY3,'Balance '!$A:$C,2,FALSE),0)","v":0},{"$f":"IFERROR(-VLOOKUP(CZ3,'Balance '!$A:$C,2,FALSE),0)","v":0},{"$f":"IFERROR(-VLOOKUP(DA3,'Balance '!$A:$C,2,FALSE),0)","v":0},{"$f":"IFERROR(-VLOOKUP(DB3,'Balance '!$A:$C,2,FALSE),0)","v":0},{"$f":"IFERROR(-VLOOKUP(DC3,'Balance '!$A:$C,2,FALSE),0)","v":0},{"$f":"IFERROR(-VLOOKUP(DD3,'Balance '!$A:$C,2,FALSE),0)","v":0},{"$f":"IFERROR(-VLOOKUP(DE3,'Balance '!$A:$C,2,FALSE),0)","v":0},{"$f":"IFERROR(-VLOOKUP(DF3,'Balance '!$A:$C,2,FALSE),0)","v":0},{"$f":"IFERROR(-VLOOKUP(DG3,'Balance '!$A:$C,2,FALSE),0)","v":0},{"$f":"IFERROR(-VLOOKUP(DH3,'Balance '!$A:$C,2,FALSE),0)","v":0},{"$f":"IFERROR(-VLOOKUP(DI3,'Balance '!$A:$C,2,FALSE),0)","v":0},{"$f":"IFERROR(-VLOOKUP(DJ3,'Balance '!$A:$C,2,FALSE),0)","v":0},{"$f":"CU4+CV4+CW4+CX4+CY4+CZ4+DA4+DB4+DC4+DD4+DE4+DF4+DG4+DH4+DI4+DJ4","v":0},{"$f":"IFERROR(VLOOKUP(DL3,'Balance '!$A:$C,2,FALSE),0)","v":0},{"$f":"IFERROR(VLOOKUP(DM3,'Balance '!$A:$C,2,FALSE),0)","v":0},{"$f":"IFERROR(VLOOKUP(DN3,'Balance '!$A:$C,2,FALSE),0)","v":0},{"$f":"IFERROR(VLOOKUP(DO3,'Balance '!$A:$C,2,FALSE),0)","v":0},{"$f":"IFERROR(VLOOKUP(DP3,'Balance '!$A:$C,2,FALSE),0)","v":0},{"$f":"IFERROR(VLOOKUP(DQ3,'Balance '!$A:$C,2,FALSE),0)","v":0},{"$f":"IFERROR(VLOOKUP(DR3,'Balance '!$A:$C,2,FALSE),0)","v":0},{"$f":"IFERROR(VLOOKUP(DS3,'Balance '!$A:$C,2,FALSE),0)","v":0},{"$f":"IFERROR(VLOOKUP(DT3,'Balance '!$A:$C,2,FALSE),0)","v":0},{"$f":"IFERROR(VLOOKUP(DU3,'Balance '!$A:$C,2,FALSE),0)","v":0},{"$f":"IFERROR(VLOOKUP(DV3,'Balance '!$A:$C,2,FALSE),0)","v":0},{"$f":"IFERROR(VLOOKUP(DW3,'Balance '!$A:$C,2,FALSE),0)","v":0},{"$f":"IFERROR(VLOOKUP(DX3,'Balance '!$A:$C,2,FALSE),0)","v":0},{"$f":"IFERROR(VLOOKUP(DY3,'Balance '!$A:$C,2,FALSE),0)","v":0},{"$f":"IFERROR(VLOOKUP(DZ3,'Balance '!$A:$C,2,FALSE),0)","v":0},{"$f":"IFERROR(VLOOKUP(EA3,'Balance '!$A:$C,2,FALSE),0)","v":0},{"$f":"IFERROR(VLOOKUP(EB3,'Balance '!$A:$C,2,FALSE),0)","v":0},{"$f":"IFERROR(VLOOKUP(EC3,'Balance '!$A:$C,2,FALSE),0)","v":0},{"$f":"IFERROR(VLOOKUP(ED3,'Balance '!$A:$C,2,FALSE),0)","v":0},{"$f":"IFERROR(VLOOKUP(EE3,'Balance '!$A:$C,2,FALSE),0)","v":0},{"$f":"IFERROR(VLOOKUP(EF3,'Balance '!$A:$C,2,FALSE),0)","v":0},{"$f":"IFERROR(VLOOKUP(EG3,'Balance '!$A:$C,2,FALSE),0)","v":0},{"$f":"DL4+DM4+DN4+DO4+DP4+DQ4+DR4+DS4+DT4+DU4+DV4+DW4+DX4+DY4+DZ4+EA4+EB4+EC4+ED4+EE4+EF4+EG4","v":0},{"$f":"DK4-EH4","v":0},{"$f":"IFERROR(-VLOOKUP(EJ3,'Balance '!$A:$C,2,FALSE),0)","v":0},{"$f":"IFERROR(-VLOOKUP(EK3,'Balance '!$A:$C,2,FALSE),0)","v":0},{"$f":"IFERROR(-VLOOKUP(EL3,'Balance '!$A:$C,2,FALSE),0)","v":0},{"$f":"IFERROR(-VLOOKUP(EM3,'Balance '!$A:$C,2,FALSE),0)","v":0},{"$f":"IFERROR(-VLOOKUP(EN3,'Balance '!$A:$C,2,FALSE),0)","v":0},{"$f":"IFERROR(-VLOOKUP(EO3,'Balance '!$A:$C,2,FALSE),0)","v":0},{"$f":"EJ4+EK4+EL4+EM4+EN4+EO4","v":0},{"$f":"IFERROR(VLOOKUP(EQ3,'Balance '!$A:$C,2,FALSE),0)","v":0},{"$f":"IFERROR(VLOOKUP(ER3,'Balance '!$A:$C,2,FALSE),0)","v":0},{"$f":"IFERROR(VLOOKUP(ES3,'Balance '!$A:$C,2,FALSE),0)","v":0},{"$f":"IFERROR(VLOOKUP(ET3,'Balance '!$A:$C,2,FALSE),0)","v":0},{"$f":"EQ4+ER4+ES4+ET4","v":0},{"$f":"EP4-EU4","v":0},{"$f":"DK4-EH4+EP4-EU4","v":0},{"$f":"IFERROR(-VLOOKUP(EX3,'Balance '!$A:$C,2,FALSE),0)","v":0},{"$f":"EX4","v":0},{"$f":"IFERROR(VLOOKUP(EZ3,'Balance '!$A:$C,2,FALSE),0)","v":0},{"$f":"EZ4","v":0},{"$f":"EY4-FA4","v":0},{"$f":"IFERROR(VLOOKUP(FC3,'Balance '!$A:$C,2,FALSE),0)","v":0},{"$f":"IFERROR(VLOOKUP(FD3,'Balance '!$A:$C,2,FALSE),0)","v":0},{"$f":"IFERROR(VLOOKUP(FE3,'Balance '!$A:$C,2,FALSE),0)","v":0},{"$f":"DK4+EP4+EY4","v":0},{"$f":"EH4+EU4+FA4+FC4+FD4+FE4","v":0},{"$f":"FF4-FG4","v":0}]

{"sheet":"Bilan d'ensemble Actif ","index":7,"n_rows":34,"n_cols":6,"rows_kept":34,"cut":false,"hidden":false,"merged":[[0,0,1,0],[0,2,0,4]]}
["ACTIF ",null,"Exercice 2025",null,null,"Exercice  2024"]
[null,null,"Brut ","Amortissements et dépréciations \n(à déduire) ","Net ","Net "]
["ACTIF IMMOBILISE "]
["Ecarts d'acquisition ","Amort./Déprec. Ecarts d'acquisition ",{"$f":"+'Balance '!B3","v":0},{"$f":"-+'Balance '!B4","v":0},{"$f":"C4-D4","v":0},{"$f":"+'Balance '!C3+'Balance '!C4","v":0}]
["Immobilisations incorporelles ","Amort./ Dépréc. Immobilisations incorporelles ",{"$f":"+'Balance '!B5","v":0},{"$f":"-'Balance '!B6","v":0},0,{"$f":"+'Balance '!C5+'Balance '!C6","v":0}]
["Immobilisations corporelles ",null,null,null,0]
["Terrains et constructions ","Amort. constructions ",{"$f":"+'Balance '!B8","v":0},{"$f":"-'Balance '!B9","v":0},0,{"$f":"+'Balance '!C8+'Balance '!C9","v":0}]
["Autres immobilisations corporelles ","Amort. autres immobilisations corporelles ",{"$f":"+'Balance '!B10","v":0},{"$f":"-'Balance '!B11","v":0},0,{"$f":"+'Balance '!C10+'Balance '!C11","v":0}]
["Immobilisations financières ",null,null,null,0]
["Participations et créances rattachées ","Dépréc. Participations et créances rattachées ",{"$f":"+'Balance '!B13","v":0},{"$f":"-'Balance '!B14","v":0},0,{"$f":"+'Balance '!C13+'Balance '!C14","v":0}]
["Autres titres immobilisés ","Dépréc. Autres titres immobilisés ",{"$f":"+'Balance '!B15","v":0},{"$f":"-'Balance '!B16","v":0},0,{"$f":"+'Balance '!C15+'Balance '!C16","v":0}]
["Prêts hors périmètre ",null,null,null,0]
["Prêts à des partis ou groupements politiques ","Déprec. Prêts à des partis ou groupements politiques ",{"$f":"+'Balance '!B18","v":0},{"$f":"-'Balance '!B19","v":0},0,{"$f":"+'Balance '!C18+'Balance '!C19","v":0}]
["Prêts aux candidats ","Dépréc. Prêts aux candidats ",{"$f":"+'Balance '!B20","v":0},{"$f":"-'Balance '!B21","v":0},0,{"$f":"+'Balance '!C20+'Balance '!C21","v":0}]
["Prêts aux organisations territoriales ou spécialisées du parti ","Dépréc. Prêts aux organisations territoriales ou spécialisées du parti ",{"$f":"+'Balance '!B22","v":0},{"$f":"-'Balance '!B23","v":0},0,{"$f":"+'Balance '!C22+'Balance '!C23","v":0}]
["Prêts à d'autres organismes ","Dépréc. Prêts à d'autres organismes ",{"$f":"+'Balance '!B24","v":0},{"$f":"-'Balance '!B25","v":0},0,{"$f":"+'Balance '!C24+'Balance '!C25","v":0}]
["Autres prêts ","Dépréc. Autres prêts ",{"$f":"+'Balance '!B26","v":0},{"$f":"-'Balance '!B27","v":0},0,{"$f":"+'Balance '!C26+'Balance '!C27","v":0}]
["Autres immobilisations financières ","Dépréc. autres immobilisations financières ",{"$f":"+'Balance '!B28","v":0},{"$f":"-'Balance '!B29","v":0},0,{"$f":"+'Balance '!C28+'Balance '!C29","v":0}]
["Total I ",null,{"$f":"SUM(C3:C18)","v":0},{"$f":"SUM(D3:D18)","v":0},{"$f":"SUM(E3:E18)","v":0},{"$f":"SUM(F3:F18)","v":0}]
["ACTIF CIRCULANT "]
["Stocks et en-cours ","Dépréc. Stocks et en-cours ",{"$f":"+'Balance '!B31","v":0},{"$f":"-'Balance '!B32","v":0},{"$f":"C21-D21","v":0},{"$f":"+'Balance '!C31+'Balance '!C32","v":0}]
["Avances et acomptes versés sur commande ","Dépréc. Avances et acomptes versés sur commande ",{"$f":"+'Balance '!B33","v":0},{"$f":"-'Balance '!B34","v":0},0,{"$f":"+'Balance '!C33+'Balance '!C34","v":0}]
["Créances clients et comptes rattachés ","Dépréc. Créances clients et comptes rattachés ",{"$f":"+'Balance '!B35","v":0},{"$f":"-'Balance '!B36","v":0},0,{"$f":"+'Balance '!C35+'Balance '!C36","v":0}]
["Créances auprès de partis ou groupements politiques ","Dépréc. Créances auprès de partis ou groupements politiques ",{"$f":"+'Balance '!B37","v":0},{"$f":"-'Balance '!B38","v":0},0,{"$f":"+'Balance '!C37+'Balance '!C38","v":0}]
["Autres créances ","Déprec. Autres créances ",{"$f":"+'Balance '!B39","v":0},{"$f":"-'Balance '!B40","v":0},0,{"$f":"+'Balance '!C39+'Balance '!C40","v":0}]
["Charges constatées d'avance ",null,{"$f":"+'Balance '!B41","v":0},null,{"$f":"C26-D26","v":0},{"$f":"+'Balance '!C41","v":0}]
["Valeurs mobilières de placement ","Dépréc. Valeurs mobilières de placement ",{"$f":"+'Balance '!B42","v":0},{"$f":"-'Balance '!B43","v":0},0,{"$f":"+'Balance '!C42+'Balance '!C43","v":0}]
["Disponibilités ",null,{"$f":"+'Balance '!B44","v":0},null,0,{"$f":"+'Balance '!C44","v":0}]
["Total II ",null,{"$f":"SUM(C20:C28)","v":0},{"$f":"SUM(D20:D28)","v":0},{"$f":"SUM(E20:E28)","v":0},{"$f":"SUM(F20:F28)","v":0}]
["Actifs des entités non significatives (III) ","Actifs des entités non significatives (amortissements et dépréciations) ",{"$f":"+'Balance '!B45","v":0},{"$f":"-'Balance '!B46","v":0},{"$f":"+C30-D30","v":0},{"$f":"+'Balance '!C45+'Balance '!C46","v":0}]
["TOTAL GENERAL (I + II+III) ",null,{"$f":"+C19+C29+C30","v":0},{"$f":"+D19+D29+D30","v":0},{"$f":"+E19+E29+E30","v":0},{"$f":"+F19+F29+F30","v":0}]
[]
[]
["Contrôle Bilan",null,null,null,{"$f":"E31-'Bilan d''ensemble Passif'!E30","v":0},{"$f":"F31-'Bilan d''ensemble Passif'!F30","v":0}]

{"sheet":"Bilan d'ensemble Passif","index":8,"n_rows":33,"n_cols":6,"rows_kept":33,"cut":false,"hidden":false,"merged":[[0,0,0,3],[10,0,10,3],[14,0,14,3],[27,0,27,3],[29,0,29,3]]}
["PASSIF ",null,null,null,"Exercice  2025","Exercice  2024"]
["FONDS PROPRES "]
["Réserves d'ensemble ",null,null,null,{"$f":"-'Balance '!B49","v":0},{"$f":"-'Balance '!C49","v":0}]
["Réserves ",null,null,null,{"$f":"-'Balance '!B50","v":0},{"$f":"-'Balance '!C50","v":0}]
["Réserves pour frais de campagnes électorales ",null,null,null,{"$f":"-'Balance '!B51","v":0},{"$f":"-'Balance '!C51","v":0}]
["Réserves pour frais de manifestation ",null,null,null,{"$f":"-'Balance '!B52","v":0},{"$f":"-'Balance '!C52","v":0}]
["Report à nouveau ",null,null,null,{"$f":"-'Balance '!B53","v":0},{"$f":"-'Balance '!C53","v":0}]
["Excédent ou déficit de l'exercice ",null,null,null,{"$f":"-'Balance '!B54","v":0},{"$f":"-'Balance '!C54","v":0}]
["Autres fonds propres ",null,null,null,{"$f":"-'Balance '!B55","v":0},{"$f":"-'Balance '!C55","v":0}]
["Intérêts des tiers ",null,null,null,{"$f":"-'Balance '!B56","v":0},{"$f":"-'Balance '!C56","v":0}]
["Total I ",null,null,null,{"$f":"SUM(E2:E10)","v":0},{"$f":"SUM(F2:F10)","v":0}]
["PROVISIONS "]
["Provisions pour risques ",null,null,null,{"$f":"-'Balance '!B58","v":0},{"$f":"-'Balance '!C58","v":0}]
["Provisions pour charges ",null,null,null,{"$f":"-'Balance '!B59","v":0},{"$f":"-'Balance '!C59","v":0}]
["Total II ",null,null,null,{"$f":"SUM(E12:E14)","v":0},{"$f":"SUM(F12:F14)","v":0}]
["DETTES "]
["Emprunts ",null,null,null,{"$f":"-'Balance '!B61","v":0},{"$f":"-'Balance '!C61","v":0}]
["Emprunts et dettes auprès d'établissements de crédit ",null,null,null,{"$f":"-'Balance '!B62","v":0},{"$f":"-'Balance '!C62","v":0}]
["Emprunts et dettes auprès des personnes physiques à taux préférentiel",null,null,null,{"$f":"-'Balance '!B63","v":0},{"$f":"-'Balance '!C63","v":0}]
["Emprunts et dettes auprès des personnes physiques",null,null,null,{"$f":"-'Balance '!B64","v":0},{"$f":"-'Balance '!C64","v":0}]
["Emprunts et dettes auprès de partis ou groupements politiques ",null,null,null,{"$f":"-'Balance '!B65","v":0},{"$f":"-'Balance '!C65","v":0}]
["Dettes fournisseurs et comptes rattachés ",null,null,null,{"$f":"-'Balance '!B66","v":0},{"$f":"-'Balance '!C66","v":0}]
["Dettes fiscales et sociales ",null,null,null,{"$f":"-'Balance '!B67","v":0},{"$f":"-'Balance '!C67","v":0}]
["Dettes envers les candidats ",null,null,null,{"$f":"-'Balance '!B68","v":0},{"$f":"-'Balance '!C68","v":0}]
["Dettes envers les organisations territoriales ou spécialisées ",null,null,null,{"$f":"-'Balance '!B69","v":0},{"$f":"-'Balance '!C69","v":0}]
["Autres dettes ",null,null,null,{"$f":"-'Balance '!B70","v":0},{"$f":"-'Balance '!C70","v":0}]
["Produits constatés d'avance ",null,null,null,{"$f":"-'Balance '!B71","v":0},{"$f":"-'Balance '!C71","v":0}]
["Total III ",null,null,null,{"$f":"SUM(E16:E27)","v":0},{"$f":"SUM(F16:F27)","v":0}]
["Passifs des entités non significatives (IV) ",null,null,null,{"$f":"-'Balance '!B72","v":0},{"$f":"-'Balance '!C72","v":0}]
["TOTAL GENERAL (I + II + III+IV) ",null,null,null,{"$f":"+E11+E15+E28+E29","v":0},{"$f":"+F11+F15+F28+F29","v":0}]
[]
[]
["Contrôle Bilan",null,null,null,{"$f":"'Bilan d''ensemble Actif '!E31-E30","v":0},{"$f":"'Bilan d''ensemble Actif '!F31-F30","v":0}]

{"sheet":"Compte de resultat d'ensemble","index":9,"n_rows":80,"n_cols":6,"rows_kept":80,"cut":false,"hidden":false,"merged":[[62,0,62,3],[0,0,0,3],[19,0,19,3],[47,0,47,3],[48,0,48,3],[56,0,56,3],[76,0,76,3],[77,0,77,3],[63,0,63,3],[64,0,64,3],[67,0,67,3],[70,0,70,3],[71,0,71,3],[75,0,75,3]]}
["COMPTE DE RESULTAT ",null,null,null,"Exercice  2025","Exercice  2024"]
["PRODUITS D'EXPLOITATION  "]
["Cotisations des adhérents ",null,null,null,{"$f":"-'Balance '!B75","v":0},{"$f":"-'Balance '!C75","v":0}]
["Cotisations des élus ",null,null,null,{"$f":"-'Balance '!B76","v":0},{"$f":"-'Balance '!C76","v":0}]
["Aides publiques ",null,null,null,{"$f":"-'Balance '!B77","v":0},{"$f":"-'Balance '!C77","v":0}]
["Aide publique 1ère fraction ",null,null,null,{"$f":"-'Balance '!B78","v":0},{"$f":"-'Balance '!C78","v":0}]
["Aide publique 2ème fraction ",null,null,null,{"$f":"-'Balance '!B79","v":0},{"$f":"-'Balance '!C79","v":0}]
["Autres aides publiques ",null,null,null,{"$f":"-'Balance '!B80","v":0},{"$f":"-'Balance '!C80","v":0}]
["Dons de personnes physiques ",null,null,null,{"$f":"-'Balance '!B81","v":0},{"$f":"-'Balance '!C81","v":0}]
["Dévolutions de l'excédent des comptes de campagne ",null,null,null,{"$f":"-'Balance '!B82","v":0},{"$f":"-'Balance '!C82","v":0}]
["Dévolutions de partis ou groupements politiques ",null,null,null,{"$f":"-'Balance '!B83","v":0},{"$f":"-'Balance '!C83","v":0}]
["Contributions financières de partis ou groupements politiques ",null,null,null,{"$f":"-'Balance '!B84","v":0},{"$f":"-'Balance '!C84","v":0}]
["Prestations de services (manifestations et colloques) ",null,null,null,{"$f":"-'Balance '!B85","v":0},{"$f":"-'Balance '!C85","v":0}]
["Prestations de services aux candidats ",null,null,null,{"$f":"-'Balance '!B86","v":0},{"$f":"-'Balance '!C86","v":0}]
["Reprises sur amortissements, dépréciations, provisions ",null,null,null,{"$f":"-'Balance '!B87","v":0},{"$f":"-'Balance '!C87","v":0}]
["Ventes de marchandises, production vendue (biens et services), production stockée et production immobilisée ",null,null,null,{"$f":"-'Balance '!B88","v":0},{"$f":"-'Balance '!C88","v":0}]
["Produits des entités non significatives ",null,null,null,{"$f":"-'Balance '!B89","v":0},{"$f":"-'Balance '!C89","v":0}]
["Produits des cessions d'immobilisations incorporelles et corporelles",null,null,null,{"$f":"-'Balance '!B90","v":0},{"$f":"-'Balance '!C90","v":0}]
["Autres produits ",null,null,null,{"$f":"-'Balance '!B91","v":0},{"$f":"-'Balance '!C91","v":0}]
["Total I ",null,null,null,{"$f":"SUM(E2:E19)","v":0},{"$f":"SUM(F2:F19)","v":0}]
["CHARGES D'EXPLOITATION "]
["Contributions aux candidats ",null,null,null,{"$f":"+'Balance '!B93","v":0},{"$f":"+'Balance '!C93","v":0}]
["Contributions versées aux candidats ",null,null,null,{"$f":"+'Balance '!B94","v":0},{"$f":"+'Balance '!C94","v":0}]
["Prises en charge de dépenses électorales ",null,null,null,{"$f":"+'Balance '!B95","v":0},{"$f":"+'Balance '!C95","v":0}]
["Autres contributions à des entités hors périmètre ",null,null,null,{"$f":"+'Balance '!B96","v":0},{"$f":"+'Balance '!C96","v":0}]
["Contributions à des partis ou groupement politiques ",null,null,null,{"$f":"+'Balance '!B97","v":0},{"$f":"+'Balance '!C97","v":0}]
["Contributions à des organisations territoriales ou spécialisées du parti ",null,null,null,{"$f":"+'Balance '!B98","v":0},{"$f":"+'Balance '!C98","v":0}]
["Contributions à d'autres organismes ",null,null,null,{"$f":"+'Balance '!B99","v":0},{"$f":"+'Balance '!C99","v":0}]
["Achats de marchandises et variation de stocks ",null,null,null,{"$f":"+'Balance '!B100","v":0},{"$f":"+'Balance '!C100","v":0}]
["Propagande et communication ",null,null,null,{"$f":"+'Balance '!B101","v":0},{"$f":"+'Balance '!C101","v":0}]
["Congrès, manifestations et universités ",null,null,null,{"$f":"+'Balance '!B102","v":0},{"$f":"+'Balance '!C102","v":0}]
["Communication (presse, publications, télévisions, publicité, sites internet, réseaux sociaux) ",null,null,null,{"$f":"+'Balance '!B103","v":0},{"$f":"+'Balance '!C103","v":0}]
["Autres achats et charges externes ",null,null,null,{"$f":"+'Balance '!B104","v":0},{"$f":"+'Balance '!C104","v":0}]
["Locations, redevances de crédit-bail et charges locatives ",null,null,null,{"$f":"+'Balance '!B105","v":0},{"$f":"+'Balance '!C105","v":0}]
["Déplacements, missions et réceptions ",null,null,null,{"$f":"+'Balance '!B106","v":0},{"$f":"+'Balance '!C106","v":0}]
["Honoraires ",null,null,null,{"$f":"+'Balance '!B107","v":0},{"$f":"+'Balance '!C107","v":0}]
["Personnels extérieurs ",null,null,null,{"$f":"+'Balance '!B108","v":0},{"$f":"+'Balance '!C108","v":0}]
["Autres achats et autres charges externes ",null,null,null,{"$f":"+'Balance '!B109","v":0},{"$f":"+'Balance '!C109","v":0}]
["Impôts et taxes ",null,null,null,{"$f":"+'Balance '!B110","v":0},{"$f":"+'Balance '!C110","v":0}]
["Salaires et traitements ",null,null,null,{"$f":"+'Balance '!B111","v":0},{"$f":"+'Balance '!C111","v":0}]
["Charges sociales ",null,null,null,{"$f":"+'Balance '!B112","v":0},{"$f":"+'Balance '!C112","v":0}]
["Dotations aux amortissements et dépréciations sur immobilisations ",null,null,null,{"$f":"+'Balance '!B113","v":0},{"$f":"+'Balance '!C113","v":0}]
["Dotations aux dépréciations sur actif circulant ",null,null,null,{"$f":"+'Balance '!B114","v":0},{"$f":"+'Balance '!C114","v":0}]
["Dotations aux provisions ",null,null,null,{"$f":"+'Balance '!B115","v":0},{"$f":"+'Balance '!C115","v":0}]
["Charges des entités non significatives ",null,null,null,{"$f":"+'Balance '!B116","v":0},{"$f":"+'Balance '!C116","v":0}]
["Valeurs comptables des immobilisations incorporelles et corporelles cédées",null,null,null,{"$f":"+'Balance '!B117","v":0},{"$f":"+'Balance '!C117","v":0}]
["Autres charges ",null,null,null,{"$f":"+'Balance '!B118","v":0},{"$f":"+'Balance '!C118","v":0}]
["Total II ",null,null,null,{"$f":"SUM(E21:E47)","v":0},{"$f":"SUM(F21:F47)","v":0}]
["1. RESULTAT DES ACTIVITES (I -II) ",null,null,null,{"$f":"+E20-E48","v":0},{"$f":"+F20-F48","v":0}]
["PRODUITS FINANCIERS "]
["Produits de participation ",null,null,null,{"$f":"-'Balance '!B120","v":0},{"$f":"-'Balance '!C120","v":0}]
["Produits des autres immobilisations financières ",null,null,null,{"$f":"-'Balance '!B121","v":0},{"$f":"-'Balance '!C121","v":0}]
["Autres intérêts et produits assimilés ",null,null,null,{"$f":"-'Balance '!B122","v":0},{"$f":"-'Balance '!C122","v":0}]
["Reprises sur provisions, dépréciations ",null,null,null,{"$f":"-'Balance '!B123","v":0},{"$f":"-'Balance '!C123","v":0}]
["Produits des cessions d'immobilisations financières",null,null,null,{"$f":"-'Balance '!B124","v":0},{"$f":"-'Balance '!C124","v":0}]
["Produits nets sur cessions de valeurs mobilières de placement et d'instruments de trésorerie",null,null,null,{"$f":"-'Balance '!B125","v":0},{"$f":"-'Balance '!C125","v":0}]
["Total III ",null,null,null,{"$f":"SUM(E50:E56)","v":0},{"$f":"SUM(F50:F56)","v":0}]
["CHARGES FINANCIERES  "]
["Dotations aux amortissements, aux dépréciations et aux provisions fin. ",null,null,null,{"$f":"+'Balance '!B127","v":0},{"$f":"+'Balance '!C127","v":0}]
["Intérêts et charges assimilées ",null,null,null,{"$f":"+'Balance '!B128","v":0},{"$f":"+'Balance '!C128","v":0}]
["Valeurs comptables des immobilisations financières cédées",null,null,null,{"$f":"+'Balance '!B129","v":0},{"$f":"+'Balance '!C129","v":0}]
["Charges nettes sur cessions de valeurs mobilières de placement et d'instruments de trésorerie",null,null,null,{"$f":"+'Balance '!B130","v":0},{"$f":"+'Balance '!C130","v":0}]
["Total IV ",null,null,null,{"$f":"SUM(E58:E62)","v":0},{"$f":"SUM(F58:F62)","v":0}]
["2. RESULTAT FINANCIER (III - IV) ",null,null,null,{"$f":"+E57-E63","v":0},{"$f":"+F57-F63","v":0}]
["3. RESULTAT COURANT (I - II + III - IV) ",null,null,null,{"$f":"+E49+E64","v":0},{"$f":"+F49+F64","v":0}]
["PRODUITS EXCEPTIONNELS  "]
["Produits exceptionnels  ",null,null,null,{"$f":"-'Balance '!B132","v":0},{"$f":"-'Balance '!C132","v":0}]
["Total V ",null,null,null,{"$f":"SUM(E66:E67)","v":0},{"$f":"SUM(F66:F67)","v":0}]
["CHARGES EXCEPTIONNELLES : "]
["Charges exceptionnelles   ",null,null,null,{"$f":"+'Balance '!B134","v":0},{"$f":"+'Balance '!C134","v":0}]
["Total VI ",null,null,null,{"$f":"SUM(E69:E70)","v":0},{"$f":"SUM(F69:F70)","v":0}]
["4. RESULTAT EXCEPTIONNEL (V - VI) ",null,null,null,{"$f":"+E68-E71","v":0},{"$f":"+F68-F71","v":0}]
["Impôts sur les bénéfices (VII) ",null,null,null,{"$f":"+'Balance '!B136","v":0},{"$f":"+'Balance '!C136","v":0}]
["Dotations aux amortissements des écarts d'acquisition (VIII) ",null,null,null,{"$f":"+'Balance '!B137","v":0},{"$f":"+'Balance '!C137","v":0}]
["Intérêts des tiers (IX) ",null,null,null,{"$f":"+'Balance '!B138","v":0},{"$f":"+'Balance '!C138","v":0}]
["Total des produits (I + III + V) ",null,null,null,{"$f":"+E20+E57+E68","v":0},{"$f":"+F20+F57+F68","v":0}]
["Total des charges (II + IV + VI + VII + VIII + IX) ",null,null,null,{"$f":"+E48+E63+E71+E73+E74+E75","v":0},{"$f":"+F48+F63+F71+F73+F74+F75","v":0}]
["EXCEDENT OU DEFICIT D'ENSEMBLE ",null,null,null,{"$f":"+E76-E77","v":0},{"$f":"+F76-F77","v":0}]
[]
["Contröle compte de résultat",null,null,null,{"$f":"+E78-'Bilan d''ensemble Passif'!E8","v":0},{"$f":"+F78-'Bilan d''ensemble Passif'!F8","v":0}]

{"sheet":"Annexe Principes et ref.","index":10,"n_rows":29,"n_cols":1,"rows_kept":29,"cut":false,"hidden":false,"merged":[[28,0,28,6],[0,0,0,6],[1,0,1,6],[2,0,2,5],[3,0,3,6],[27,0,27,6]]}
["4. RÈGLES ET MÉTHODES COMPTABLES"]
["Préambule"]
["4. 1.1. PRINCIPES GÉNÉRAUX"]
["L’annexe doit comporter toute information de caractère significatif permettant aux utilisateurs des comptes d’ensemble de porter une appréciation sur le patrimoine, la situation financière et le résultat de l'ensemble constitué par les entités comprises dans le périmètre des comptes d’ensemble. \nLa liste des informations recensées ci-après, dont l’ordre est indicatif, ne doit en aucun cas être considérée comme limitative. En revanche, celles qui ne présentent pas un caractère significatif ne sont pas à fournir. \nDans l'hypothèse où un événement n'ayant aucun lien direct prépondérant avec une situation existant à la clôture de l'exercice survient entre la date de clôture et la date d'établissement des comptes, une information est donnée dans l’annexe.(art. 431-1)."]
[]
[]
[]
[]
[]
[]
[]
[]
[]
[]
[]
[]
[]
[]
[]
[]
[]
[]
[]
[]
[]
[]
[]
["4. 1. 2. RÉFÉRENTIEL COMPTABLE"]
["Le parti mentionne dans l’annexe le règlement comptable de l’Autorité des normes comptables utilisé pour l’élaboration des comptes d’ensemble (art. 432-1). "]

{"sheet":"Annexe Methodes","index":11,"n_rows":2,"n_cols":1,"rows_kept":2,"cut":false,"hidden":false,"merged":[[0,0,0,6],[1,0,1,6]]}
["4. 1. 3. MÉTHODES COMPTABLES"]
["Le parti mentionne dans l’annexe les informations suivantes portant sur les méthodes comptables, d’estimation et les corrections d’erreurs : méthodes comptables et d’estimation utilisées lorsqu’il existe un choix de méthode ; indication et justification des changements de méthode comptable ou d’estimation et de leurs incidences sur le résultat d’ensemble et les fonds propres d’ensemble ; indication et justification des corrections d’erreurs et de leurs incidences sur le résultat d’ensemble et présentation des principaux postes corrigés des erreurs des exercices antérieurs (art. 433-1).\nLe parti doit mentionner les méthodes comptables retenues en application du règlement ANC n° 2014-03 relatif au plan comptable général : contrats long terme ; frais d’augmentation de capital, de fusion de scission et d’apport ; frais de constitution, de transformation, de premier établissement ; frais de création de site internet ; coûts de développement ; frais d’émission d’emprunt.\nLe parti doit mentionner les méthodes comptables ou d’estimations retenues en application du règlement 2018-03 relatif aux comptes d'ensemble des partis ou groupements politiques pour les cotisations et les contrats de location financement (IR3)."]

{"sheet":"Perimetre 434-1","index":12,"n_rows":16,"n_cols":5,"rows_kept":16,"cut":false,"hidden":false,"merged":[[15,0,15,4],[0,0,0,4],[2,0,2,4],[3,0,3,4],[5,0,5,4],[8,0,8,4],[4,0,4,4]]}
["4. 1. 4. PÉRIMÈTRE COMPTABLE"]
[]
["CRITÈRES RETENUS POUR DÉFINIR LE PÉRIMÈTRE DES COMPTES D'ENSEMBLE"]
["Le parti mentionne les critères retenus pour définir le périmètre de ses comptes d'ensemble (art. 434-1). Le parti mentionne pour chaque entité, intégrée ou intégrante, le mandataire qu’elle a désigné en application de l’article 11 de la loi n°88-227 du 11 mars 1988 relative à la transparence financière de la vie politique.       "]
[]
["TABLEAU DES ENTITÉS INTÉGRÉES DANS LES COMPTES D'ENSEMBLE (art. 434-1)"]
["Entités intégrées","Adresse","Mode d'intégration","Date de clôture","Pourcentage de capital détenu"]
[]
["A - Mandataire(s) (association de financement ou mandataire financier personne physique)"]
[]
[]
[]
[]
[]
[]
["B - Entités concernées"]

{"sheet":"Perimetre suite 434-1","index":13,"n_rows":38,"n_cols":6,"rows_kept":38,"cut":false,"hidden":false,"merged":[[37,0,37,4],[7,2,7,5],[8,2,8,5],[9,2,9,5],[11,0,11,4],[15,0,16,0],[15,1,16,1],[15,2,16,2],[15,4,15,5],[0,0,0,4],[2,2,2,5],[3,2,3,5],[4,2,4,5],[5,2,5,5],[6,2,6,5],[27,0,28,0],[27,1,28,1],[27,2,28,2],[27,3,28,3],[27,4,27,5],[15,3,16,3]]}
["LISTE DES ENTITÉS EXCLUES DES COMPTES D'ENSEMBLE (art. 434-1)"]
[]
["Entités exclues","Adresse","Motifs d'exclusion"]
[]
[]
[]
[]
[]
[]
[]
[]
["VARIATION DE PÉRIMÈTRE (art. 434-1)"]
[]
["Liste des entrées :"]
[]
["Entités concernées","Adresse","Modification du pourcentage de détention","Modification du mode d'intégration","Incidence de ces variations sur les comptes"]
[null,null,null,null,"Sur fonds propres","Sur le résultat d'ensemble"]
[]
[]
[]
[]
[]
[]
[]
[]
["Liste des sorties :"]
[]
["Entités concernées","Adresse","Modification du pourcentage de détention","Modification du mode d'intégration","Incidence de ces variations sur les comptes"]
[null,null,null,null,"Sur fonds propres","Sur le résultat d'ensemble"]
[]
[]
[]
[]
[]
[]
[]
[]
["Informations significatives concernant les modifications du périmètre  intervenues entre la date de clôture et la date de transmission des comptes d'ensemble à la CNCCFP (art. 434-1) :"]

{"sheet":"Etat sur l'actif 435-1","index":14,"n_rows":25,"n_cols":10,"rows_kept":25,"cut":false,"hidden":false,"merged":[[12,0,12,1],[7,0,7,1],[9,0,9,1],[6,0,6,1],[10,0,10,1],[11,0,11,1],[24,0,24,1],[0,0,0,5],[1,0,1,5],[2,0,2,5],[3,0,3,1],[4,0,4,1],[20,0,20,1],[22,0,22,1],[21,0,21,1],[13,0,13,1],[15,0,15,1],[16,0,16,1],[18,0,18,1],[17,0,17,1],[5,0,5,1],[19,0,19,1]]}
["4. 1. 5. INFORMATIONS RELATIVES AUX POSTES DU BILAN ET DU COMPTE DE RÉSULTAT"]
["Le parti mentionne dans l’annexe des états portant sur l’actif immobilisé qui présentent pour chaque poste d’actifs immobilisés figurant au bilan, les valeurs brutes, les amortissements et les dépréciations ainsi que l’analyse des principaux soldes et mouvements de l’exercice (art. 435-1)."]
["État sur l'actif immobilisé (art. 435-1)",null,null,null,null,null,"Ctrl"]
["Immobilisations",null,"Valeur brute à l'ouverture","Augmentations","Diminutions","Valeur brute à la clôture"]
["Immobilisations incorporelles",null,{"$f":"+'Balance '!C3+'Balance '!C5","v":0},null,null,{"$f":"+'Balance '!B3+'Balance '!B5","v":0},{"$f":"+C5+D5-E5-F5","v":0}]
["Immobilisations corporelles",null,{"$f":"+'Balance '!C8+'Balance '!C10","v":0},null,null,{"$f":"+'Balance '!B8+'Balance '!B10","v":0},{"$f":"+C6+D6-E6-F6","v":0}]
["Immobilisations financières",null,{"$f":"+'Balance '!C13+'Balance '!C15+'Balance '!C18+'Balance '!C20+'Balance '!C22+'Balance '!C24+'Balance '!C26+'Balance '!C28","v":0},null,null,{"$f":"+'Balance '!B13+'Balance '!B15+'Balance '!B18+'Balance '!B20+'Balance '!B22+'Balance '!B24+'Balance '!B26+'Balance '!B28","v":0},{"$f":"+C7+D7-E7-F7","v":0}]
["TOTAL",null,{"$f":"+SUM(C5:C7)","v":0},{"$f":"+SUM(D5:D7)","v":0},{"$f":"+SUM(E5:E7)","v":0},{"$f":"+SUM(F5:F7)","v":0},{"$f":"+C8+D8-E8-F8","v":0}]
[]
["Amortissements",null,"Amortissements cumulés à l'ouverture","Augmentations","Diminutions","Amortissements cumulés à la clôture"]
["Immobilisations incorporelles",null,null,null,null,null,{"$f":"+C11+D11-E11-F11","v":0}]
["Immobilisations corporelles",null,null,null,null,null,{"$f":"+C12+D12-E12-F12","v":0}]
["Immobilisations financières",null,null,null,null,null,{"$f":"+C13+D13-E13-F13","v":0}]
["TOTAL",null,{"$f":"+SUM(C11:C13)","v":0},{"$f":"+SUM(D11:D13)","v":0},{"$f":"+SUM(E11:E13)","v":0},{"$f":"+SUM(F11:F13)","v":0},{"$f":"+C14+D14-E14-F14","v":0}]
[]
["Dépréciations",null,"Dépréciations cumulées à l'ouverture","Augmentations","Diminutions","Dépréciations cumulées à la clôture"]
["Immobilisations incorporelles",null,null,null,null,null,{"$f":"+C17+D17-E17-F17","v":0}]
["Immobilisations corporelles",null,null,null,null,null,0]
["Immobilisations financières",null,{"$f":"-(+'Balance '!C14+'Balance '!C16+'Balance '!C19+'Balance '!C21+'Balance '!C23+'Balance '!C25+'Balance '!C27+'Balance '!C29)","v":0},null,null,{"$f":"-(+'Balance '!B14+'Balance '!B16+'Balance '!B19+'Balance '!B21+'Balance '!B23+'Balance '!B25+'Balance '!B27+'Balance '!B29)","v":0},0]
["Stocks",null,{"$f":"-+'Balance '!C32","v":0},null,null,{"$f":"-+'Balance '!B32","v":0},0]
["Créances (dont actifs des entités non significatives)",null,{"$f":"-(+'Balance '!C34+'Balance '!C36+'Balance '!C38+'Balance '!C40+'Balance '!C46)","v":0},null,null,{"$f":"-(+'Balance '!B34+'Balance '!B36+'Balance '!B38+'Balance '!B40+'Balance '!B46)","v":0},0]
["Valeurs mobilières de placement",null,{"$f":"-'Balance '!C43","v":0},null,null,{"$f":"-'Balance '!B43","v":0}]
["TOTAL",null,{"$f":"SUM(C17:C22)","v":0},{"$f":"SUM(D17:D22)","v":0},{"$f":"SUM(E17:E22)","v":0},{"$f":"SUM(F17:F22)","v":0},0]
[]
["TOTAL Amortissements et Dépréciations",null,{"$f":"+C14+C23","v":0},{"$f":"+D14+D23","v":0},{"$f":"+E14+E23","v":0},{"$f":"+F14+F23","v":0},0,{"$f":"+'Bilan d''ensemble Actif '!D19+'Bilan d''ensemble Actif '!D29+'Bilan d''ensemble Actif '!D30","v":0},{"$f":"F25-H25","v":0},{"$f":"IF(I25=0,\"OK\",\"faux\")","v":"OK"}]

{"sheet":"Determination des ecarts 435-2","index":15,"n_rows":2,"n_cols":1,"rows_kept":2,"cut":false,"hidden":false,"merged":[[0,0,0,3],[1,0,1,3],[2,0,2,3]]}
["4. 1. 5. INFORMATIONS RELATIVES AUX POSTES DU BILAN\nET DU COMPTE DE RÉSULTAT"]
["Méthodes utilisées pour la détermination des écarts d'acquisition et leurs modalités de dépréciation, d'amortissement ou de reprise (art. 435-2)"]

{"sheet":"Reevaluation des ecarts 435-3","index":16,"n_rows":2,"n_cols":1,"rows_kept":2,"cut":false,"hidden":false,"merged":[[0,0,0,3],[1,0,1,3],[2,0,2,3]]}
["4. 1. 5. INFORMATIONS RELATIVES AUX POSTES DU BILAN ET DU\nCOMPTE DE RÉSULTAT"]
["Méthode de réévaluation utilisée, écart dégagé, incidence sur les écarts d'évaluation et d'acquisition et sur les dotations aux amortissements et aux dépréciations relatives aux biens évalués en cas de réévaluation des immobilisations corporelles et financières de toutes les entités intégrées (art. 435-3)"]

{"sheet":"Titres de participation 435-4","index":17,"n_rows":5,"n_cols":6,"rows_kept":5,"cut":false,"hidden":false,"merged":[[0,0,0,5],[2,0,2,5]]}
["4. 1. 5. INFORMATIONS RELATIVES AUX POSTES DU BILAN ET DU COMPTE DE RÉSULTAT"]
[]
["Détail du poste de titres de participation (art. 435-4)"]
[]
["Nom de l'entité non intégrée","Adresse","Fraction de capital détenu directement ou indirectement","Montant des capitaux propres","Résultat du dernier exercice","Valeur nette comptable des titres détenus"]

{"sheet":"Liste des prets octroyes 435-5","index":18,"n_rows":21,"n_cols":6,"rows_kept":21,"cut":false,"hidden":false,"merged":[[0,0,0,5],[1,0,1,5]]}
["4. 1. 5. INFORMATIONS RELATIVES AUX POSTES DU BILAN\nET DU COMPTE DE RÉSULTAT"]
["Liste des prêts octroyés à des personnes morales ou physiques non incluses dans les comptes d'ensemble (pour les prêts octroyés à des personnes morales, les montants sont ventilés par emprunteur et le nom de l'emprunteur est exigé) (art. 435-5)"]
["Prêts à des personnes (hors périmètre)","Capital initial","Capital remboursé","Capital restant dû","Intérêts courus non échus","Nom de l'emprunteur"]
["Prêt à des partis ou groupements politiques 1"]
["Prêt à des partis ou groupements politiques 2"]
["Prêt à des partis ou groupements politiques N"]
["Prêts aux candidats 1"]
["Prêts aux candidats 2"]
["Prêts aux candidats N"]
["Prêts aux organisations territoriales ou spécialisées du parti 1"]
["Prêts aux organisations territoriales ou spécialisées du parti 2"]
["Prêts aux organisations territoriales ou spécialisées du parti N"]
["Prêts à d'autres organismes 1"]
["Prêts à d'autres organismes 2"]
["Prêts à d'autres organismes N"]
["Autres prêts 1"]
["Autres prêts 2"]
["Autres prêts N"]
["TOTAL",{"$f":"SUM(B4:B18)","v":0},{"$f":"SUM(C4:C18)","v":0},{"$f":"SUM(D4:D18)","v":0},{"$f":"SUM(E4:E18)","v":0}]
["Contrôles",null,null,{"$f":"+'Bilan d''ensemble Actif '!C13+'Bilan d''ensemble Actif '!C14+'Bilan d''ensemble Actif '!C15+'Bilan d''ensemble Actif '!C16+'Bilan d''ensemble Actif '!C17","v":0}]
["Ecarts",null,null,{"$f":"D19-D20","v":0}]

{"sheet":"Stocks 435-6","index":19,"n_rows":53,"n_cols":5,"rows_kept":53,"cut":false,"hidden":false,"merged":[[48,0,48,1],[49,0,49,1],[50,0,50,1],[43,0,43,1],[44,0,44,1],[45,0,45,1],[46,0,46,1],[47,0,47,1],[42,0,42,1],[31,0,31,1],[32,0,32,1],[33,0,33,1],[34,0,34,1],[35,0,35,1],[36,0,36,1],[37,0,37,1],[38,0,38,1],[39,0,39,1],[40,0,40,1],[41,0,41,1],[15,0,15,1],[16,0,16,1],[17,0,17,1],[30,0,30,1],[19,0,19,1],[20,0,20,1],[21,0,21,1],[22,0,22,1],[23,0,23,1],[24,0,24,1],[25,0,25,1],[26,0,26,1],[27,0,27,1],[28,0,28,1],[29,0,29,1],[51,0,51,1],[6,0,6,1],[0,0,0,4],[1,0,1,4],[3,0,3,1],[4,0,4,1],[5,0,5,1],[18,0,18,1],[7,0,7,1],[14,0,14,1],[8,0,8,1],[9,0,9,1],[10,0,10,1],[11,0,11,1],[12,0,12,1],[13,0,13,1]]}
["4. 1. 5. INFORMATIONS RELATIVES AUX POSTES DU BILAN\nET DU COMPTE DE RÉSULTAT"]
["Principales composantes des stocks (art. 435-6)"]
[]
["Catégorie de stocks",null,"Valeur brute","Dépréciation","Valeur nette"]
[]
[]
[]
[]
[]
[]
[]
[]
[]
[]
[]
[]
[]
[]
[]
[]
[]
[]
[]
[]
[]
[]
[]
[]
[]
[]
[]
[]
[]
[]
[]
[]
[]
[]
[]
[]
[]
[]
[]
[]
[]
[]
[]
[]
[]
[]
["TOTAL",null,{"$f":"SUM(C5:C50)","v":0},{"$f":"SUM(D5:D50)","v":0},{"$f":"SUM(E5:E50)","v":0}]
["Contrôles",null,{"$f":"+'Bilan d''ensemble Actif '!C21","v":0},{"$f":"+'Bilan d''ensemble Actif '!D21","v":0},{"$f":"+'Bilan d''ensemble Actif '!E21","v":0}]
["Ecarts",null,{"$f":"C51-C52","v":0},{"$f":"D51-D52","v":0},{"$f":"E51-E52","v":0}]

{"sheet":"Creances 435-7","index":20,"n_rows":12,"n_cols":7,"rows_kept":12,"cut":false,"hidden":false,"merged":[[11,0,11,1],[0,0,0,4],[1,0,1,4],[3,0,3,1],[4,0,4,1],[5,0,5,1],[6,0,6,1],[7,0,7,1],[8,0,8,1],[9,0,9,1],[10,0,10,1]]}
["4. 1. 5. INFORMATIONS RELATIVES AUX POSTES DU BILAN\nET DU COMPTE DE RÉSULTAT"]
["État des créances (art. 435-7)"]
[]
["Créances",null,"Montant brut","Échéances à moins d'un an","Échéances à plus d'un an"]
["Créances rattachées à des participations",null,null,null,null,{"$f":"+C5-D5-E5","v":0}]
["Prêts hors périmètre",null,{"$f":"'Bilan d''ensemble Actif '!C13+'Bilan d''ensemble Actif '!C14+'Bilan d''ensemble Actif '!C15+'Bilan d''ensemble Actif '!C16+'Bilan d''ensemble Actif '!C17","v":0},null,null,{"$f":"+C6-D6-E6","v":0}]
["Autres créances de l'actif immobilisé",null,{"$f":"'Bilan d''ensemble Actif '!C18","v":0},null,null,0]
["Créances clients et comptes rattachés",null,{"$f":"'Bilan d''ensemble Actif '!C23","v":0},null,null,0]
["Créances auprès de partis ou groupements politiques",null,{"$f":"'Bilan d''ensemble Actif '!C24","v":0},null,null,0]
["Autres créances de l'actif circulant",null,{"$f":"'Bilan d''ensemble Actif '!C25+'Bilan d''ensemble Actif '!C22","v":0},null,null,0]
["Charges constatées d'avance",null,{"$f":"'Bilan d''ensemble Actif '!C26","v":0},null,null,0]
["TOTAL",null,{"$f":"SUM(C5:C11)","v":0},{"$f":"SUM(D5:D11)","v":0},{"$f":"SUM(E5:E11)","v":0},{"$f":"+C12-D12-E12","v":0},{"$f":"SUM(F5:F11)","v":0}]

{"sheet":"Provisions 435-8","index":21,"n_rows":7,"n_cols":6,"rows_kept":7,"cut":false,"hidden":false,"merged":[[0,0,0,4],[1,0,1,4]]}
["4. 1. 5. INFORMATIONS RELATIVES AUX POSTES DU BILAN\nET DU COMPTE DE RÉSULTAT"]
["État des provisions (art. 435-8)"]
[]
["Provisions","Montant à l'ouverture","Augmentations","Diminutions","Montant à clôture","Ctrl"]
["Provisions pour risques",{"$f":"'Bilan d''ensemble Passif'!F13","v":0},null,null,{"$f":"'Bilan d''ensemble Passif'!F13","v":0},{"$f":"B5+C5-D5-E5","v":0}]
["Provisions pour charges",{"$f":"'Bilan d''ensemble Passif'!F14","v":0},null,null,{"$f":"'Bilan d''ensemble Passif'!F14","v":0},{"$f":"B6+C6-D6-E6","v":0}]
["TOTAL",{"$f":"SUM(B5:B6)","v":0},{"$f":"SUM(C5:C6)","v":0},{"$f":"SUM(D5:D6)","v":0},{"$f":"SUM(E5:E6)","v":0}]

{"sheet":"Pensions et retraites 435-9","index":22,"n_rows":2,"n_cols":1,"rows_kept":2,"cut":false,"hidden":false,"merged":[[0,0,0,3],[1,0,1,3],[2,0,2,3]]}
["4. 1. 5. INFORMATIONS RELATIVES AUX POSTES DU BILAN\nET DU COMPTE DE RÉSULTAT"]
["Informations sur les provisions constatées dans l'exercice au titre de pensions, de compléments de retraite ou de prévoyance, d'indemnités ou d'allocation en raison de départ à la retraite ou d'avantages similaires (art. 435-9)"]

{"sheet":"Passifs 435-10","index":23,"n_rows":2,"n_cols":1,"rows_kept":2,"cut":false,"hidden":false,"merged":[[0,0,0,3],[1,0,1,3]]}
["4. 1. 5. INFORMATIONS RELATIVES AUX POSTES DU BILAN\nET DU COMPTE DE RÉSULTAT"]
["État des passifs éventuels (art. 435-10)"]

{"sheet":"Dettes 435-11","index":24,"n_rows":17,"n_cols":8,"rows_kept":17,"cut":false,"hidden":false,"merged":[[13,0,13,1],[14,0,14,1],[7,0,7,1],[8,0,8,1],[9,0,9,1],[10,0,10,1],[11,0,11,1],[12,0,12,1],[6,0,6,1],[0,0,0,5],[1,0,1,5],[3,0,3,1],[4,0,4,1],[5,0,5,1]]}
["4. 1. 5. INFORMATIONS RELATIVES AUX POSTES DU BILAN\nET DU COMPTE DE RÉSULTAT"]
["État des dettes à moins d'un an (art. 435-11)"]
[]
["Dettes",null,"Montant brut","Échéance à moins d'un an","Échéances à plus d'un an et moins de cinq ans","Échéances à plus de cinq ans"]
["Emprunts et dettes auprès des établissements de crédit",null,{"$f":"+'Bilan d''ensemble Passif'!E18","v":0},null,null,null,{"$f":"C5-D5-E5-F5","v":0}]
["Emprunts et dettes auprès de personnes physiques à taux préférentiel",null,{"$f":"+'Bilan d''ensemble Passif'!E19","v":0},null,null,null,{"$f":"C6-D6-E6-F6","v":0}]
["Autres emprunts et dettes auprès de personnes physiques",null,{"$f":"+'Bilan d''ensemble Passif'!E20","v":0},null,null,null,0]
["Emprunts et dettes auprès de partis ou groupements politiques",null,{"$f":"+'Bilan d''ensemble Passif'!E21","v":0},null,null,null,0]
["Dettes fournisseurs et comptes rattachés",null,{"$f":"+'Bilan d''ensemble Passif'!E22","v":0},null,null,null,0]
["Dettes fiscales et sociales",null,{"$f":"+'Bilan d''ensemble Passif'!E23","v":0},null,null,null,0]
["Dettes envers les candidats",null,{"$f":"+'Bilan d''ensemble Passif'!E24","v":0},null,null,null,0]
["Dettes envers les organisations territoriales ou spécialisées",null,{"$f":"+'Bilan d''ensemble Passif'!E25","v":0},null,null,null,0]
["Autres dettes",null,{"$f":"+'Bilan d''ensemble Passif'!E26","v":0},null,null,null,0]
["Produits constatés d'avance",null,{"$f":"+'Bilan d''ensemble Passif'!E27","v":0},null,null,null,0]
["TOTAL",null,{"$f":"SUM(C5:C14)","v":0},{"$f":"SUM(D5:D14)","v":0},{"$f":"SUM(E5:E14)","v":0},{"$f":"SUM(F5:F14)","v":0},{"$f":"SUM(G5:G14)","v":0},{"$f":"+C15-D15-E15-F15","v":0}]
["Contrôles",null,{"$f":"+'Bilan d''ensemble Passif'!E28","v":0}]
["Ecarts",null,{"$f":"C15-C16","v":0}]

{"sheet":"Emprunts souscrits 435-12","index":25,"n_rows":18,"n_cols":6,"rows_kept":18,"cut":false,"hidden":false,"merged":[[0,0,0,5],[1,0,1,5]]}
["4. 1. 5. INFORMATIONS RELATIVES AUX POSTES DU BILAN\nET DU COMPTE DE RÉSULTAT"]
["États des emprunts souscrits (Pour les emprunts souscrits auprès d’établissements de crédit et de partis ou groupements politiques, les montants sont ventilés par prêteur et le nom du prêteur est exigé) (art. 435-12) "]
["Emprunts","Capital initial","Capital remboursé au cours de l'exercice","Capital restant dû","Intérêts courus non échus","Nom du prêteur"]
["Emprunt auprès d'établissement de crédit 1"]
["Emprunt auprès d'établissement de crédit 2"]
["Emprunt auprès d'établissement de crédit N"]
["Emprunts auprès de personnes physiques à taux préférentiel 1"]
["Emprunts auprès de personnes physiques à taux préférentiel 2"]
["Emprunts auprès de personnes physiques à taux préférentiel N"]
["Autres emprunts auprès de personnes physiques 1"]
["Autres emprunts auprès de personnes physiques 2"]
["Autres emprunts auprès de personnes physiques N"]
["Emprunts et dettes auprès de partis ou groupements politiques 1"]
["Emprunts et dettes auprès de partis ou groupements politiques 2"]
["Emprunts et dettes auprès de partis ou groupements politiques N"]
["TOTAL",{"$f":"SUM(B4:B15)","v":0},{"$f":"SUM(C4:C15)","v":0},{"$f":"SUM(D4:D15)","v":0},{"$f":"SUM(E4:E15)","v":0}]
["Contrôles",null,null,{"$f":"'Bilan d''ensemble Passif'!E18+'Bilan d''ensemble Passif'!E19+'Bilan d''ensemble Passif'!E20+'Bilan d''ensemble Passif'!E21","v":0}]
["Ecarts",null,null,{"$f":"D16+E16-D17","v":0}]

{"sheet":"Aide publique 435-13","index":26,"n_rows":4,"n_cols":5,"rows_kept":4,"cut":false,"hidden":false,"merged":[[0,0,0,4],[1,0,1,4]]}
["4. 1. 5. INFORMATIONS RELATIVES AUX POSTES DU BILAN\nET DU COMPTE DE RÉSULTAT"]
["Calcul du montant de la diminution de la première fraction de l'aide publique (art. 435-13)"]
[]
["Nombre de voix prises en compte","Nombre de candidat femmes","Nombre de candidats hommes","Montant de la modulation pour non-respect de la parité","1e fraction de l'aide publique"]

{"sheet":"Dons et cotisations 435-14","index":27,"n_rows":7,"n_cols":3,"rows_kept":7,"cut":false,"hidden":false,"merged":[[5,0,5,1],[5,2,5,4],[6,0,6,1],[6,2,6,4],[0,0,0,4],[1,0,1,4],[3,0,3,1],[3,2,3,4],[4,0,4,1],[4,2,4,4]]}
["4. 1. 5. INFORMATIONS RELATIVES AUX POSTES DU BILAN\nET DU COMPTE DE RÉSULTAT"]
["Modalités de comptabilisation retenues pour les dons et les cotisations (art. 435-14)\nLes cotisations des adhérents ou des élus sont comptabilisées en produits lors de leur encaissement effectif. Toutefois, si le parti ou une entité intégrée peut justifier d’un droit d’agir en recouvrement, généré par un appel de cotisation, cet appel est le fait générateur de la reconnaissance du produit."]
[]
["Nature du versement",null,"Modalités de comptabilisation"]
["Dons de personnes physiques"]
["Cotisations d'adhérents"]
["Cotisations des élus"]

{"sheet":"Contributions 435-15","index":28,"n_rows":44,"n_cols":5,"rows_kept":44,"cut":false,"hidden":false,"merged":[[42,1,42,2],[38,251,38,252],[39,1,39,2],[40,1,40,2],[41,0,41,2],[38,216,38,217],[38,221,38,222],[38,226,38,227],[38,231,38,232],[38,236,38,237],[38,241,38,242],[38,186,38,187],[38,191,38,192],[38,196,38,197],[38,201,38,202],[38,206,38,207],[38,211,38,212],[38,156,38,157],[38,161,38,162],[38,166,38,167],[38,171,38,172],[38,176,38,177],[38,181,38,182],[38,126,38,127],[38,131,38,132],[38,136,38,137],[38,141,38,142],[38,146,38,147],[38,151,38,152],[38,96,38,97],[38,101,38,102],[38,106,38,107],[38,111,38,112],[38,116,38,117],[38,121,38,122],[38,66,38,67],[38,71,38,72],[38,76,38,77],[38,81,38,82],[38,86,38,87],[38,91,38,92],[38,36,38,37],[38,41,38,42],[38,46,38,47],[38,51,38,52],[38,56,38,57],[38,61,38,62],[37,241,37,242],[37,246,37,247],[37,91,37,92],[37,96,37,97],[37,101,37,102],[37,106,37,107],[37,111,37,112],[37,116,37,117],[37,216,37,217],[37,221,37,222],[37,61,37,62],[37,66,37,67],[37,71,37,72],[37,76,37,77],[37,81,37,82],[37,86,37,87],[38,246,38,247],[37,251,37,252],[38,1,38,2],[38,6,38,7],[38,11,38,12],[38,16,38,17],[38,21,38,22],[38,26,38,27],[38,31,38,32],[37,211,37,212],[37,226,37,227],[37,231,37,232],[37,236,37,237],[37,181,37,182],[37,186,37,187],[37,191,37,192],[37,196,37,197],[37,201,37,202],[37,206,37,207],[37,151,37,152],[37,156,37,157],[37,161,37,162],[37,166,37,167],[37,171,37,172],[37,176,37,177],[37,121,37,122],[37,126,37,127],[37,131,37,132],[37,136,37,137],[37,141,37,142],[37,146,37,147],[37,31,37,32],[37,36,37,37],[37,41,37,42],[37,46,37,47],[37,51,37,52],[37,56,37,57],[37,1,37,2],[37,6,37,7],[37,11,37,12],[37,16,37,17],[37,21,37,22],[37,26,37,27],[36,226,36,227],[36,231,36,232],[36,236,36,237],[36,241,36,242],[36,246,36,247],[36,106,36,107],[36,111,36,112],[36,116,36,117],[36,121,36,122],[36,126,36,127],[36,131,36,132],[36,76,36,77],[36,81,36,82],[36,86,36,87],[36,91,36,92],[36,96,36,97],[36,101,36,102],[36,46,36,47],[36,51,36,52],[36,56,36,57],[36,61,36,62],[36,66,36,67],[36,251,36,252],[36,196,36,197],[36,201,36,202],[36,206,36,207],[36,211,36,212],[36,216,36,217],[36,221,36,222],[36,166,36,167],[36,171,36,172],[36,176,36,177],[36,181,36,182],[36,186,36,187],[36,191,36,192],[36,136,36,137],[36,141,36,142],[36,146,36,147],[36,151,36,152],[36,156,36,157],[36,161,36,162],[36,71,36,72],[35,251,35,252],[36,1,36,2],[36,6,36,7],[36,11,36,12],[36,16,36,17],[36,21,36,22],[36,26,36,27],[36,31,36,32],[36,36,36,37],[36,41,36,42],[35,221,35,222],[35,226,35,227],[35,231,35,232],[35,161,35,162],[35,166,35,167],[35,171,35,172],[35,176,35,177],[35,236,35,237],[35,241,35,242],[35,246,35,247],[35,191,35,192],[35,196,35,197],[35,201,35,202],[35,206,35,207],[35,211,35,212],[35,216,35,217],[35,181,35,182],[35,186,35,187],[35,131,35,132],[35,136,35,137],[35,141,35,142],[35,146,35,147],[35,151,35,152],[35,156,35,157],[35,101,35,102],[35,106,35,107],[35,111,35,112],[35,116,35,117],[35,121,35,122],[35,126,35,127],[35,71,35,72],[35,76,35,77],[35,81,35,82],[35,86,35,87],[35,91,35,92],[35,96,35,97],[35,41,35,42],[35,46,35,47],[35,51,35,52],[35,56,35,57],[35,61,35,62],[35,66,35,67],[34,246,34,247],[34,251,34,252],[35,1,35,2],[35,6,35,7],[35,11,35,12],[35,16,35,17],[35,21,35,22],[35,26,35,27],[35,31,35,32],[35,36,35,37],[34,216,34,217],[34,221,34,222],[34,226,34,227],[34,231,34,232],[34,236,34,237],[34,241,34,242],[34,186,34,187],[34,191,34,192],[34,196,34,197],[34,201,34,202],[34,206,34,207],[34,211,34,212],[34,156,34,157],[34,161,34,162],[34,166,34,167],[34,171,34,172],[34,176,34,177],[34,181,34,182],[34,126,34,127],[34,131,34,132],[34,136,34,137],[34,141,34,142],[34,146,34,147],[34,151,34,152],[34,96,34,97],[34,101,34,102],[34,106,34,107],[34,111,34,112],[34,116,34,117],[34,121,34,122],[34,66,34,67],[34,71,34,72],[34,76,34,77],[34,81,34,82],[34,86,34,87],[34,91,34,92],[34,36,34,37],[34,41,34,42],[34,46,34,47],[34,51,34,52],[34,56,34,57],[34,61,34,62],[33,241,33,242],[33,246,33,247],[33,251,33,252],[34,1,34,2],[34,6,34,7],[34,11,34,12],[34,16,34,17],[34,21,34,22],[34,26,34,27],[34,31,34,32],[33,211,33,212],[33,216,33,217],[33,221,33,222],[33,226,33,227],[33,231,33,232],[33,236,33,237],[33,181,33,182],[33,186,33,187],[33,191,33,192],[33,196,33,197],[33,201,33,202],[33,206,33,207],[33,151,33,152],[33,156,33,157],[33,161,33,162],[33,166,33,167],[33,171,33,172],[33,176,33,177],[33,121,33,122],[33,126,33,127],[33,131,33,132],[33,136,33,137],[33,96,33,97],[33,101,33,102],[33,106,33,107],[33,111,33,112],[33,116,33,117],[33,61,33,62],[33,66,33,67],[33,71,33,72],[33,76,33,77],[33,81,33,82],[33,86,33,87],[33,31,33,32],[33,36,33,37],[33,41,33,42],[33,46,33,47],[33,51,33,52],[33,56,33,57],[33,1,33,2],[33,6,33,7],[33,11,33,12],[33,16,33,17],[33,21,33,22],[33,26,33,27],[32,226,32,227],[32,231,32,232],[32,236,32,237],[32,241,32,242],[32,246,32,247],[32,106,32,107],[32,111,32,112],[32,116,32,117],[32,121,32,122],[32,126,32,127],[32,131,32,132],[32,76,32,77],[32,81,32,82],[32,86,32,87],[32,91,32,92],[32,96,32,97],[32,101,32,102],[32,46,32,47],[32,51,32,52],[32,56,32,57],[32,61,32,62],[32,66,32,67],[32,71,32,72],[33,141,33,142],[33,146,33,147],[33,91,33,92],[32,251,32,252],[32,196,32,197],[32,201,32,202],[32,206,32,207],[32,211,32,212],[32,216,32,217],[32,221,32,222],[32,166,32,167],[32,171,32,172],[32,176,32,177],[32,181,32,182],[32,186,32,187],[32,191,32,192],[32,136,32,137],[32,141,32,142],[32,146,32,147],[32,151,32,152],[32,156,32,157],[32,161,32,162],[31,251,31,252],[32,1,32,2],[32,6,32,7],[32,11,32,12],[32,16,32,17],[32,21,32,22],[32,26,32,27],[32,31,32,32],[32,36,32,37],[32,41,32,42],[31,221,31,222],[31,226,31,227],[31,231,31,232],[31,161,31,162],[31,166,31,167],[31,171,31,172],[31,176,31,177],[31,236,31,237],[31,241,31,242],[31,246,31,247],[31,191,31,192],[31,196,31,197],[31,201,31,202],[31,206,31,207],[31,211,31,212],[31,216,31,217],[31,181,31,182],[31,186,31,187],[31,131,31,132],[31,136,31,137],[31,141,31,142],[31,146,31,147],[31,151,31,152],[31,156,31,157],[31,101,31,102],[31,106,31,107],[31,111,31,112],[31,116,31,117],[31,121,31,122],[31,126,31,127],[31,71,31,72],[31,76,31,77],[31,81,31,82],[31,86,31,87],[31,91,31,92],[31,96,31,97],[31,41,31,42],[31,46,31,47],[31,51,31,52],[31,56,31,57],[31,61,31,62],[31,66,31,67],[30,246,30,247],[30,251,30,252],[31,1,31,2],[31,6,31,7],[31,11,31,12],[31,16,31,17],[31,21,31,22],[31,26,31,27],[31,31,31,32],[31,36,31,37],[30,216,30,217],[30,221,30,222],[30,226,30,227],[30,231,30,232],[30,236,30,237],[30,241,30,242],[30,186,30,187],[30,191,30,192],[30,196,30,197],[30,201,30,202],[30,206,30,207],[30,211,30,212],[30,156,30,157],[30,161,30,162],[30,166,30,167],[30,171,30,172],[30,176,30,177],[30,181,30,182],[30,126,30,127],[30,131,30,132],[30,136,30,137],[30,141,30,142],[30,146,30,147],[30,151,30,152],[30,96,30,97],[30,101,30,102],[30,106,30,107],[30,111,30,112],[30,116,30,117],[30,121,30,122],[30,66,30,67],[30,71,30,72],[30,76,30,77],[30,81,30,82],[30,86,30,87],[30,91,30,92],[30,36,30,37],[30,41,30,42],[30,46,30,47],[30,51,30,52],[30,56,30,57],[30,61,30,62],[29,241,29,242],[29,246,29,247],[29,251,29,252],[30,1,30,2],[30,6,30,7],[30,11,30,12],[30,16,30,17],[30,21,30,22],[30,26,30,27],[30,31,30,32],[29,211,29,212],[29,216,29,217],[29,221,29,222],[29,226,29,227],[29,231,29,232],[29,236,29,237],[29,181,29,182],[29,186,29,187],[29,191,29,192],[29,196,29,197],[29,201,29,202],[29,206,29,207],[29,151,29,152],[29,156,29,157],[29,161,29,162],[29,166,29,167],[29,171,29,172],[29,176,29,177],[29,121,29,122],[29,126,29,127],[29,131,29,132],[29,136,29,137],[29,96,29,97],[29,101,29,102],[29,106,29,107],[29,111,29,112],[29,116,29,117],[29,61,29,62],[29,66,29,67],[29,71,29,72],[29,76,29,77],[29,81,29,82],[29,86,29,87],[29,31,29,32],[29,36,29,37],[29,41,29,42],[29,46,29,47],[29,51,29,52],[29,56,29,57],[29,1,29,2],[29,6,29,7],[29,11,29,12],[29,16,29,17],[29,21,29,22],[29,26,29,27],[28,226,28,227],[28,231,28,232],[28,236,28,237],[28,241,28,242],[28,246,28,247],[28,106,28,107],[28,111,28,112],[28,116,28,117],[28,121,28,122],[28,126,28,127],[28,131,28,132],[28,76,28,77],[28,81,28,82],[28,86,28,87],[28,91,28,92],[28,96,28,97],[28,101,28,102],[28,46,28,47],[28,51,28,52],[28,56,28,57],[28,61,28,62],[28,66,28,67],[28,71,28,72],[29,141,29,142],[29,146,29,147],[29,91,29,92],[28,251,28,252],[28,196,28,197],[28,201,28,202],[28,206,28,207],[28,211,28,212],[28,216,28,217],[28,221,28,222],[28,166,28,167],[28,171,28,172],[28,176,28,177],[28,181,28,182],[28,186,28,187],[28,191,28,192],[28,136,28,137],[28,141,28,142],[28,146,28,147],[28,151,28,152],[28,156,28,157],[28,161,28,162],[27,251,27,252],[28,1,28,2],[28,6,28,7],[28,11,28,12],[28,16,28,17],[28,21,28,22],[28,26,28,27],[28,31,28,32],[28,36,28,37],[28,41,28,42],[27,221,27,222],[27,226,27,227],[27,231,27,232],[27,161,27,162],[27,166,27,167],[27,171,27,172],[27,176,27,177],[27,236,27,237],[27,241,27,242],[27,246,27,247],[27,191,27,192],[27,196,27,197],[27,201,27,202],[27,206,27,207],[27,211,27,212],[27,216,27,217],[27,181,27,182],[27,186,27,187],[27,131,27,132],[27,136,27,137],[27,141,27,142],[27,146,27,147],[27,151,27,152],[27,156,27,157],[27,101,27,102],[27,106,27,107],[27,111,27,112],[27,116,27,117],[27,121,27,122],[27,126,27,127],[27,71,27,72],[27,76,27,77],[27,81,27,82],[27,86,27,87],[27,91,27,92],[27,96,27,97],[27,41,27,42],[27,46,27,47],[27,51,27,52],[27,56,27,57],[27,61,27,62],[27,66,27,67],[26,246,26,247],[26,251,26,252],[27,1,27,2],[27,6,27,7],[27,11,27,12],[27,16,27,17],[27,21,27,22],[27,26,27,27],[27,31,27,32],[27,36,27,37],[26,216,26,217],[26,221,26,222],[26,226,26,227],[26,231,26,232],[26,236,26,237],[26,241,26,242],[26,186,26,187],[26,191,26,192],[26,196,26,197],[26,201,26,202],[26,206,26,207],[26,211,26,212],[26,156,26,157],[26,161,26,162],[26,166,26,167],[26,171,26,172],[26,176,26,177],[26,181,26,182],[26,126,26,127],[26,131,26,132],[26,136,26,137],[26,141,26,142],[26,146,26,147],[26,151,26,152],[26,96,26,97],[26,101,26,102],[26,106,26,107],[26,111,26,112],[26,116,26,117],[26,121,26,122],[26,66,26,67],[26,71,26,72],[26,76,26,77],[26,81,26,82],[26,86,26,87],[26,91,26,92],[26,36,26,37],[26,41,26,42],[26,46,26,47],[26,51,26,52],[26,56,26,57],[26,61,26,62],[25,241,25,242],[25,246,25,247],[25,251,25,252],[26,1,26,2],[26,6,26,7],[26,11,26,12],[26,16,26,17],[26,21,26,22],[26,26,26,27],[26,31,26,32],[25,211,25,212],[25,216,25,217],[25,221,25,222],[25,226,25,227],[25,231,25,232],[25,236,25,237],[25,181,25,182],[25,186,25,187],[25,191,25,192],[25,196,25,197],[25,201,25,202],[25,206,25,207],[25,151,25,152],[25,156,25,157],[25,161,25,162],[25,166,25,167],[25,171,25,172],[25,176,25,177],[25,121,25,122],[25,126,25,127],[25,131,25,132],[25,136,25,137],[25,96,25,97],[25,101,25,102],[25,106,25,107],[25,111,25,112],[25,116,25,117],[25,61,25,62],[25,66,25,67],[25,71,25,72],[25,76,25,77],[25,81,25,82],[25,86,25,87],[25,31,25,32],[25,36,25,37],[25,41,25,42],[25,46,25,47],[25,51,25,52],[25,56,25,57],[25,1,25,2],[25,6,25,7],[25,11,25,12],[25,16,25,17],[25,21,25,22],[25,26,25,27],[24,226,24,227],[24,231,24,232],[24,236,24,237],[24,241,24,242],[24,246,24,247],[24,106,24,107],[24,111,24,112],[24,116,24,117],[24,121,24,122],[24,126,24,127],[24,131,24,132],[24,76,24,77],[24,81,24,82],[24,86,24,87],[24,91,24,92],[24,96,24,97],[24,101,24,102],[24,46,24,47],[24,51,24,52],[24,56,24,57],[24,61,24,62],[24,66,24,67],[24,71,24,72],[25,141,25,142],[25,146,25,147],[25,91,25,92],[24,251,24,252],[24,196,24,197],[24,201,24,202],[24,206,24,207],[24,211,24,212],[24,216,24,217],[24,221,24,222],[24,166,24,167],[24,171,24,172],[24,176,24,177],[24,181,24,182],[24,186,24,187],[24,191,24,192],[24,136,24,137],[24,141,24,142],[24,146,24,147],[24,151,24,152],[24,156,24,157],[24,161,24,162],[23,251,23,252],[24,1,24,2],[24,6,24,7],[24,11,24,12],[24,16,24,17],[24,21,24,22],[24,26,24,27],[24,31,24,32],[24,36,24,37],[24,41,24,42],[23,221,23,222],[23,226,23,227],[23,231,23,232],[23,161,23,162],[23,166,23,167],[23,171,23,172],[23,176,23,177],[23,236,23,237],[23,241,23,242],[23,246,23,247],[23,191,23,192],[23,196,23,197],[23,201,23,202],[23,206,23,207],[23,211,23,212],[23,216,23,217],[23,181,23,182],[23,186,23,187],[23,131,23,132],[23,136,23,137],[23,141,23,142],[23,146,23,147],[23,151,23,152],[23,156,23,157],[23,101,23,102],[23,106,23,107],[23,111,23,112],[23,116,23,117],[23,121,23,122],[23,126,23,127],[23,71,23,72],[23,76,23,77],[23,81,23,82],[23,86,23,87],[23,91,23,92],[23,96,23,97],[23,41,23,42],[23,46,23,47],[23,51,23,52],[23,56,23,57],[23,61,23,62],[23,66,23,67],[22,246,22,247],[22,251,22,252],[23,1,23,2],[23,6,23,7],[23,11,23,12],[23,16,23,17],[23,21,23,22],[23,26,23,27],[23,31,23,32],[23,36,23,37],[22,216,22,217],[22,221,22,222],[22,226,22,227],[22,231,22,232],[22,236,22,237],[22,241,22,242],[22,186,22,187],[22,191,22,192],[22,196,22,197],[22,201,22,202],[22,206,22,207],[22,211,22,212],[22,156,22,157],[22,161,22,162],[22,166,22,167],[22,171,22,172],[22,176,22,177],[22,181,22,182],[22,126,22,127],[22,131,22,132],[22,136,22,137],[22,141,22,142],[22,146,22,147],[22,151,22,152],[22,96,22,97],[22,101,22,102],[22,106,22,107],[22,111,22,112],[22,116,22,117],[22,121,22,122],[22,66,22,67],[22,71,22,72],[22,76,22,77],[22,81,22,82],[22,86,22,87],[22,91,22,92],[22,36,22,37],[22,41,22,42],[22,46,22,47],[22,51,22,52],[22,56,22,57],[22,61,22,62],[21,241,21,242],[21,246,21,247],[21,251,21,252],[22,1,22,2],[22,6,22,7],[22,11,22,12],[22,16,22,17],[22,21,22,22],[22,26,22,27],[22,31,22,32],[21,211,21,212],[21,216,21,217],[21,221,21,222],[21,226,21,227],[21,231,21,232],[21,236,21,237],[21,181,21,182],[21,186,21,187],[21,191,21,192],[21,196,21,197],[21,201,21,202],[21,206,21,207],[21,151,21,152],[21,156,21,157],[21,161,21,162],[21,166,21,167],[21,171,21,172],[21,176,21,177],[21,121,21,122],[21,126,21,127],[21,131,21,132],[21,136,21,137],[21,96,21,97],[21,101,21,102],[21,106,21,107],[21,111,21,112],[21,116,21,117],[21,61,21,62],[21,66,21,67],[21,71,21,72],[21,76,21,77],[21,81,21,82],[21,86,21,87],[21,31,21,32],[21,36,21,37],[21,41,21,42],[21,46,21,47],[21,51,21,52],[21,56,21,57],[21,1,21,2],[21,6,21,7],[21,11,21,12],[21,16,21,17],[21,21,21,22],[21,26,21,27],[20,226,20,227],[20,231,20,232],[20,236,20,237],[20,241,20,242],[20,246,20,247],[20,106,20,107],[20,111,20,112],[20,116,20,117],[20,121,20,122],[20,126,20,127],[20,131,20,132],[20,76,20,77],[20,81,20,82],[20,86,20,87],[20,91,20,92],[20,96,20,97],[20,101,20,102],[20,46,20,47],[20,51,20,52],[20,56,20,57],[20,61,20,62],[20,66,20,67],[20,71,20,72],[21,141,21,142],[21,146,21,147],[21,91,21,92],[19,216,19,217],[19,181,19,182],[19,186,19,187],[19,131,19,132],[19,136,19,137],[19,141,19,142],[19,146,19,147],[20,251,20,252],[20,196,20,197],[20,201,20,202],[20,206,20,207],[20,211,20,212],[20,216,20,217],[20,221,20,222],[20,166,20,167],[20,171,20,172],[20,176,20,177],[20,181,20,182],[20,186,20,187],[20,191,20,192],[20,136,20,137],[20,141,20,142],[20,146,20,147],[20,151,20,152],[20,156,20,157],[20,161,20,162],[19,71,19,72],[19,76,19,77],[19,81,19,82],[19,86,19,87],[19,91,19,92],[19,96,19,97],[19,41,19,42],[19,46,19,47],[19,51,19,52],[19,56,19,57],[19,61,19,62],[19,66,19,67],[19,251,19,252],[20,1,20,2],[20,6,20,7],[20,11,20,12],[20,16,20,17],[20,21,20,22],[20,26,20,27],[20,31,20,32],[20,36,20,37],[20,41,20,42],[19,221,19,222],[19,226,19,227],[19,231,19,232],[19,161,19,162],[19,166,19,167],[19,171,19,172],[19,176,19,177]],"merged_total":1192,"flags":["merged_cut"]}
["4. 1. 5. INFORMATIONS RELATIVES AUX POSTES DU BILAN\nET DU COMPTE DE RÉSULTAT"]
["État des contributions financières octroyées par des partis politiques hors périmètre des comptes d'ensemble (art. 435-15)"]
[]
["Nom du parti","adresse",null,"Montant octroyé dans l'exercice","Dont aide publique reversée"]
[]
[]
[]
[]
[]
[]
[]
[]
[]
[]
[]
[]
[]
[]
[]
[]
[]
[]
[]
[]
[]
[]
[]
[]
[]
[]
[]
[]
[]
[]
[]
[]
[]
[]
[]
[]
[]
["TOTAL",null,null,{"$f":"SUM(D5:D41)","v":0},{"$f":"SUM(E5:E41)","v":0}]
["Contrôles",null,null,{"$f":"'Compte de resultat d''ensemble'!E12","v":0}]
["Ecarts",null,null,{"$f":"D42-D43","v":0}]

{"sheet":"Facturation 435-16","index":29,"n_rows":29,"n_cols":5,"rows_kept":29,"cut":false,"hidden":false,"merged":[[24,0,24,3],[25,1,25,3],[26,0,26,3],[18,0,18,3],[19,1,19,3],[20,1,20,3],[21,0,21,3],[22,1,22,3],[23,1,23,3],[17,1,17,3],[6,0,6,3],[7,1,7,3],[8,1,8,3],[9,0,9,3],[10,1,10,3],[11,1,11,3],[12,0,12,3],[13,1,13,3],[14,1,14,3],[15,0,15,3],[16,1,16,3],[5,1,5,3],[0,0,0,4],[1,0,1,4],[2,0,2,3],[3,0,3,3],[4,1,4,3]]}
["4. 1. 5. INFORMATIONS RELATIVES AUX POSTES DU BILAN\nET DU COMPTE DE RÉSULTAT"]
["État des prestations de services facturées aux candidats (art. 435-16)\n(Ventilées par catégorie d’élection, type de candidat (tenu ou non de déposer un compte de campagne))"]
["Prestations de services aux candidats",null,null,null,"Montant des prestations"]
["Élections municipales"]
[null,"Prestation de services aux candidats tenus de déposer un compte de campagne"]
[null,"Prestation de services aux candidats non tenus de déposer un compte de campagne"]
["Élections départementales"]
[null,"Prestation de services aux candidats tenus de déposer un compte de campagne"]
[null,"Prestation de services aux candidats non tenus de déposer un compte de campagne"]
["Élections régionales"]
[null,"Prestation de services aux candidats tenus de déposer un compte de campagne"]
[null,"Prestation de services aux candidats non tenus de déposer un compte de campagne"]
["Élections territoriales"]
[null,"Prestation de services aux candidats tenus de déposer un compte de campagne"]
[null,"Prestation de services aux candidats non tenus de déposer un compte de campagne"]
["Élections législatives"]
[null,"Prestation de services aux candidats tenus de déposer un compte de campagne"]
[null,"Prestation de services aux candidats non tenus de déposer un compte de campagne"]
["Élections sénatoriales"]
[null,"Prestation de services aux candidats tenus de déposer un compte de campagne"]
[null,"Prestation de services aux candidats non tenus de déposer un compte de campagne"]
["Élections européennes"]
[null,"Prestation de services aux candidats tenus de déposer un compte de campagne"]
[null,"Prestation de services aux candidats non tenus de déposer un compte de campagne"]
["Élection présidentielle"]
[null,"Prestation de services aux candidats tenus de déposer un compte de campagne"]
["TOTAL",null,null,null,{"$f":"SUM(E4:E26)","v":0}]
["Contrôles",null,null,null,{"$f":"'Compte de resultat d''ensemble'!E14","v":0}]
["Ecarts",null,null,null,{"$f":"E27-E28","v":0}]

{"sheet":"Frais de campagne 435-17","index":30,"n_rows":34,"n_cols":10,"rows_kept":34,"cut":false,"hidden":false,"merged":[[0,0,0,8],[1,0,1,8],[3,1,3,8],[17,1,17,8]]}
["4. 1. 5. INFORMATIONS RELATIVES AUX POSTES DU BILAN ET DU COMPTE DE RÉSULTAT"]
["État des contributions et des prises en charge de frais de campagnes électorales (art. 435-17) \n(Ventilées par catégorie d’élection, type de candidats (tenus ou non de déposer un compte de campagne) et par poste de charges.)"]
["Contributions et prises en charge de frais de campagnes électorales","Élections municipales","Élections européennes","Élections sénatoriales","Élections territoriales","Élections départementales","Élections régionales","Élections législatives","Élection présidentielle","TOTAUX"]
["Aux candidats tenus de déposer un compte de campagne"]
["Contributions aux candidats"]
["Prise en charge de dépenses électorales"]
["Achats de marchandises et variation de stocks"]
["Congrès, manifestation et université"]
["Communication (presse, publications, télévisions, publicité, sites internet, réseaux sociaux)"]
["Locations, redevances de crédit-bail et charges locatives"]
["Déplacements, missions et réceptions"]
["Honoraires"]
["Personnels extérieurs"]
["Autres achats et charges externes"]
["Impôts et taxes"]
["Salaires et traitements"]
["Charges sociales"]
["Aux candidats non tenus de déposer un compte de campagne"]
["Contributions aux candidats"]
["Prise en charge de dépenses électorales"]
["Achats de marchandises et variation de stocks"]
["Congrès, manifestation et université"]
["Communication (presse, publications, télévisions, publicité, sites internet, réseaux sociaux)"]
["Locations, redevances de crédit-bail et charges locatives"]
["Déplacements, missions et réceptions"]
["Honoraires"]
["Personnels extérieurs"]
["Autres achats et charges externes"]
["Impôts et taxes"]
["Salaires et traitements"]
["Charges sociales"]
["TOTAL",{"$f":"SUM(B4:B31)","v":0},0,0,0,0,0,0,0,{"$f":"SUM(B32:I32)","v":0}]
["Contrôles",null,null,null,null,null,null,null,null,{"$f":"'Compte de resultat d''ensemble'!E23+'Compte de resultat d''ensemble'!E24","v":0}]
["Ecarts",null,null,null,null,null,null,null,null,{"$f":"J32-J33","v":0}]

{"sheet":"Contributions partis 435-18","index":31,"n_rows":43,"n_cols":5,"rows_kept":43,"cut":false,"hidden":false,"merged":[[36,1,36,2],[37,1,37,2],[38,1,38,2],[39,1,39,2],[40,0,40,2],[17,1,17,2],[30,1,30,2],[31,1,31,2],[22,1,22,2],[35,1,35,2],[33,1,33,2],[34,1,34,2],[23,1,23,2],[24,1,24,2],[25,1,25,2],[26,1,26,2],[27,1,27,2],[28,1,28,2],[29,1,29,2],[32,1,32,2],[5,1,5,2],[18,1,18,2],[19,1,19,2],[20,1,20,2],[21,1,21,2],[11,1,11,2],[12,1,12,2],[13,1,13,2],[14,1,14,2],[6,1,6,2],[7,1,7,2],[8,1,8,2],[9,1,9,2],[10,1,10,2],[15,1,15,2],[16,1,16,2],[0,0,0,4],[1,0,1,4],[2,1,2,2],[3,1,3,2],[4,1,4,2]]}
["4. 1. 5. INFORMATIONS RELATIVES AUX POSTES DU BILAN\nET DU COMPTE DE RÉSULTAT"]
["État des contributions octroyées à des partis politiques hors périmètre des comptes d'ensemble (art. 435-18)"]
["Nom du parti","Adresse",null,"Montant octroyé dans l'exercice","dont aide publique reversée"]
[]
[]
[]
[]
[]
[]
[]
[]
[]
[]
[]
[]
[]
[]
[]
[]
[]
[]
[]
[]
[]
[]
[]
[]
[]
[]
[]
[]
[]
[]
[]
[]
[]
[]
[]
[]
[]
["TOTAL",null,null,{"$f":"SUM(D4:D40)","v":0},{"$f":"SUM(E4:E40)","v":0}]
["Contrôles",null,null,{"$f":"'Compte de resultat d''ensemble'!E26","v":0}]
["Ecarts",null,null,{"$f":"D41-D42","v":0}]

{"sheet":"Contributions HP 435-19","index":32,"n_rows":34,"n_cols":4,"rows_kept":34,"cut":false,"hidden":false,"merged":[[21,1,21,2],[23,1,23,2],[29,1,29,2],[30,1,30,2],[31,0,31,2],[22,1,22,2],[24,1,24,2],[25,1,25,2],[26,1,26,2],[27,1,27,2],[28,1,28,2],[20,1,20,2],[0,0,0,3],[1,0,1,3],[2,1,2,2],[3,1,3,2],[4,1,4,2],[18,1,18,2],[19,1,19,2],[17,1,17,2],[16,1,16,2],[15,1,15,2],[14,1,14,2],[13,1,13,2],[5,1,5,2]]}
["4. 1. 5. INFORMATIONS RELATIVES AUX POSTES DU BILAN\nET DU COMPTE DE RÉSULTAT"]
["État des contributions octroyées à des organisations territoriales ou spécialisées du parti hors périmètre des comptes (art. 435-19)"]
["Nom du parti","Adresse",null,"Montant octroyé dans l'exercice"]
[]
[]
[]
[]
[]
[]
[]
[]
[]
[]
[]
[]
[]
[]
[]
[]
[]
[]
[]
[]
[]
[]
[]
[]
[]
[]
[]
[]
["TOTAL",null,null,{"$f":"SUM(D4:D31)","v":0}]
["Contrôles",null,null,{"$f":"+'Compte de resultat d''ensemble'!E27","v":0}]
["Ecarts",null,null,{"$f":"D32-D33","v":0}]

{"sheet":"Contributions org. HP 435-20","index":33,"n_rows":32,"n_cols":4,"rows_kept":32,"cut":false,"hidden":false,"merged":[[29,0,29,2],[18,1,18,2],[19,1,19,2],[20,1,20,2],[21,1,21,2],[22,1,22,2],[23,1,23,2],[24,1,24,2],[25,1,25,2],[26,1,26,2],[27,1,27,2],[28,1,28,2],[17,1,17,2],[6,1,6,2],[7,1,7,2],[8,1,8,2],[9,1,9,2],[10,1,10,2],[11,1,11,2],[12,1,12,2],[13,1,13,2],[14,1,14,2],[15,1,15,2],[16,1,16,2],[5,1,5,2],[0,0,0,3],[1,0,1,3],[2,1,2,2],[3,1,3,2],[4,1,4,2]]}
["4. 1. 5. INFORMATIONS RELATIVES AUX POSTES DU BILAN\nET DU COMPTE DE RÉSULTAT"]
["État des contributions octroyées à d'autres organismes hors périmètre des comptes (art. 435-20)"]
["Nom de l'organisme","Adresse",null,"Montant octroyé dans l'exercice"]
[]
[]
[]
[]
[]
[]
[]
[]
[]
[]
[]
[]
[]
[]
[]
[]
[]
[]
[]
[]
[]
[]
[]
[]
[]
[]
["TOTAL",null,null,{"$f":"SUM(D4:D29)","v":0}]
["Contrôles",null,null,{"$f":"+'Compte de resultat d''ensemble'!E28","v":0}]
["Ecarts",null,null,{"$f":"D30-D31","v":0}]

{"sheet":"Concours en nature 435-21","index":34,"n_rows":2,"n_cols":1,"rows_kept":2,"cut":false,"hidden":false,"merged":[[0,0,0,2],[1,0,1,2]]}
["4. 1. 5. INFORMATIONS RELATIVES AUX POSTES DU BILAN\nET DU COMPTE DE RÉSULTAT"]
["Estimation globale des concours en nature dont les entités intégrées ont bénéficié de la part de personnes physiques ou d'autres partis ou groupements politiques (art. 435-21)"]

{"sheet":"Autres informations","index":35,"n_rows":1,"n_cols":1,"rows_kept":1,"cut":false,"hidden":false,"merged":[]}
["4. 1. 6. AUTRES INFORMATIONS"]

{"sheet":"Effectifs 436-1","index":36,"n_rows":6,"n_cols":2,"rows_kept":6,"cut":false,"hidden":false,"merged":[[0,0,0,1],[1,0,1,1]]}
["4. 1. 6. AUTRES INFORMATIONS"]
["Effectifs moyens globaux par catégorie de toutes les entités intégrées (art. 436-1)"]
["Catégorie de salariés","Effectifs moyens"]
["Non cadre"]
["ETAM"]
["Cadre"]

{"sheet":"Engagements financiers 436-2","index":37,"n_rows":7,"n_cols":2,"rows_kept":7,"cut":false,"hidden":false,"merged":[[0,0,0,1]]}
["4. 1. 6. AUTRES INFORMATIONS"]
["Montant des engagements financiers suivants (art. 436-2)"]
[]
["Engagements financiers","Montant"]
["Avals, cautionnements et garanties"]
["Créances cédées non échues"]
["Engagements non comptabilisé au bilan des comptes d'ensemble"]

{"sheet":"Redevances 436-3","index":38,"n_rows":8,"n_cols":2,"rows_kept":8,"cut":false,"hidden":false,"merged":[[0,0,0,1],[1,0,1,1]]}
["4. 1. 6. AUTRES INFORMATIONS"]
["Redevances restant à payer et prix d'achat résiduel des biens pris en location-financement pour les contrats de location financement non comptabilisés à l'actif (art. 436-3)"]
[]
["Redevances et prix d'achat","Montant"]
["Redevances restant à payer des biens mobiliers"]
["Redevances restant à payer des biens immobiliers"]
["Prix d'achat résiduel des biens pris en location portant sur des biens mobiliers"]
["Prix d'achat résiduel des biens pris en location portant sur des biens immobiliers"]

{"sheet":"Remunerations dirigeants 436-4","index":39,"n_rows":20,"n_cols":4,"rows_kept":20,"cut":false,"hidden":false,"merged":[[0,0,0,3],[1,0,1,3]]}
["4. 1. 6. AUTRES INFORMATIONS"]
["Rémunérations allouées aux dirigeants non-salariés du parti ayant un pouvoir d'administration, de direction ou de surveillance ; remboursement des frais ; avantages en nature (art. 436-4)"]
["Fonction","Montant de la rémunération","Montant des remboursements de frais forfaitaires ou sur justificatifs","Avantages en nature"]
[]
[]
[]
[]
[]
[]
[]
[]
[]
[]
[]
[]
[]
[]
[]
[]
["Total",{"$f":"SUM(B4:B19)","v":0},{"$f":"SUM(C4:C19)","v":0}]

{"sheet":"Remunerations mandataires 436-5","index":40,"n_rows":17,"n_cols":3,"rows_kept":17,"cut":false,"hidden":false,"merged":[[15,2,15,3],[16,2,16,3],[11,2,11,3],[9,2,9,3],[10,2,10,3],[13,2,13,3],[14,2,14,3],[0,0,0,3],[1,0,1,3],[2,2,2,3],[3,2,3,3],[4,2,4,3],[5,2,5,3],[6,2,6,3],[7,2,7,3],[8,2,8,3],[12,2,12,3]]}
["4. 1. 6. AUTRES INFORMATIONS"]
["Rémunérations ou honoraires alloués aux mandataires du parti et des ses organisations territoriales ou spécialisées (art. 436-5)"]
["Fonction","Montant de la rémunération ou des honoraires","Nom de l'organisation"]
[]
[]
[]
[]
[]
[]
[]
[]
[]
[]
[]
[]
[]
["Total",{"$f":"SUM(B4:B16)","v":0}]

{"sheet":"Honoraires CAC 436-6","index":41,"n_rows":6,"n_cols":3,"rows_kept":6,"cut":false,"hidden":false,"merged":[[0,0,0,2],[1,0,1,2]]}
["4. 1. 6. AUTRES INFORMATIONS"]
["Honoraires de chaque commissaire aux comptes (art. 436-6)"]
["Nature de la mission","Montant (1er CAC)","Montant (2e CAC)"]
["Honoraires afférents à la certification des comptes"]
["Honoraires afférents aux autres services"]
["TOTAL",{"$f":"SUM(B4:B5)","v":0},{"$f":"SUM(C4:C5)","v":0}]

{"sheet":"Prets 436-7","index":42,"n_rows":33,"n_cols":9,"rows_kept":33,"cut":false,"hidden":false,"merged":[[0,0,0,8],[1,0,1,8]]}
["4. 1. 6. AUTRES INFORMATIONS"]
["Conditions d'octroi des prêts consentis par le parti ou par les entités intégrées (art. 436-7)"]
["Prêts","Date début","Capital initial","Durée du remboursement","Mode amortissement","Capital restant dû","Taux fixe ou référence + marge","Plancher\nou plafond garantie","Nom de l'emprunteur"]
[]
[]
[]
[]
[]
[]
[]
[]
[]
[]
[]
[]
[]
[]
[]
[]
[]
[]
[]
[]
[]
[]
[]
[]
[]
[]
[]
["TOTAL",null,null,null,null,{"$f":"SUM(F4:F30)","v":0}]
["Contrôles",null,null,null,null,{"$f":"+'Bilan d''ensemble Actif '!C13+'Bilan d''ensemble Actif '!C14+'Bilan d''ensemble Actif '!C15+'Bilan d''ensemble Actif '!C16+'Bilan d''ensemble Actif '!C17","v":0}]
["Ecarts",null,null,null,null,{"$f":"+F31-F32","v":0}]

{"sheet":"Emprunts 436-8","index":43,"n_rows":34,"n_cols":9,"rows_kept":34,"cut":false,"hidden":false,"merged":[[0,0,0,8],[1,0,1,8]]}
["4. 1. 6. AUTRES INFORMATIONS"]
["Conditions d'octroi des emprunts souscrits par le parti ou par les entités intégrées (art. 436-8)"]
["Emprunts","Date souscription","Capital initial","Durée du remboursement","Mode amortissement","Capital restant dû","Taux fixe ou référence + marge","plancher ou plafond garantie","Nom du prêteur"]
[]
[]
[]
[]
[]
[]
[]
[]
[]
[]
[]
[]
[]
[]
[]
[]
[]
[]
[]
[]
[]
[]
[]
[]
[]
[]
[]
[]
["TOTAL",null,null,null,null,{"$f":"SUM(F4:F31)","v":0}]
["Contrôles",null,null,null,null,{"$f":"+'Bilan d''ensemble Passif'!E18+'Bilan d''ensemble Passif'!E19+'Bilan d''ensemble Passif'!E20+'Bilan d''ensemble Passif'!E21","v":0}]
["Ecarts",null,null,null,null,{"$f":"F32-F33","v":0}]